Workbook

Sheet Display
F2: CQG SPDR® S&P® Biotech ETF Performance | AB2: =RTD("cqg.rtd", ,"SystemInfo", "Linetime") -> 45695.39076
B5: Exchange Traded Funds Performance | S5: Top 15 Performing Companies
B6: Symbol | C6: Description | H6: Last | I6: NC | J6: %NC | K6: NC/ATR | L6: Open | M6: High | N6: Low | O6: Volume | Q6: Ratio
B7: XBI | C7: =RTD("cqg.rtd", ,"ContractData",B7, "LongDescription",, "T") -> SPDR S&P Biotech ETF | H7: =RTD("cqg.rtd", ,"ContractData",B7, "LastTradeToday",, "T") -> 92.8 | I7: =RTD("cqg.rtd", ,"ContractData",B7, "NetLastTradeToday",, "T") -> -0.57 | J7: =IFERROR(RTD("cqg.rtd", ,"ContractData",B7, "PerCentNetLastTrade",, "T")/100,"") -> -0.006104744565 | K7: =IFERROR(I7/RTD("cqg.rtd",,"StudyData",B7, "ATR", "MaType=Sim,Period=10", "ATR","D","-1","ALL",,,"FALSE","T")/100,"") -> -0.002844311377 | L7: =RTD("cqg.rtd", ,"ContractData",B7, "OPen",, "T") -> 92.93 | M7: =RTD("cqg.rtd", ,"ContractData", B7, "HIgh",, "T") -> 93.6 | N7: =RTD("cqg.rtd", ,"ContractData",B7, "LOw",, "T") -> 92.28 | O7: =RTD("cqg.rtd", ,"ContractData",B7, "T_CVol",, "T") -> 1959126 | Q7: =IFERROR(O7/RTD("cqg.rtd",,"StudyData",B7, "MA", "InputChoice=Vol,MAType=Sim,Period=21", "MA","D","-1","all",,,,"T"),"") -> 0.2062924006
B8: SPY | C8: =RTD("cqg.rtd", ,"ContractData",B8, "LongDescription",, "T") -> SPDR S&P 500 | H8: =RTD("cqg.rtd", ,"ContractData",B8, "LastTradeToday",, "T") -> 604.97 | I8: =RTD("cqg.rtd", ,"ContractData",B8, "NetLastTradeToday",, "T") -> -1.35 | J8: =IFERROR(RTD("cqg.rtd", ,"ContractData",B8, "PerCentNetLastTrade",, "T")/100,"") -> -0.002226547038 | K8: =IFERROR(I8/RTD("cqg.rtd",,"StudyData",B8, "ATR", "MaType=Sim,Period=10", "ATR","D","-1","ALL",,,"FALSE","T")/100,"") -> -0.001887056192 | L8: =RTD("cqg.rtd", ,"ContractData",B8, "OPen",, "T") -> 606.89 | M8: =RTD("cqg.rtd", ,"ContractData", B8, "HIgh",, "T") -> 608.13 | N8: =RTD("cqg.rtd", ,"ContractData",B8, "LOw",, "T") -> 603.77 | O8: =RTD("cqg.rtd", ,"ContractData",B8, "T_CVol",, "T") -> 8991883 | Q8: =IFERROR(O8/RTD("cqg.rtd",,"StudyData",B8, "MA", "InputChoice=Vol,MAType=Sim,Period=21", "MA","D","-1","all",,,,"T"),"") -> 0.1841915844
B9: XLF | C9: =RTD("cqg.rtd", ,"ContractData",B9, "LongDescription",, "T") -> Financial Select Sector SPDR | H9: =RTD("cqg.rtd", ,"ContractData",B9, "LastTradeToday",, "T") -> 52.13 | I9: =RTD("cqg.rtd", ,"ContractData",B9, "NetLastTradeToday",, "T") -> 0.02 | J9: =IFERROR(RTD("cqg.rtd", ,"ContractData",B9, "PerCentNetLastTrade",, "T")/100,"") -> 0.0003838034926 | K9: =IFERROR(I9/RTD("cqg.rtd",,"StudyData",B9, "ATR", "MaType=Sim,Period=10", "ATR","D","-1","ALL",,,"FALSE","T")/100,"") -> 0.0003333333333 | L9: =RTD("cqg.rtd", ,"ContractData",B9, "OPen",, "T") -> 52.17 | M9: =RTD("cqg.rtd", ,"ContractData", B9, "HIgh",, "T") -> 52.26 | N9: =RTD("cqg.rtd", ,"ContractData",B9, "LOw",, "T") -> 51.98 | O9: =RTD("cqg.rtd", ,"ContractData",B9, "T_CVol",, "T") -> 9988132 | Q9: =IFERROR(O9/RTD("cqg.rtd",,"StudyData",B9, "MA", "InputChoice=Vol,MAType=Sim,Period=21", "MA","D","-1","all",,,,"T"),"") -> 0.2228831303
B10: S.AAPL | C10: =RTD("cqg.rtd", ,"ContractData",B10, "LongDescription",, "T") -> Apple Inc | H10: =RTD("cqg.rtd", ,"ContractData",B10, "LastTradeToday",, "T") -> 230.43 | I10: =RTD("cqg.rtd", ,"ContractData",B10, "NetLastTradeToday",, "T") -> -2.79 | J10: =IFERROR(RTD("cqg.rtd", ,"ContractData",B10, "PerCentNetLastTrade",, "T")/100,"") -> -0.01196295343 | K10: =IFERROR(I10/RTD("cqg.rtd",,"StudyData",B10, "ATR", "MaType=Sim,Period=10", "ATR","D","-1","ALL",,,"FALSE","T")/100,"") -> -0.003886876567 | L10: =RTD("cqg.rtd", ,"ContractData",B10, "OPen",, "T") -> 232.6 | M10: =RTD("cqg.rtd", ,"ContractData", B10, "HIgh",, "T") -> 234 | N10: =RTD("cqg.rtd", ,"ContractData",B10, "LOw",, "T") -> 229.88 | O10: =RTD("cqg.rtd", ,"ContractData",B10, "T_CVol",, "T") -> 7188835 | Q10: =IFERROR(O10/RTD("cqg.rtd",,"StudyData",B10, "MA", "InputChoice=Vol,MAType=Sim,Period=21", "MA","D","-1","all",,,,"T"),"") -> 0.1210647143
B11: KBE | C11: =RTD("cqg.rtd", ,"ContractData",B11, "LongDescription",, "T") -> SPDR S&P Bank ETF | H11: =RTD("cqg.rtd", ,"ContractData",B11, "LastTradeToday",, "T") -> 59.26 | I11: =RTD("cqg.rtd", ,"ContractData",B11, "NetLastTradeToday",, "T") -> -0.66 | J11: =IFERROR(RTD("cqg.rtd", ,"ContractData",B11, "PerCentNetLastTrade",, "T")/100,"") -> -0.01101468625 | K11: =IFERROR(I11/RTD("cqg.rtd",,"StudyData",B11, "ATR", "MaType=Sim,Period=10", "ATR","D","-1","ALL",,,"FALSE","T")/100,"") -> -0.005940594059 | L11: =RTD("cqg.rtd", ,"ContractData",B11, "OPen",, "T") -> 59.92 | M11: =RTD("cqg.rtd", ,"ContractData", B11, "HIgh",, "T") -> 59.99 | N11: =RTD("cqg.rtd", ,"ContractData",B11, "LOw",, "T") -> 59.12 | O11: =RTD("cqg.rtd", ,"ContractData",B11, "T_CVol",, "T") -> 253470 | Q11: =IFERROR(O11/RTD("cqg.rtd",,"StudyData",B11, "MA", "InputChoice=Vol,MAType=Sim,Period=21", "MA","D","-1","all",,,,"T"),"") -> 0.114165415
B12: IWF | C12: =RTD("cqg.rtd", ,"ContractData",B12, "LongDescription",, "T") -> iShares Russell 1000 Growth ETF | H12: =RTD("cqg.rtd", ,"ContractData",B12, "LastTradeToday",, "T") -> 411.37 | I12: =RTD("cqg.rtd", ,"ContractData",B12, "NetLastTradeToday",, "T") -> -1.51 | J12: =IFERROR(RTD("cqg.rtd", ,"ContractData",B12, "PerCentNetLastTrade",, "T")/100,"") -> -0.00365723697 | K12: =IFERROR(I12/RTD("cqg.rtd",,"StudyData",B12, "ATR", "MaType=Sim,Period=10", "ATR","D","-1","ALL",,,"FALSE","T")/100,"") -> -0.002080176333 | L12: =RTD("cqg.rtd", ,"ContractData",B12, "OPen",, "T") -> 412.9 | M12: =RTD("cqg.rtd", ,"ContractData", B12, "HIgh",, "T") -> 414.88 | N12: =RTD("cqg.rtd", ,"ContractData",B12, "LOw",, "T") -> 410.01 | O12: =RTD("cqg.rtd", ,"ContractData",B12, "T_CVol",, "T") -> 171056 | Q12: =IFERROR(O12/RTD("cqg.rtd",,"StudyData",B12, "MA", "InputChoice=Vol,MAType=Sim,Period=21", "MA","D","-1","all",,,,"T"),"") -> 0.1007540815
B13: IWO | C13: =RTD("cqg.rtd", ,"ContractData",B13, "LongDescription",, "T") -> iShares Russell 2000 Growth ETF | H13: =RTD("cqg.rtd", ,"ContractData",B13, "LastTradeToday",, "T") -> 299.1 | I13: =RTD("cqg.rtd", ,"ContractData",B13, "NetLastTradeToday",, "T") -> -0.43 | J13: =IFERROR(RTD("cqg.rtd", ,"ContractData",B13, "PerCentNetLastTrade",, "T")/100,"") -> -0.001435582412 | K13: =IFERROR(I13/RTD("cqg.rtd",,"StudyData",B13, "ATR", "MaType=Sim,Period=10", "ATR","D","-1","ALL",,,"FALSE","T")/100,"") -> -0.000810403317 | L13: =RTD("cqg.rtd", ,"ContractData",B13, "OPen",, "T") -> 300.04 | M13: =RTD("cqg.rtd", ,"ContractData", B13, "HIgh",, "T") -> 301.31 | N13: =RTD("cqg.rtd", ,"ContractData",B13, "LOw",, "T") -> 297.69 | O13: =RTD("cqg.rtd", ,"ContractData",B13, "T_CVol",, "T") -> 60149 | Q13: =IFERROR(O13/RTD("cqg.rtd",,"StudyData",B13, "MA", "InputChoice=Vol,MAType=Sim,Period=21", "MA","D","-1","all",,,,"T"),"") -> 0.1723994903
B14: EP | C14: =RTD("cqg.rtd", ,"ContractData",B14, "LongDescription",, "T") -> E-Mini S&P 500, Mar 25 | H14: =RTD("cqg.rtd", ,"ContractData",B14, "LastTradeToday",, "T") -> 6091 | I14: =RTD("cqg.rtd", ,"ContractData",B14, "NetLastTradeToday",, "T") -> -15 | J14: =IFERROR(RTD("cqg.rtd", ,"ContractData",B14, "PerCentNetLastTrade",, "T")/100,"") -> -0.002456600066 | K14: =IFERROR(I14/RTD("cqg.rtd",,"StudyData",B14, "ATR", "MaType=Sim,Period=10", "ATR","D","-1","ALL",,,"FALSE","T")/100,"") -> -0.00176366843 | L14: =RTD("cqg.rtd", ,"ContractData",B14, "OPen",, "T") -> 6089.75 | M14: =RTD("cqg.rtd", ,"ContractData", B14, "HIgh",, "T") -> 6123.25 | N14: =RTD("cqg.rtd", ,"ContractData",B14, "LOw",, "T") -> 6078.75 | O14: =RTD("cqg.rtd", ,"ContractData",B14, "T_CVol",, "T") -> 435709 | Q14: =IFERROR(O14/RTD("cqg.rtd",,"StudyData",B14, "MA", "InputChoice=Vol,MAType=Sim,Period=21", "MA","D","-1","all",,,,"T"),"") -> 0.2797351442
B15: XLE | C15: =RTD("cqg.rtd", ,"ContractData",B15, "LongDescription",, "T") -> Energy Select Sector SPDR | H15: =RTD("cqg.rtd", ,"ContractData",B15, "LastTradeToday",, "T") -> 89.2 | I15: =RTD("cqg.rtd", ,"ContractData",B15, "NetLastTradeToday",, "T") -> 0.63 | J15: =IFERROR(RTD("cqg.rtd", ,"ContractData",B15, "PerCentNetLastTrade",, "T")/100,"") -> 0.007113017952 | K15: =IFERROR(I15/RTD("cqg.rtd",,"StudyData",B15, "ATR", "MaType=Sim,Period=10", "ATR","D","-1","ALL",,,"FALSE","T")/100,"") -> 0.003563348416 | L15: =RTD("cqg.rtd", ,"ContractData",B15, "OPen",, "T") -> 88.9 | M15: =RTD("cqg.rtd", ,"ContractData", B15, "HIgh",, "T") -> 89.25 | N15: =RTD("cqg.rtd", ,"ContractData",B15, "LOw",, "T") -> 88.44 | O15: =RTD("cqg.rtd", ,"ContractData",B15, "T_CVol",, "T") -> 2227536 | Q15: =IFERROR(O15/RTD("cqg.rtd",,"StudyData",B15, "MA", "InputChoice=Vol,MAType=Sim,Period=21", "MA","D","-1","all",,,,"T"),"") -> 0.1313925136
B16: RSP | C16: =RTD("cqg.rtd", ,"ContractData",B16, "LongDescription",, "T") -> Invesco S&P 500 Equal Weight ETF | H16: =RTD("cqg.rtd", ,"ContractData",B16, "LastTradeToday",, "T") -> 181.35 | I16: =RTD("cqg.rtd", ,"ContractData",B16, "NetLastTradeToday",, "T") -> 0.24 | J16: =IFERROR(RTD("cqg.rtd", ,"ContractData",B16, "PerCentNetLastTrade",, "T")/100,"") -> 0.001325161504 | K16: =IFERROR(I16/RTD("cqg.rtd",,"StudyData",B16, "ATR", "MaType=Sim,Period=10", "ATR","D","-1","ALL",,,"FALSE","T")/100,"") -> 0.001337047354 | L16: =RTD("cqg.rtd", ,"ContractData",B16, "OPen",, "T") -> 181.68 | M16: =RTD("cqg.rtd", ,"ContractData", B16, "HIgh",, "T") -> 181.79 | N16: =RTD("cqg.rtd", ,"ContractData",B16, "LOw",, "T") -> 180.95 | O16: =RTD("cqg.rtd", ,"ContractData",B16, "T_CVol",, "T") -> 1426961 | Q16: =IFERROR(O16/RTD("cqg.rtd",,"StudyData",B16, "MA", "InputChoice=Vol,MAType=Sim,Period=21", "MA","D","-1","all",,,,"T"),"") -> 0.1617226775
C17: Top 15 Description | H17: Last | I17: NC | J17: %NC | K17: NC/ATR | L17: Open | M17: High | N17: Low | O17: Volume | Q17: Ratio
A18: =TRIM(XBI!O1) -> S.US.TSHA | B18: News | C18: =IFERROR(RTD("cqg.rtd", ,"ContractData",A18, "LongDescription",, "T")&" ("&RIGHT(A18,LEN(A18)-5)&")","") -> Taysha Gene Therapies, Inc. (TSHA) | H18: =IFERROR(RTD("cqg.rtd", ,"ContractData",A18, "LastTradeToday",, "T"),"") -> 1.77 | I18: =IFERROR(RTD("cqg.rtd", ,"ContractData",A18, "NetLastTradeToday",, "T"),"") -> 0.11 | J18: =IFERROR(RTD("cqg.rtd", ,"ContractData",A18, "PerCentNetLastTrade",, "T")/100,"") -> 0.06626506024 | K18: =IFERROR(I18/RTD("cqg.rtd",,"StudyData",A18, "ATR", "MaType=Sim,Period=10", "ATR","D","-1","ALL",,,"FALSE","T")/100,"") -> 0.01028037383 | L18: =IFERROR(RTD("cqg.rtd", ,"ContractData",A18, "OPen",, "T"),"") -> 1.7 | M18: =IFERROR(RTD("cqg.rtd", ,"ContractData", A18, "HIgh",, "T"),"") -> 1.79 | N18: =IFERROR(RTD("cqg.rtd", ,"ContractData",A18, "LOw",, "T"),"") -> 1.67 | O18: =IFERROR(RTD("cqg.rtd", ,"ContractData",A18, "T_CVol",, "T"),"") -> 838027 | Q18: =IFERROR(O18/RTD("cqg.rtd",,"StudyData",A18, "MA", "InputChoice=Vol,MAType=Sim,Period=21", "MA","D","-1","all",,,,"T"),"") -> 0.3823956977 | R18: =XBI!Q1 -> https://finance.yahoo.com/quote/TSHA
A19: =TRIM(XBI!O2) -> S.US.SCLX | B19: News | C19: =IFERROR(RTD("cqg.rtd", ,"ContractData",A19, "LongDescription",, "T")&" ("&RIGHT(A19,LEN(A19)-5)&")","") -> Scilex Holding Company (SCLX) | H19: =IFERROR(RTD("cqg.rtd", ,"ContractData",A19, "LastTradeToday",, "T"),"") -> 0.38 | I19: =IFERROR(RTD("cqg.rtd", ,"ContractData",A19, "NetLastTradeToday",, "T"),"") -> 0.02 | J19: =IFERROR(RTD("cqg.rtd", ,"ContractData",A19, "PerCentNetLastTrade",, "T")/100,"") -> 0.05555555556 | K19: =IFERROR(I19/RTD("cqg.rtd",,"StudyData",A19, "ATR", "MaType=Sim,Period=10", "ATR","D","-1","ALL",,,"FALSE","T")/100,"") -> 0.005263157895 | L19: =IFERROR(RTD("cqg.rtd", ,"ContractData",A19, "OPen",, "T"),"") -> 0.39 | M19: =IFERROR(RTD("cqg.rtd", ,"ContractData", A19, "HIgh",, "T"),"") -> 0.39 | N19: =IFERROR(RTD("cqg.rtd", ,"ContractData",A19, "LOw",, "T"),"") -> 0.38 | O19: =IFERROR(RTD("cqg.rtd", ,"ContractData",A19, "T_CVol",, "T"),"") -> 562849 | Q19: =IFERROR(O19/RTD("cqg.rtd",,"StudyData",A19, "MA", "InputChoice=Vol,MAType=Sim,Period=21", "MA","D","-1","all",,,,"T"),"") -> 0.4090564257 | R19: =XBI!Q2 -> https://finance.yahoo.com/quote/SCLX
A20: =TRIM(XBI!O3) -> S.US.RXRX | B20: News | C20: =IFERROR(RTD("cqg.rtd", ,"ContractData",A20, "LongDescription",, "T")&" ("&RIGHT(A20,LEN(A20)-5)&")","") -> Recursion Pharmaceuticals, Inc. Class A (RXRX) | H20: =IFERROR(RTD("cqg.rtd", ,"ContractData",A20, "LastTradeToday",, "T"),"") -> 7.51 | I20: =IFERROR(RTD("cqg.rtd", ,"ContractData",A20, "NetLastTradeToday",, "T"),"") -> 0.27 | J20: =IFERROR(RTD("cqg.rtd", ,"ContractData",A20, "PerCentNetLastTrade",, "T")/100,"") -> 0.03729281768 | K20: =IFERROR(I20/RTD("cqg.rtd",,"StudyData",A20, "ATR", "MaType=Sim,Period=10", "ATR","D","-1","ALL",,,"FALSE","T")/100,"") -> 0.003698630137 | L20: =IFERROR(RTD("cqg.rtd", ,"ContractData",A20, "OPen",, "T"),"") -> 7.35 | M20: =IFERROR(RTD("cqg.rtd", ,"ContractData", A20, "HIgh",, "T"),"") -> 7.88 | N20: =IFERROR(RTD("cqg.rtd", ,"ContractData",A20, "LOw",, "T"),"") -> 7.27 | O20: =IFERROR(RTD("cqg.rtd", ,"ContractData",A20, "T_CVol",, "T"),"") -> 10384939 | Q20: =IFERROR(O20/RTD("cqg.rtd",,"StudyData",A20, "MA", "InputChoice=Vol,MAType=Sim,Period=21", "MA","D","-1","all",,,,"T"),"") -> 0.5440986846 | R20: =XBI!Q3 -> https://finance.yahoo.com/quote/RXRX
A21: =TRIM(XBI!O4) -> S.US.VKTX | B21: News | C21: =IFERROR(RTD("cqg.rtd", ,"ContractData",A21, "LongDescription",, "T")&" ("&RIGHT(A21,LEN(A21)-5)&")","") -> Viking Therapeutics, Inc. (VKTX) | H21: =IFERROR(RTD("cqg.rtd", ,"ContractData",A21, "LastTradeToday",, "T"),"") -> 32.49 | I21: =IFERROR(RTD("cqg.rtd", ,"ContractData",A21, "NetLastTradeToday",, "T"),"") -> 1.03 | J21: =IFERROR(RTD("cqg.rtd", ,"ContractData",A21, "PerCentNetLastTrade",, "T")/100,"") -> 0.03273998729 | K21: =IFERROR(I21/RTD("cqg.rtd",,"StudyData",A21, "ATR", "MaType=Sim,Period=10", "ATR","D","-1","ALL",,,"FALSE","T")/100,"") -> 0.005058939096 | L21: =IFERROR(RTD("cqg.rtd", ,"ContractData",A21, "OPen",, "T"),"") -> 31.4 | M21: =IFERROR(RTD("cqg.rtd", ,"ContractData", A21, "HIgh",, "T"),"") -> 32.68 | N21: =IFERROR(RTD("cqg.rtd", ,"ContractData",A21, "LOw",, "T"),"") -> 30.8 | O21: =IFERROR(RTD("cqg.rtd", ,"ContractData",A21, "T_CVol",, "T"),"") -> 1296715 | Q21: =IFERROR(O21/RTD("cqg.rtd",,"StudyData",A21, "MA", "InputChoice=Vol,MAType=Sim,Period=21", "MA","D","-1","all",,,,"T"),"") -> 0.3043614159 | R21: =XBI!Q4 -> https://finance.yahoo.com/quote/VKTX
A22: =TRIM(XBI!O5) -> S.US.PTGX | B22: News | C22: =IFERROR(RTD("cqg.rtd", ,"ContractData",A22, "LongDescription",, "T")&" ("&RIGHT(A22,LEN(A22)-5)&")","") -> Protagonist Therapeutics, Inc. (PTGX) | H22: =IFERROR(RTD("cqg.rtd", ,"ContractData",A22, "LastTradeToday",, "T"),"") -> 38.72 | I22: =IFERROR(RTD("cqg.rtd", ,"ContractData",A22, "NetLastTradeToday",, "T"),"") -> 0.97 | J22: =IFERROR(RTD("cqg.rtd", ,"ContractData",A22, "PerCentNetLastTrade",, "T")/100,"") -> 0.02569536424 | K22: =IFERROR(I22/RTD("cqg.rtd",,"StudyData",A22, "ATR", "MaType=Sim,Period=10", "ATR","D","-1","ALL",,,"FALSE","T")/100,"") -> 0.006398416887 | L22: =IFERROR(RTD("cqg.rtd", ,"ContractData",A22, "OPen",, "T"),"") -> 37.81 | M22: =IFERROR(RTD("cqg.rtd", ,"ContractData", A22, "HIgh",, "T"),"") -> 38.88 | N22: =IFERROR(RTD("cqg.rtd", ,"ContractData",A22, "LOw",, "T"),"") -> 37.81 | O22: =IFERROR(RTD("cqg.rtd", ,"ContractData",A22, "T_CVol",, "T"),"") -> 80198 | Q22: =IFERROR(O22/RTD("cqg.rtd",,"StudyData",A22, "MA", "InputChoice=Vol,MAType=Sim,Period=21", "MA","D","-1","all",,,,"T"),"") -> 0.1457982236 | R22: =XBI!Q5 -> https://finance.yahoo.com/quote/PTGX
A23: =TRIM(XBI!O6) -> S.US.IMVT | B23: News | C23: =IFERROR(RTD("cqg.rtd", ,"ContractData",A23, "LongDescription",, "T")&" ("&RIGHT(A23,LEN(A23)-5)&")","") -> Immunovant, Inc. (IMVT) | H23: =IFERROR(RTD("cqg.rtd", ,"ContractData",A23, "LastTradeToday",, "T"),"") -> 20.87 | I23: =IFERROR(RTD("cqg.rtd", ,"ContractData",A23, "NetLastTradeToday",, "T"),"") -> 0.51 | J23: =IFERROR(RTD("cqg.rtd", ,"ContractData",A23, "PerCentNetLastTrade",, "T")/100,"") -> 0.02504911591 | K23: =IFERROR(I23/RTD("cqg.rtd",,"StudyData",A23, "ATR", "MaType=Sim,Period=10", "ATR","D","-1","ALL",,,"FALSE","T")/100,"") -> 0.004541406946 | L23: =IFERROR(RTD("cqg.rtd", ,"ContractData",A23, "OPen",, "T"),"") -> 20.36 | M23: =IFERROR(RTD("cqg.rtd", ,"ContractData", A23, "HIgh",, "T"),"") -> 21.07 | N23: =IFERROR(RTD("cqg.rtd", ,"ContractData",A23, "LOw",, "T"),"") -> 19.86 | O23: =IFERROR(RTD("cqg.rtd", ,"ContractData",A23, "T_CVol",, "T"),"") -> 400975 | Q23: =IFERROR(O23/RTD("cqg.rtd",,"StudyData",A23, "MA", "InputChoice=Vol,MAType=Sim,Period=21", "MA","D","-1","all",,,,"T"),"") -> 0.2930088857 | R23: =XBI!Q6 -> https://finance.yahoo.com/quote/IMVT
A24: =TRIM(XBI!O7) -> S.US.SWTX | B24: News | C24: =IFERROR(RTD("cqg.rtd", ,"ContractData",A24, "LongDescription",, "T")&" ("&RIGHT(A24,LEN(A24)-5)&")","") -> SpringWorks Therapeutics, Inc. (SWTX) | H24: =IFERROR(RTD("cqg.rtd", ,"ContractData",A24, "LastTradeToday",, "T"),"") -> 40.16 | I24: =IFERROR(RTD("cqg.rtd", ,"ContractData",A24, "NetLastTradeToday",, "T"),"") -> 0.88 | J24: =IFERROR(RTD("cqg.rtd", ,"ContractData",A24, "PerCentNetLastTrade",, "T")/100,"") -> 0.02240325866 | K24: =IFERROR(I24/RTD("cqg.rtd",,"StudyData",A24, "ATR", "MaType=Sim,Period=10", "ATR","D","-1","ALL",,,"FALSE","T")/100,"") -> 0.003760683761 | L24: =IFERROR(RTD("cqg.rtd", ,"ContractData",A24, "OPen",, "T"),"") -> 39.23 | M24: =IFERROR(RTD("cqg.rtd", ,"ContractData", A24, "HIgh",, "T"),"") -> 40.87 | N24: =IFERROR(RTD("cqg.rtd", ,"ContractData",A24, "LOw",, "T"),"") -> 39.1 | O24: =IFERROR(RTD("cqg.rtd", ,"ContractData",A24, "T_CVol",, "T"),"") -> 240391 | Q24: =IFERROR(O24/RTD("cqg.rtd",,"StudyData",A24, "MA", "InputChoice=Vol,MAType=Sim,Period=21", "MA","D","-1","all",,,,"T"),"") -> 0.1269338627 | R24: =XBI!Q7 -> https://finance.yahoo.com/quote/SWTX
A25: =TRIM(XBI!O8) -> S.US.DNTH | B25: News | C25: =IFERROR(RTD("cqg.rtd", ,"ContractData",A25, "LongDescription",, "T")&" ("&RIGHT(A25,LEN(A25)-5)&")","") -> Dianthus Therapeutics Inc (DNTH) | H25: =IFERROR(RTD("cqg.rtd", ,"ContractData",A25, "LastTradeToday",, "T"),"") -> 23.47 | I25: =IFERROR(RTD("cqg.rtd", ,"ContractData",A25, "NetLastTradeToday",, "T"),"") -> 0.51 | J25: =IFERROR(RTD("cqg.rtd", ,"ContractData",A25, "PerCentNetLastTrade",, "T")/100,"") -> 0.02221254355 | K25: =IFERROR(I25/RTD("cqg.rtd",,"StudyData",A25, "ATR", "MaType=Sim,Period=10", "ATR","D","-1","ALL",,,"FALSE","T")/100,"") -> 0.002998236332 | L25: =IFERROR(RTD("cqg.rtd", ,"ContractData",A25, "OPen",, "T"),"") -> 23.1 | M25: =IFERROR(RTD("cqg.rtd", ,"ContractData", A25, "HIgh",, "T"),"") -> 23.52 | N25: =IFERROR(RTD("cqg.rtd", ,"ContractData",A25, "LOw",, "T"),"") -> 23 | O25: =IFERROR(RTD("cqg.rtd", ,"ContractData",A25, "T_CVol",, "T"),"") -> 23025 | Q25: =IFERROR(O25/RTD("cqg.rtd",,"StudyData",A25, "MA", "InputChoice=Vol,MAType=Sim,Period=21", "MA","D","-1","all",,,,"T"),"") -> 0.09542029926 | R25: =XBI!Q8 -> https://finance.yahoo.com/quote/DNTH
A26: =TRIM(XBI!O9) -> S.US.CRGX | B26: News | C26: =IFERROR(RTD("cqg.rtd", ,"ContractData",A26, "LongDescription",, "T")&" ("&RIGHT(A26,LEN(A26)-5)&")","") -> CARGO Therapeutics, Inc. (CRGX) | H26: =IFERROR(RTD("cqg.rtd", ,"ContractData",A26, "LastTradeToday",, "T"),"") -> 3.78 | I26: =IFERROR(RTD("cqg.rtd", ,"ContractData",A26, "NetLastTradeToday",, "T"),"") -> 0.08 | J26: =IFERROR(RTD("cqg.rtd", ,"ContractData",A26, "PerCentNetLastTrade",, "T")/100,"") -> 0.02162162162 | K26: =IFERROR(I26/RTD("cqg.rtd",,"StudyData",A26, "ATR", "MaType=Sim,Period=10", "ATR","D","-1","ALL",,,"FALSE","T")/100,"") -> 0.0004651162791 | L26: =IFERROR(RTD("cqg.rtd", ,"ContractData",A26, "OPen",, "T"),"") -> 3.71 | M26: =IFERROR(RTD("cqg.rtd", ,"ContractData", A26, "HIgh",, "T"),"") -> 3.8 | N26: =IFERROR(RTD("cqg.rtd", ,"ContractData",A26, "LOw",, "T"),"") -> 3.64 | O26: =IFERROR(RTD("cqg.rtd", ,"ContractData",A26, "T_CVol",, "T"),"") -> 65689 | Q26: =IFERROR(O26/RTD("cqg.rtd",,"StudyData",A26, "MA", "InputChoice=Vol,MAType=Sim,Period=21", "MA","D","-1","all",,,,"T"),"") -> 0.03511841128 | R26: =XBI!Q9 -> https://finance.yahoo.com/quote/CRGX
A27: =TRIM(XBI!O10) -> S.US.IBRX | B27: News | C27: =IFERROR(RTD("cqg.rtd", ,"ContractData",A27, "LongDescription",, "T")&" ("&RIGHT(A27,LEN(A27)-5)&")","") -> ImmunityBio, Inc. (IBRX) | H27: =IFERROR(RTD("cqg.rtd", ,"ContractData",A27, "LastTradeToday",, "T"),"") -> 3.38 | I27: =IFERROR(RTD("cqg.rtd", ,"ContractData",A27, "NetLastTradeToday",, "T"),"") -> 0.07 | J27: =IFERROR(RTD("cqg.rtd", ,"ContractData",A27, "PerCentNetLastTrade",, "T")/100,"") -> 0.02114803625 | K27: =IFERROR(I27/RTD("cqg.rtd",,"StudyData",A27, "ATR", "MaType=Sim,Period=10", "ATR","D","-1","ALL",,,"FALSE","T")/100,"") -> 0.002389078498 | L27: =IFERROR(RTD("cqg.rtd", ,"ContractData",A27, "OPen",, "T"),"") -> 3.34 | M27: =IFERROR(RTD("cqg.rtd", ,"ContractData", A27, "HIgh",, "T"),"") -> 3.46 | N27: =IFERROR(RTD("cqg.rtd", ,"ContractData",A27, "LOw",, "T"),"") -> 3.32 | O27: =IFERROR(RTD("cqg.rtd", ,"ContractData",A27, "T_CVol",, "T"),"") -> 816550 | Q27: =IFERROR(O27/RTD("cqg.rtd",,"StudyData",A27, "MA", "InputChoice=Vol,MAType=Sim,Period=21", "MA","D","-1","all",,,,"T"),"") -> 0.1250369304 | R27: =XBI!Q10 -> https://finance.yahoo.com/quote/IBRX | S27: Bottom 15 Performing Companies
A28: =TRIM(XBI!O11) -> S.US.ARWR | B28: News | C28: =IFERROR(RTD("cqg.rtd", ,"ContractData",A28, "LongDescription",, "T")&" ("&RIGHT(A28,LEN(A28)-5)&")","") -> Arrowhead Pharmaceuticals, Inc. (ARWR) | H28: =IFERROR(RTD("cqg.rtd", ,"ContractData",A28, "LastTradeToday",, "T"),"") -> 20.84 | I28: =IFERROR(RTD("cqg.rtd", ,"ContractData",A28, "NetLastTradeToday",, "T"),"") -> 0.36 | J28: =IFERROR(RTD("cqg.rtd", ,"ContractData",A28, "PerCentNetLastTrade",, "T")/100,"") -> 0.017578125 | K28: =IFERROR(I28/RTD("cqg.rtd",,"StudyData",A28, "ATR", "MaType=Sim,Period=10", "ATR","D","-1","ALL",,,"FALSE","T")/100,"") -> 0.003640040445 | L28: =IFERROR(RTD("cqg.rtd", ,"ContractData",A28, "OPen",, "T"),"") -> 20.56 | M28: =IFERROR(RTD("cqg.rtd", ,"ContractData", A28, "HIgh",, "T"),"") -> 21.84 | N28: =IFERROR(RTD("cqg.rtd", ,"ContractData",A28, "LOw",, "T"),"") -> 20.56 | O28: =IFERROR(RTD("cqg.rtd", ,"ContractData",A28, "T_CVol",, "T"),"") -> 286783 | Q28: =IFERROR(O28/RTD("cqg.rtd",,"StudyData",A28, "MA", "InputChoice=Vol,MAType=Sim,Period=21", "MA","D","-1","all",,,,"T"),"") -> 0.1083854529 | R28: =XBI!Q11 -> https://finance.yahoo.com/quote/ARWR
A29: =TRIM(XBI!O12) -> S.US.BCRX | B29: News | C29: =IFERROR(RTD("cqg.rtd", ,"ContractData",A29, "LongDescription",, "T")&" ("&RIGHT(A29,LEN(A29)-5)&")","") -> Biocryst Pharmaceuticals Inc (BCRX) | H29: =IFERROR(RTD("cqg.rtd", ,"ContractData",A29, "LastTradeToday",, "T"),"") -> 8.87 | I29: =IFERROR(RTD("cqg.rtd", ,"ContractData",A29, "NetLastTradeToday",, "T"),"") -> 0.14 | J29: =IFERROR(RTD("cqg.rtd", ,"ContractData",A29, "PerCentNetLastTrade",, "T")/100,"") -> 0.01603665521 | K29: =IFERROR(I29/RTD("cqg.rtd",,"StudyData",A29, "ATR", "MaType=Sim,Period=10", "ATR","D","-1","ALL",,,"FALSE","T")/100,"") -> 0.003473945409 | L29: =IFERROR(RTD("cqg.rtd", ,"ContractData",A29, "OPen",, "T"),"") -> 8.74 | M29: =IFERROR(RTD("cqg.rtd", ,"ContractData", A29, "HIgh",, "T"),"") -> 8.87 | N29: =IFERROR(RTD("cqg.rtd", ,"ContractData",A29, "LOw",, "T"),"") -> 8.73 | O29: =IFERROR(RTD("cqg.rtd", ,"ContractData",A29, "T_CVol",, "T"),"") -> 235258 | Q29: =IFERROR(O29/RTD("cqg.rtd",,"StudyData",A29, "MA", "InputChoice=Vol,MAType=Sim,Period=21", "MA","D","-1","all",,,,"T"),"") -> 0.08988270045 | R29: =XBI!Q12 -> https://finance.yahoo.com/quote/BCRX
A30: =TRIM(XBI!O13) -> S.US.PTCT | B30: News | C30: =IFERROR(RTD("cqg.rtd", ,"ContractData",A30, "LongDescription",, "T")&" ("&RIGHT(A30,LEN(A30)-5)&")","") -> PTC Therapeutics, Inc (PTCT) | H30: =IFERROR(RTD("cqg.rtd", ,"ContractData",A30, "LastTradeToday",, "T"),"") -> 50.43 | I30: =IFERROR(RTD("cqg.rtd", ,"ContractData",A30, "NetLastTradeToday",, "T"),"") -> 0.64 | J30: =IFERROR(RTD("cqg.rtd", ,"ContractData",A30, "PerCentNetLastTrade",, "T")/100,"") -> 0.01285398674 | K30: =IFERROR(I30/RTD("cqg.rtd",,"StudyData",A30, "ATR", "MaType=Sim,Period=10", "ATR","D","-1","ALL",,,"FALSE","T")/100,"") -> 0.002975360298 | L30: =IFERROR(RTD("cqg.rtd", ,"ContractData",A30, "OPen",, "T"),"") -> 49.82 | M30: =IFERROR(RTD("cqg.rtd", ,"ContractData", A30, "HIgh",, "T"),"") -> 50.84 | N30: =IFERROR(RTD("cqg.rtd", ,"ContractData",A30, "LOw",, "T"),"") -> 49.16 | O30: =IFERROR(RTD("cqg.rtd", ,"ContractData",A30, "T_CVol",, "T"),"") -> 41065 | Q30: =IFERROR(O30/RTD("cqg.rtd",,"StudyData",A30, "MA", "InputChoice=Vol,MAType=Sim,Period=21", "MA","D","-1","all",,,,"T"),"") -> 0.05474732677 | R30: =XBI!Q13 -> https://finance.yahoo.com/quote/PTCT
A31: =TRIM(XBI!O14) -> S.US.ORIC | B31: News | C31: =IFERROR(RTD("cqg.rtd", ,"ContractData",A31, "LongDescription",, "T")&" ("&RIGHT(A31,LEN(A31)-5)&")","") -> Oric Pharmaceuticals, Inc (ORIC) | H31: =IFERROR(RTD("cqg.rtd", ,"ContractData",A31, "LastTradeToday",, "T"),"") -> 12.7 | I31: =IFERROR(RTD("cqg.rtd", ,"ContractData",A31, "NetLastTradeToday",, "T"),"") -> 0.16 | J31: =IFERROR(RTD("cqg.rtd", ,"ContractData",A31, "PerCentNetLastTrade",, "T")/100,"") -> 0.01275917065 | K31: =IFERROR(I31/RTD("cqg.rtd",,"StudyData",A31, "ATR", "MaType=Sim,Period=10", "ATR","D","-1","ALL",,,"FALSE","T")/100,"") -> 0.001503759398 | L31: =IFERROR(RTD("cqg.rtd", ,"ContractData",A31, "OPen",, "T"),"") -> 12.5 | M31: =IFERROR(RTD("cqg.rtd", ,"ContractData", A31, "HIgh",, "T"),"") -> 13 | N31: =IFERROR(RTD("cqg.rtd", ,"ContractData",A31, "LOw",, "T"),"") -> 12.33 | O31: =IFERROR(RTD("cqg.rtd", ,"ContractData",A31, "T_CVol",, "T"),"") -> 98213 | Q31: =IFERROR(O31/RTD("cqg.rtd",,"StudyData",A31, "MA", "InputChoice=Vol,MAType=Sim,Period=21", "MA","D","-1","all",,,,"T"),"") -> 0.1064574172 | R31: =XBI!Q14 -> https://finance.yahoo.com/quote/ORIC
A32: =TRIM(XBI!O15) -> S.US.MIRM | B32: News | C32: =IFERROR(RTD("cqg.rtd", ,"ContractData",A32, "LongDescription",, "T")&" ("&RIGHT(A32,LEN(A32)-5)&")","") -> Mirum Pharmaceuticals, Inc. (MIRM) | H32: =IFERROR(RTD("cqg.rtd", ,"ContractData",A32, "LastTradeToday",, "T"),"") -> 51.87 | I32: =IFERROR(RTD("cqg.rtd", ,"ContractData",A32, "NetLastTradeToday",, "T"),"") -> 0.64 | J32: =IFERROR(RTD("cqg.rtd", ,"ContractData",A32, "PerCentNetLastTrade",, "T")/100,"") -> 0.01249268007 | K32: =IFERROR(I32/RTD("cqg.rtd",,"StudyData",A32, "ATR", "MaType=Sim,Period=10", "ATR","D","-1","ALL",,,"FALSE","T")/100,"") -> 0.003727431567 | L32: =IFERROR(RTD("cqg.rtd", ,"ContractData",A32, "OPen",, "T"),"") -> 51.23 | M32: =IFERROR(RTD("cqg.rtd", ,"ContractData", A32, "HIgh",, "T"),"") -> 52.53 | N32: =IFERROR(RTD("cqg.rtd", ,"ContractData",A32, "LOw",, "T"),"") -> 50.41 | O32: =IFERROR(RTD("cqg.rtd", ,"ContractData",A32, "T_CVol",, "T"),"") -> 62448 | Q32: =IFERROR(O32/RTD("cqg.rtd",,"StudyData",A32, "MA", "InputChoice=Vol,MAType=Sim,Period=21", "MA","D","-1","all",,,,"T"),"") -> 0.1144390301 | R32: =XBI!Q15 -> https://finance.yahoo.com/quote/MIRM
C33: Bottom 15 Description | H33: Last | I33: NC | J33: %NC | K33: NC/ATR | L33: Open | M33: High | N33: Low | O33: Volume | Q33: Ratio
A34: =TRIM(XBI!O123) -> S.US.ANAB | B34: News | C34: =IFERROR(RTD("cqg.rtd", ,"ContractData",A34, "LongDescription",, "T")&" ("&RIGHT(A34,LEN(A34)-5)&")","") -> AnaptysBio, Inc. (ANAB) | H34: =IFERROR(RTD("cqg.rtd", ,"ContractData",A34, "LastTradeToday",, "T"),"") -> 15.73 | I34: =IFERROR(RTD("cqg.rtd", ,"ContractData",A34, "NetLastTradeToday",, "T"),"") -> -0.35 | J34: =IFERROR(RTD("cqg.rtd", ,"ContractData",A34, "PerCentNetLastTrade",, "T")/100,"") -> -0.02176616915 | K34: =IFERROR(I34/RTD("cqg.rtd",,"StudyData",A34, "ATR", "MaType=Sim,Period=10", "ATR","D","-1","ALL",,,"FALSE","T")/100,"") -> -0.003012048193 | L34: =IFERROR(RTD("cqg.rtd", ,"ContractData",A34, "OPen",, "T"),"") -> 16.09 | M34: =IFERROR(RTD("cqg.rtd", ,"ContractData", A34, "HIgh",, "T"),"") -> 16.21 | N34: =IFERROR(RTD("cqg.rtd", ,"ContractData",A34, "LOw",, "T"),"") -> 15.66 | O34: =IFERROR(RTD("cqg.rtd", ,"ContractData",A34, "T_CVol",, "T"),"") -> 59216 | Q34: =IFERROR(O34/RTD("cqg.rtd",,"StudyData",A34, "MA", "InputChoice=Vol,MAType=Sim,Period=21", "MA","D","-1","all",,,,"T"),"") -> 0.0850265561 | R34: =XBI!Q123 -> https://finance.yahoo.com/quote/ANAB
A35: =TRIM(XBI!O124) -> S.US.TWST | B35: News | C35: =IFERROR(RTD("cqg.rtd", ,"ContractData",A35, "LongDescription",, "T")&" ("&RIGHT(A35,LEN(A35)-5)&")","") -> Twist Bioscience Corporation (TWST) | H35: =IFERROR(RTD("cqg.rtd", ,"ContractData",A35, "LastTradeToday",, "T"),"") -> 52.51 | I35: =IFERROR(RTD("cqg.rtd", ,"ContractData",A35, "NetLastTradeToday",, "T"),"") -> -1.19 | J35: =IFERROR(RTD("cqg.rtd", ,"ContractData",A35, "PerCentNetLastTrade",, "T")/100,"") -> -0.02216014898 | K35: =IFERROR(I35/RTD("cqg.rtd",,"StudyData",A35, "ATR", "MaType=Sim,Period=10", "ATR","D","-1","ALL",,,"FALSE","T")/100,"") -> -0.003439306358 | L35: =IFERROR(RTD("cqg.rtd", ,"ContractData",A35, "OPen",, "T"),"") -> 53.71 | M35: =IFERROR(RTD("cqg.rtd", ,"ContractData", A35, "HIgh",, "T"),"") -> 54.26 | N35: =IFERROR(RTD("cqg.rtd", ,"ContractData",A35, "LOw",, "T"),"") -> 52.1 | O35: =IFERROR(RTD("cqg.rtd", ,"ContractData",A35, "T_CVol",, "T"),"") -> 142614 | Q35: =IFERROR(O35/RTD("cqg.rtd",,"StudyData",A35, "MA", "InputChoice=Vol,MAType=Sim,Period=21", "MA","D","-1","all",,,,"T"),"") -> 0.1739951021 | R35: =XBI!Q124 -> https://finance.yahoo.com/quote/TWST
A36: =TRIM(XBI!O125) -> S.US.SNDX | B36: News | C36: =IFERROR(RTD("cqg.rtd", ,"ContractData",A36, "LongDescription",, "T")&" ("&RIGHT(A36,LEN(A36)-5)&")","") -> Syndax Pharmaceuticals, Inc. (SNDX) | H36: =IFERROR(RTD("cqg.rtd", ,"ContractData",A36, "LastTradeToday",, "T"),"") -> 15.46 | I36: =IFERROR(RTD("cqg.rtd", ,"ContractData",A36, "NetLastTradeToday",, "T"),"") -> -0.36 | J36: =IFERROR(RTD("cqg.rtd", ,"ContractData",A36, "PerCentNetLastTrade",, "T")/100,"") -> -0.02275600506 | K36: =IFERROR(I36/RTD("cqg.rtd",,"StudyData",A36, "ATR", "MaType=Sim,Period=10", "ATR","D","-1","ALL",,,"FALSE","T")/100,"") -> -0.004793608522 | L36: =IFERROR(RTD("cqg.rtd", ,"ContractData",A36, "OPen",, "T"),"") -> 15.71 | M36: =IFERROR(RTD("cqg.rtd", ,"ContractData", A36, "HIgh",, "T"),"") -> 16.16 | N36: =IFERROR(RTD("cqg.rtd", ,"ContractData",A36, "LOw",, "T"),"") -> 15.38 | O36: =IFERROR(RTD("cqg.rtd", ,"ContractData",A36, "T_CVol",, "T"),"") -> 432006 | Q36: =IFERROR(O36/RTD("cqg.rtd",,"StudyData",A36, "MA", "InputChoice=Vol,MAType=Sim,Period=21", "MA","D","-1","all",,,,"T"),"") -> 0.1869729133 | R36: =XBI!Q125 -> https://finance.yahoo.com/quote/SNDX
A37: =TRIM(XBI!O126) -> S.US.CAPR | B37: News | C37: =IFERROR(RTD("cqg.rtd", ,"ContractData",A37, "LongDescription",, "T")&" ("&RIGHT(A37,LEN(A37)-5)&")","") -> Capricor Therapeutics, Inc. (CAPR) | H37: =IFERROR(RTD("cqg.rtd", ,"ContractData",A37, "LastTradeToday",, "T"),"") -> 14 | I37: =IFERROR(RTD("cqg.rtd", ,"ContractData",A37, "NetLastTradeToday",, "T"),"") -> -0.33 | J37: =IFERROR(RTD("cqg.rtd", ,"ContractData",A37, "PerCentNetLastTrade",, "T")/100,"") -> -0.0230286113 | K37: =IFERROR(I37/RTD("cqg.rtd",,"StudyData",A37, "ATR", "MaType=Sim,Period=10", "ATR","D","-1","ALL",,,"FALSE","T")/100,"") -> -0.003886925795 | L37: =IFERROR(RTD("cqg.rtd", ,"ContractData",A37, "OPen",, "T"),"") -> 14.45 | M37: =IFERROR(RTD("cqg.rtd", ,"ContractData", A37, "HIgh",, "T"),"") -> 14.45 | N37: =IFERROR(RTD("cqg.rtd", ,"ContractData",A37, "LOw",, "T"),"") -> 13.75 | O37: =IFERROR(RTD("cqg.rtd", ,"ContractData",A37, "T_CVol",, "T"),"") -> 310728 | Q37: =IFERROR(O37/RTD("cqg.rtd",,"StudyData",A37, "MA", "InputChoice=Vol,MAType=Sim,Period=21", "MA","D","-1","all",,,,"T"),"") -> 0.4419315097 | R37: =XBI!Q126 -> https://finance.yahoo.com/quote/CAPR
A38: =TRIM(XBI!O127) -> S.US.VCYT | B38: News | C38: =IFERROR(RTD("cqg.rtd", ,"ContractData",A38, "LongDescription",, "T")&" ("&RIGHT(A38,LEN(A38)-5)&")","") -> Veracyte, Inc. (VCYT) | H38: =IFERROR(RTD("cqg.rtd", ,"ContractData",A38, "LastTradeToday",, "T"),"") -> 42.49 | I38: =IFERROR(RTD("cqg.rtd", ,"ContractData",A38, "NetLastTradeToday",, "T"),"") -> -1.01 | J38: =IFERROR(RTD("cqg.rtd", ,"ContractData",A38, "PerCentNetLastTrade",, "T")/100,"") -> -0.0232183908 | K38: =IFERROR(I38/RTD("cqg.rtd",,"StudyData",A38, "ATR", "MaType=Sim,Period=10", "ATR","D","-1","ALL",,,"FALSE","T")/100,"") -> -0.004891041162 | L38: =IFERROR(RTD("cqg.rtd", ,"ContractData",A38, "OPen",, "T"),"") -> 43.35 | M38: =IFERROR(RTD("cqg.rtd", ,"ContractData", A38, "HIgh",, "T"),"") -> 43.5 | N38: =IFERROR(RTD("cqg.rtd", ,"ContractData",A38, "LOw",, "T"),"") -> 41.68 | O38: =IFERROR(RTD("cqg.rtd", ,"ContractData",A38, "T_CVol",, "T"),"") -> 150742 | Q38: =IFERROR(O38/RTD("cqg.rtd",,"StudyData",A38, "MA", "InputChoice=Vol,MAType=Sim,Period=21", "MA","D","-1","all",,,,"T"),"") -> 0.1837828693 | R38: =XBI!Q127 -> https://finance.yahoo.com/quote/VCYT
A39: =TRIM(XBI!O128) -> S.US.SGMO | B39: News | C39: =IFERROR(RTD("cqg.rtd", ,"ContractData",A39, "LongDescription",, "T")&" ("&RIGHT(A39,LEN(A39)-5)&")","") -> Sangamo Therapeutics, Inc. (SGMO) | H39: =IFERROR(RTD("cqg.rtd", ,"ContractData",A39, "LastTradeToday",, "T"),"") -> 1.24 | I39: =IFERROR(RTD("cqg.rtd", ,"ContractData",A39, "NetLastTradeToday",, "T"),"") -> -0.03 | J39: =IFERROR(RTD("cqg.rtd", ,"ContractData",A39, "PerCentNetLastTrade",, "T")/100,"") -> -0.02362204724 | K39: =IFERROR(I39/RTD("cqg.rtd",,"StudyData",A39, "ATR", "MaType=Sim,Period=10", "ATR","D","-1","ALL",,,"FALSE","T")/100,"") -> -0.003 | L39: =IFERROR(RTD("cqg.rtd", ,"ContractData",A39, "OPen",, "T"),"") -> 1.27 | M39: =IFERROR(RTD("cqg.rtd", ,"ContractData", A39, "HIgh",, "T"),"") -> 1.29 | N39: =IFERROR(RTD("cqg.rtd", ,"ContractData",A39, "LOw",, "T"),"") -> 1.23 | O39: =IFERROR(RTD("cqg.rtd", ,"ContractData",A39, "T_CVol",, "T"),"") -> 914618 | Q39: =IFERROR(O39/RTD("cqg.rtd",,"StudyData",A39, "MA", "InputChoice=Vol,MAType=Sim,Period=21", "MA","D","-1","all",,,,"T"),"") -> 0.1995200295 | R39: =XBI!Q128 -> https://finance.yahoo.com/quote/SGMO
A40: =TRIM(XBI!O129) -> S.US.GRAL | B40: News | C40: =IFERROR(RTD("cqg.rtd", ,"ContractData",A40, "LongDescription",, "T")&" ("&RIGHT(A40,LEN(A40)-5)&")","") -> GRAIL, Inc. (GRAL) | H40: =IFERROR(RTD("cqg.rtd", ,"ContractData",A40, "LastTradeToday",, "T"),"") -> 32.21 | I40: =IFERROR(RTD("cqg.rtd", ,"ContractData",A40, "NetLastTradeToday",, "T"),"") -> -0.78 | J40: =IFERROR(RTD("cqg.rtd", ,"ContractData",A40, "PerCentNetLastTrade",, "T")/100,"") -> -0.02364352834 | K40: =IFERROR(I40/RTD("cqg.rtd",,"StudyData",A40, "ATR", "MaType=Sim,Period=10", "ATR","D","-1","ALL",,,"FALSE","T")/100,"") -> -0.001996416688 | L40: =IFERROR(RTD("cqg.rtd", ,"ContractData",A40, "OPen",, "T"),"") -> 33 | M40: =IFERROR(RTD("cqg.rtd", ,"ContractData", A40, "HIgh",, "T"),"") -> 33.36 | N40: =IFERROR(RTD("cqg.rtd", ,"ContractData",A40, "LOw",, "T"),"") -> 31.62 | O40: =IFERROR(RTD("cqg.rtd", ,"ContractData",A40, "T_CVol",, "T"),"") -> 116029 | Q40: =IFERROR(O40/RTD("cqg.rtd",,"StudyData",A40, "MA", "InputChoice=Vol,MAType=Sim,Period=21", "MA","D","-1","all",,,,"T"),"") -> 0.09526826268 | R40: =XBI!Q129 -> https://finance.yahoo.com/quote/GRAL
A41: =TRIM(XBI!O130) -> S.US.EBS | B41: News | C41: =IFERROR(RTD("cqg.rtd", ,"ContractData",A41, "LongDescription",, "T")&" ("&RIGHT(A41,LEN(A41)-5)&")","") -> Emergent Biosolutions (EBS) | H41: =IFERROR(RTD("cqg.rtd", ,"ContractData",A41, "LastTradeToday",, "T"),"") -> 10.21 | I41: =IFERROR(RTD("cqg.rtd", ,"ContractData",A41, "NetLastTradeToday",, "T"),"") -> -0.25 | J41: =IFERROR(RTD("cqg.rtd", ,"ContractData",A41, "PerCentNetLastTrade",, "T")/100,"") -> -0.02390057361 | K41: =IFERROR(I41/RTD("cqg.rtd",,"StudyData",A41, "ATR", "MaType=Sim,Period=10", "ATR","D","-1","ALL",,,"FALSE","T")/100,"") -> -0.00393081761 | L41: =IFERROR(RTD("cqg.rtd", ,"ContractData",A41, "OPen",, "T"),"") -> 10.46 | M41: =IFERROR(RTD("cqg.rtd", ,"ContractData", A41, "HIgh",, "T"),"") -> 10.56 | N41: =IFERROR(RTD("cqg.rtd", ,"ContractData",A41, "LOw",, "T"),"") -> 10.05 | O41: =IFERROR(RTD("cqg.rtd", ,"ContractData",A41, "T_CVol",, "T"),"") -> 147978 | Q41: =IFERROR(O41/RTD("cqg.rtd",,"StudyData",A41, "MA", "InputChoice=Vol,MAType=Sim,Period=21", "MA","D","-1","all",,,,"T"),"") -> 0.1567310484 | R41: =XBI!Q130 -> https://finance.yahoo.com/quote/EBS
A42: =TRIM(XBI!O131) -> S.US.SANA | B42: News | C42: =IFERROR(RTD("cqg.rtd", ,"ContractData",A42, "LongDescription",, "T")&" ("&RIGHT(A42,LEN(A42)-5)&")","") -> Sana Biotechnology, Inc. (SANA) | H42: =IFERROR(RTD("cqg.rtd", ,"ContractData",A42, "LastTradeToday",, "T"),"") -> 3.18 | I42: =IFERROR(RTD("cqg.rtd", ,"ContractData",A42, "NetLastTradeToday",, "T"),"") -> -0.08 | J42: =IFERROR(RTD("cqg.rtd", ,"ContractData",A42, "PerCentNetLastTrade",, "T")/100,"") -> -0.0245398773 | K42: =IFERROR(I42/RTD("cqg.rtd",,"StudyData",A42, "ATR", "MaType=Sim,Period=10", "ATR","D","-1","ALL",,,"FALSE","T")/100,"") -> -0.002572347267 | L42: =IFERROR(RTD("cqg.rtd", ,"ContractData",A42, "OPen",, "T"),"") -> 3.26 | M42: =IFERROR(RTD("cqg.rtd", ,"ContractData", A42, "HIgh",, "T"),"") -> 3.29 | N42: =IFERROR(RTD("cqg.rtd", ,"ContractData",A42, "LOw",, "T"),"") -> 3.14 | O42: =IFERROR(RTD("cqg.rtd", ,"ContractData",A42, "T_CVol",, "T"),"") -> 355782 | Q42: =IFERROR(O42/RTD("cqg.rtd",,"StudyData",A42, "MA", "InputChoice=Vol,MAType=Sim,Period=21", "MA","D","-1","all",,,,"T"),"") -> 0.02201516667 | R42: =XBI!Q131 -> https://finance.yahoo.com/quote/SANA
A43: =TRIM(XBI!O132) -> S.US.DYN | B43: News | C43: =IFERROR(RTD("cqg.rtd", ,"ContractData",A43, "LongDescription",, "T")&" ("&RIGHT(A43,LEN(A43)-5)&")","") -> Dyne Therapeutics, Inc. (DYN) | H43: =IFERROR(RTD("cqg.rtd", ,"ContractData",A43, "LastTradeToday",, "T"),"") -> 16.24 | I43: =IFERROR(RTD("cqg.rtd", ,"ContractData",A43, "NetLastTradeToday",, "T"),"") -> -0.52 | J43: =IFERROR(RTD("cqg.rtd", ,"ContractData",A43, "PerCentNetLastTrade",, "T")/100,"") -> -0.03102625298 | K43: =IFERROR(I43/RTD("cqg.rtd",,"StudyData",A43, "ATR", "MaType=Sim,Period=10", "ATR","D","-1","ALL",,,"FALSE","T")/100,"") -> -0.00503875969 | L43: =IFERROR(RTD("cqg.rtd", ,"ContractData",A43, "OPen",, "T"),"") -> 16.75 | M43: =IFERROR(RTD("cqg.rtd", ,"ContractData", A43, "HIgh",, "T"),"") -> 16.75 | N43: =IFERROR(RTD("cqg.rtd", ,"ContractData",A43, "LOw",, "T"),"") -> 16.07 | O43: =IFERROR(RTD("cqg.rtd", ,"ContractData",A43, "T_CVol",, "T"),"") -> 138499 | Q43: =IFERROR(O43/RTD("cqg.rtd",,"StudyData",A43, "MA", "InputChoice=Vol,MAType=Sim,Period=21", "MA","D","-1","all",,,,"T"),"") -> 0.04559199577 | R43: =XBI!Q132 -> https://finance.yahoo.com/quote/DYN
A44: =TRIM(XBI!O133) -> S.US.CYTK | B44: News | C44: =IFERROR(RTD("cqg.rtd", ,"ContractData",A44, "LongDescription",, "T")&" ("&RIGHT(A44,LEN(A44)-5)&")","") -> Cytokinetics Inc (CYTK) | H44: =IFERROR(RTD("cqg.rtd", ,"ContractData",A44, "LastTradeToday",, "T"),"") -> 44.65 | I44: =IFERROR(RTD("cqg.rtd", ,"ContractData",A44, "NetLastTradeToday",, "T"),"") -> -1.52 | J44: =IFERROR(RTD("cqg.rtd", ,"ContractData",A44, "PerCentNetLastTrade",, "T")/100,"") -> -0.0329218107 | K44: =IFERROR(I44/RTD("cqg.rtd",,"StudyData",A44, "ATR", "MaType=Sim,Period=10", "ATR","D","-1","ALL",,,"FALSE","T")/100,"") -> -0.006048547553 | L44: =IFERROR(RTD("cqg.rtd", ,"ContractData",A44, "OPen",, "T"),"") -> 46.23 | M44: =IFERROR(RTD("cqg.rtd", ,"ContractData", A44, "HIgh",, "T"),"") -> 46.23 | N44: =IFERROR(RTD("cqg.rtd", ,"ContractData",A44, "LOw",, "T"),"") -> 44.25 | O44: =IFERROR(RTD("cqg.rtd", ,"ContractData",A44, "T_CVol",, "T"),"") -> 569548 | Q44: =IFERROR(O44/RTD("cqg.rtd",,"StudyData",A44, "MA", "InputChoice=Vol,MAType=Sim,Period=21", "MA","D","-1","all",,,,"T"),"") -> 0.4282691311 | R44: =XBI!Q133 -> https://finance.yahoo.com/quote/CYTK
A45: =TRIM(XBI!O134) -> S.US.LENZ | B45: News | C45: =IFERROR(RTD("cqg.rtd", ,"ContractData",A45, "LongDescription",, "T")&" ("&RIGHT(A45,LEN(A45)-5)&")","") -> LENZ Therapeutics, Inc. (LENZ) | H45: =IFERROR(RTD("cqg.rtd", ,"ContractData",A45, "LastTradeToday",, "T"),"") -> 25.81 | I45: =IFERROR(RTD("cqg.rtd", ,"ContractData",A45, "NetLastTradeToday",, "T"),"") -> -0.88 | J45: =IFERROR(RTD("cqg.rtd", ,"ContractData",A45, "PerCentNetLastTrade",, "T")/100,"") -> -0.03297115024 | K45: =IFERROR(I45/RTD("cqg.rtd",,"StudyData",A45, "ATR", "MaType=Sim,Period=10", "ATR","D","-1","ALL",,,"FALSE","T")/100,"") -> -0.006272273699 | L45: =IFERROR(RTD("cqg.rtd", ,"ContractData",A45, "OPen",, "T"),"") -> 26.38 | M45: =IFERROR(RTD("cqg.rtd", ,"ContractData", A45, "HIgh",, "T"),"") -> 26.67 | N45: =IFERROR(RTD("cqg.rtd", ,"ContractData",A45, "LOw",, "T"),"") -> 25.69 | O45: =IFERROR(RTD("cqg.rtd", ,"ContractData",A45, "T_CVol",, "T"),"") -> 21494 | Q45: =IFERROR(O45/RTD("cqg.rtd",,"StudyData",A45, "MA", "InputChoice=Vol,MAType=Sim,Period=21", "MA","D","-1","all",,,,"T"),"") -> 0.1339904806 | R45: =XBI!Q134 -> https://finance.yahoo.com/quote/LENZ
A46: =TRIM(XBI!O135) -> S.US.IRWD | B46: News | C46: =IFERROR(RTD("cqg.rtd", ,"ContractData",A46, "LongDescription",, "T")&" ("&RIGHT(A46,LEN(A46)-5)&")","") -> Ironwood Pharmaceuticals, Inc. (IRWD) | H46: =IFERROR(RTD("cqg.rtd", ,"ContractData",A46, "LastTradeToday",, "T"),"") -> 1.87 | I46: =IFERROR(RTD("cqg.rtd", ,"ContractData",A46, "NetLastTradeToday",, "T"),"") -> -0.07 | J46: =IFERROR(RTD("cqg.rtd", ,"ContractData",A46, "PerCentNetLastTrade",, "T")/100,"") -> -0.03608247423 | K46: =IFERROR(I46/RTD("cqg.rtd",,"StudyData",A46, "ATR", "MaType=Sim,Period=10", "ATR","D","-1","ALL",,,"FALSE","T")/100,"") -> -0.001902173913 | L46: =IFERROR(RTD("cqg.rtd", ,"ContractData",A46, "OPen",, "T"),"") -> 1.94 | M46: =IFERROR(RTD("cqg.rtd", ,"ContractData", A46, "HIgh",, "T"),"") -> 1.95 | N46: =IFERROR(RTD("cqg.rtd", ,"ContractData",A46, "LOw",, "T"),"") -> 1.87 | O46: =IFERROR(RTD("cqg.rtd", ,"ContractData",A46, "T_CVol",, "T"),"") -> 1535777 | Q46: =IFERROR(O46/RTD("cqg.rtd",,"StudyData",A46, "MA", "InputChoice=Vol,MAType=Sim,Period=21", "MA","D","-1","all",,,,"T"),"") -> 0.5715486006 | R46: =XBI!Q135 -> https://finance.yahoo.com/quote/IRWD
A47: =TRIM(XBI!O136) -> S.US.TRML | B47: News | C47: =IFERROR(RTD("cqg.rtd", ,"ContractData",A47, "LongDescription",, "T")&" ("&RIGHT(A47,LEN(A47)-5)&")","") -> Tourmaline Bio, Inc. (TRML) | H47: =IFERROR(RTD("cqg.rtd", ,"ContractData",A47, "LastTradeToday",, "T"),"") -> 14.34 | I47: =IFERROR(RTD("cqg.rtd", ,"ContractData",A47, "NetLastTradeToday",, "T"),"") -> -0.65 | J47: =IFERROR(RTD("cqg.rtd", ,"ContractData",A47, "PerCentNetLastTrade",, "T")/100,"") -> -0.04336224149 | K47: =IFERROR(I47/RTD("cqg.rtd",,"StudyData",A47, "ATR", "MaType=Sim,Period=10", "ATR","D","-1","ALL",,,"FALSE","T")/100,"") -> -0.007611241218 | L47: =IFERROR(RTD("cqg.rtd", ,"ContractData",A47, "OPen",, "T"),"") -> 14.97 | M47: =IFERROR(RTD("cqg.rtd", ,"ContractData", A47, "HIgh",, "T"),"") -> 15 | N47: =IFERROR(RTD("cqg.rtd", ,"ContractData",A47, "LOw",, "T"),"") -> 14.17 | O47: =IFERROR(RTD("cqg.rtd", ,"ContractData",A47, "T_CVol",, "T"),"") -> 43325 | Q47: =IFERROR(O47/RTD("cqg.rtd",,"StudyData",A47, "MA", "InputChoice=Vol,MAType=Sim,Period=21", "MA","D","-1","all",,,,"T"),"") -> 0.1453568486 | R47: =XBI!Q136 -> https://finance.yahoo.com/quote/TRML
A48: =TRIM(XBI!O137) -> S.US.NBIX | B48: News | C48: =IFERROR(RTD("cqg.rtd", ,"ContractData",A48, "LongDescription",, "T")&" ("&RIGHT(A48,LEN(A48)-5)&")","") -> Neurocrine Biosciences Inc (NBIX) | H48: =IFERROR(RTD("cqg.rtd", ,"ContractData",A48, "LastTradeToday",, "T"),"") -> 128.77 | I48: =IFERROR(RTD("cqg.rtd", ,"ContractData",A48, "NetLastTradeToday",, "T"),"") -> -21.74 | J48: =IFERROR(RTD("cqg.rtd", ,"ContractData",A48, "PerCentNetLastTrade",, "T")/100,"") -> -0.1444422298 | K48: =IFERROR(I48/RTD("cqg.rtd",,"StudyData",A48, "ATR", "MaType=Sim,Period=10", "ATR","D","-1","ALL",,,"FALSE","T")/100,"") -> -0.06055710306 | L48: =IFERROR(RTD("cqg.rtd", ,"ContractData",A48, "OPen",, "T"),"") -> 126.01 | M48: =IFERROR(RTD("cqg.rtd", ,"ContractData", A48, "HIgh",, "T"),"") -> 132 | N48: =IFERROR(RTD("cqg.rtd", ,"ContractData",A48, "LOw",, "T"),"") -> 124.53 | O48: =IFERROR(RTD("cqg.rtd", ,"ContractData",A48, "T_CVol",, "T"),"") -> 2122667 | Q48: =IFERROR(O48/RTD("cqg.rtd",,"StudyData",A48, "MA", "InputChoice=Vol,MAType=Sim,Period=21", "MA","D","-1","all",,,,"T"),"") -> 2.131441638 | R48: =XBI!Q137 -> https://finance.yahoo.com/quote/NBIX
B49: CQG Inc., Copyright © 2025 | E49: Designed by Thom Hartle | H49: Links to finance.yahoo.com | L49: Standard & Poor's®, S&P® and SPDR® are registered trademarks of Standard & Poor’s Financial Services LLC. | Z49: =XBI!AB170 -> 0.3868613139 | AA49: of the stocks in the ETF are higher today

Sheet XBI (hidden)
A1: =RTD("cqg.rtd", ,"ContractData",C1, "LongDescription",, "T") -> AbbVie Inc. | B1: S.US.ABBV | C1: S.US.ABBV | D1: =RTD("cqg.rtd", ,"ContractData",C1, "LongDescription",, "T") -> AbbVie Inc. | E1: =RTD("cqg.rtd", ,"ContractData",C1, "Open",, "T") -> 193.16 | F1: =RTD("cqg.rtd", ,"ContractData",C1, "High",, "T") -> 193.86 | G1: =RTD("cqg.rtd", ,"ContractData",C1, "Low",, "T") -> 192.31 | H1: =RTD("cqg.rtd", ,"ContractData",C1, "LastTradeToday",, "T") -> 193.25 | I1: =RTD("cqg.rtd", ,"ContractData",C1, "NetLastTradeToday",, "T") -> 0.28 | J1: =IFERROR(RTD("cqg.rtd", ,"ContractData",C1, "PerCentNetLastTrade",, "T")/100,0) -> 0.001451002747 | K1: =RTD("cqg.rtd", ,"ContractData", C1, "T_CVol",, "T") -> 393952 | L1: 1 | M1: =RANK($J1,$J$1:J$137)+COUNTIF($J$1:J1,J1)-1 -> 47 | N1: =C1 -> S.US.ABBV | O1: =VLOOKUP($L1,$M$1:$N$137,2,FALSE) -> S.US.TSHA | P1: =RTD("cqg.rtd", ,"ContractData",O1, "PerCentNetLastTrade",, "T")/100 -> 0.06626506024 | Q1: ="https://finance.yahoo.com/quote/"&RIGHT(O1,(LEN(O1)-5)) -> https://finance.yahoo.com/quote/TSHA | S1: =IF(P1>=0,P1,NA()) -> 0.06626506024 | T1: =IF(P1>=0,NA(),-1*P1) ->  | V1: =IFERROR(RTD("cqg.rtd", ,"ContractData",O1, "LongDescription",, "T"),"") -> Taysha Gene Therapies, Inc. | Y1: =IFERROR(S1,P1) -> 0.06626506024 | AA1: =IF(S1="NA()",0,1) -> 1 | AB1: =IFERROR(AA1,0) -> 1 | AD1: =IFERROR(S1,"") -> 0.06626506024 | AE1: =IFERROR(T1,"") ->  | AF1: =IF(AE1="","",Y1) -> 
A2: =RTD("cqg.rtd", ,"ContractData",C2, "LongDescription",, "T") -> Arbutus Biopharma Corporation | B2: S.US.ABUS | C2: S.US.ABUS | D2: =RTD("cqg.rtd", ,"ContractData",C2, "LongDescription",, "T") -> Arbutus Biopharma Corporation | E2: =RTD("cqg.rtd", ,"ContractData",C2, "Open",, "T") -> 3.41 | F2: =RTD("cqg.rtd", ,"ContractData",C2, "High",, "T") -> 3.44 | G2: =RTD("cqg.rtd", ,"ContractData",C2, "Low",, "T") -> 3.34 | H2: =RTD("cqg.rtd", ,"ContractData",C2, "LastTradeToday",, "T") -> 3.35 | I2: =RTD("cqg.rtd", ,"ContractData",C2, "NetLastTradeToday",, "T") -> -0.06 | J2: =IFERROR(RTD("cqg.rtd", ,"ContractData",C2, "PerCentNetLastTrade",, "T")/100,0) -> -0.01759530792 | K2: =RTD("cqg.rtd", ,"ContractData", C2, "T_CVol",, "T") -> 54236 | L2: =L1+1 -> 2 | M2: =RANK($J2,$J$1:J$137)+COUNTIF($J$1:J2,J2)-1 -> 121 | N2: S.US.ABUS | O2: =VLOOKUP($L2,$M$1:$N$137,2,FALSE) -> S.US.SCLX | P2: =RTD("cqg.rtd", ,"ContractData",O2, "PerCentNetLastTrade",, "T")/100 -> 0.05555555556 | Q2: ="https://finance.yahoo.com/quote/"&RIGHT(O2,(LEN(O2)-5)) -> https://finance.yahoo.com/quote/SCLX | S2: =IF(P2>=0,P2,NA()) -> 0.05555555556 | T2: =IF(P2>=0,NA(),-1*P2) ->  | V2: =IFERROR(RTD("cqg.rtd", ,"ContractData",O2, "LongDescription",, "T"),"") -> Scilex Holding Company | Y2: =IFERROR(S2,P2) -> 0.05555555556 | AA2: =IF(S2="NA()",0,1) -> 1 | AB2: =IFERROR(AA2,0) -> 1 | AD2: =IFERROR(S2,"") -> 0.05555555556 | AE2: =IFERROR(T2,"") ->  | AF2: =IF(AE2="","",Y2) -> 
A3: =RTD("cqg.rtd", ,"ContractData",C3, "LongDescription",, "T") -> ACADIA Pharmaceuticals, Inc. | B3: S.US.ACAD | C3: S.US.ACAD | D3: =RTD("cqg.rtd", ,"ContractData",C3, "LongDescription",, "T") -> ACADIA Pharmaceuticals, Inc. | E3: =RTD("cqg.rtd", ,"ContractData",C3, "Open",, "T") -> 19.06 | F3: =RTD("cqg.rtd", ,"ContractData",C3, "High",, "T") -> 19.14 | G3: =RTD("cqg.rtd", ,"ContractData",C3, "Low",, "T") -> 18.95 | H3: =RTD("cqg.rtd", ,"ContractData",C3, "LastTradeToday",, "T") -> 19.08 | I3: =RTD("cqg.rtd", ,"ContractData",C3, "NetLastTradeToday",, "T") -> -0.05 | J3: =IFERROR(RTD("cqg.rtd", ,"ContractData",C3, "PerCentNetLastTrade",, "T")/100,0) -> -0.002613695766 | K3: =RTD("cqg.rtd", ,"ContractData", C3, "T_CVol",, "T") -> 141300 | L3: =L2+1 -> 3 | M3: =RANK($J3,$J$1:J$137)+COUNTIF($J$1:J3,J3)-1 -> 64 | N3: S.US.ACAD | O3: S.US.RXRX | P3: =RTD("cqg.rtd", ,"ContractData",O3, "PerCentNetLastTrade",, "T")/100 -> 0.03729281768 | Q3: https://finance.yahoo.com/quote/RXRX | S3: 0.03729281768 | V3: =IFERROR(RTD("cqg.rtd", ,"ContractData",O3, "LongDescription",, "T"),"") -> Recursion Pharmaceuticals, Inc. Class A | Y3: 0.03729281768 | AA3: 1 | AB3: 1 | AD3: 0.03729281768
A4: =RTD("cqg.rtd", ,"ContractData",C4, "LongDescription",, "T") -> Arcellx, Inc | B4: S.US.ACLX | C4: S.US.ACLX | D4: =RTD("cqg.rtd", ,"ContractData",C4, "LongDescription",, "T") -> Arcellx, Inc | E4: =RTD("cqg.rtd", ,"ContractData",C4, "Open",, "T") -> 68.09 | F4: =RTD("cqg.rtd", ,"ContractData",C4, "High",, "T") -> 69.24 | G4: =RTD("cqg.rtd", ,"ContractData",C4, "Low",, "T") -> 67.86 | H4: =RTD("cqg.rtd", ,"ContractData",C4, "LastTradeToday",, "T") -> 68.91 | I4: =RTD("cqg.rtd", ,"ContractData",C4, "NetLastTradeToday",, "T") -> 0.67 | J4: =IFERROR(RTD("cqg.rtd", ,"ContractData",C4, "PerCentNetLastTrade",, "T")/100,0) -> 0.009818288394 | K4: =RTD("cqg.rtd", ,"ContractData", C4, "T_CVol",, "T") -> 71289 | L4: 4 | M4: =RANK($J4,$J$1:J$137)+COUNTIF($J$1:J4,J4)-1 -> 22 | N4: S.US.ACLX | O4: S.US.VKTX | P4: =RTD("cqg.rtd", ,"ContractData",O4, "PerCentNetLastTrade",, "T")/100 -> 0.03273998729 | Q4: https://finance.yahoo.com/quote/VKTX | S4: 0.03273998729 | V4: =IFERROR(RTD("cqg.rtd", ,"ContractData",O4, "LongDescription",, "T"),"") -> Viking Therapeutics, Inc. | Y4: 0.03273998729 | AA4: 1 | AB4: 1 | AD4: 0.03273998729
A5: =RTD("cqg.rtd", ,"ContractData",C5, "LongDescription",, "T") -> ADMA Biologics Inc | B5: S.US.ADMA | C5: S.US.ADMA | D5: =RTD("cqg.rtd", ,"ContractData",C5, "LongDescription",, "T") -> ADMA Biologics Inc | E5: =RTD("cqg.rtd", ,"ContractData",C5, "Open",, "T") -> 16.9 | F5: =RTD("cqg.rtd", ,"ContractData",C5, "High",, "T") -> 17.06 | G5: =RTD("cqg.rtd", ,"ContractData",C5, "Low",, "T") -> 16.74 | H5: =RTD("cqg.rtd", ,"ContractData",C5, "LastTradeToday",, "T") -> 16.78 | I5: =RTD("cqg.rtd", ,"ContractData",C5, "NetLastTradeToday",, "T") -> -0.14 | J5: =IFERROR(RTD("cqg.rtd", ,"ContractData",C5, "PerCentNetLastTrade",, "T")/100,0) -> -0.008274231678 | K5: =RTD("cqg.rtd", ,"ContractData", C5, "T_CVol",, "T") -> 213549 | L5: 5 | M5: =RANK($J5,$J$1:J$137)+COUNTIF($J$1:J5,J5)-1 -> 84 | N5: S.US.ADMA | O5: S.US.PTGX | P5: =RTD("cqg.rtd", ,"ContractData",O5, "PerCentNetLastTrade",, "T")/100 -> 0.02569536424 | Q5: https://finance.yahoo.com/quote/PTGX | S5: 0.02569536424 | V5: =IFERROR(RTD("cqg.rtd", ,"ContractData",O5, "LongDescription",, "T"),"") -> Protagonist Therapeutics, Inc. | Y5: 0.02569536424 | AA5: 1 | AB5: 1 | AD5: 0.02569536424
A6: =RTD("cqg.rtd", ,"ContractData",C6, "LongDescription",, "T") -> Agios Pharmaceuticals, Inc. | B6: S.US.AGIO | C6: S.US.AGIO | D6: =RTD("cqg.rtd", ,"ContractData",C6, "LongDescription",, "T") -> Agios Pharmaceuticals, Inc. | E6: =RTD("cqg.rtd", ,"ContractData",C6, "Open",, "T") -> 34.27 | F6: =RTD("cqg.rtd", ,"ContractData",C6, "High",, "T") -> 34.27 | G6: =RTD("cqg.rtd", ,"ContractData",C6, "Low",, "T") -> 33.81 | H6: =RTD("cqg.rtd", ,"ContractData",C6, "LastTradeToday",, "T") -> 33.99 | I6: =RTD("cqg.rtd", ,"ContractData",C6, "NetLastTradeToday",, "T") -> -0.43 | J6: =IFERROR(RTD("cqg.rtd", ,"ContractData",C6, "PerCentNetLastTrade",, "T")/100,0) -> -0.01249273678 | K6: =RTD("cqg.rtd", ,"ContractData", C6, "T_CVol",, "T") -> 34828 | L6: 6 | M6: =RANK($J6,$J$1:J$137)+COUNTIF($J$1:J6,J6)-1 -> 103 | N6: S.US.AGIO | O6: S.US.IMVT | P6: =RTD("cqg.rtd", ,"ContractData",O6, "PerCentNetLastTrade",, "T")/100 -> 0.02504911591 | Q6: https://finance.yahoo.com/quote/IMVT | S6: 0.02504911591 | V6: =IFERROR(RTD("cqg.rtd", ,"ContractData",O6, "LongDescription",, "T"),"") -> Immunovant, Inc. | Y6: 0.02504911591 | AA6: 1 | AB6: 1 | AD6: 0.02504911591
A7: =RTD("cqg.rtd", ,"ContractData",C7, "LongDescription",, "T") -> Akebia Therapeutics, Inc. | B7: S.US.AKBA | C7: S.US.AKBA | D7: =RTD("cqg.rtd", ,"ContractData",C7, "LongDescription",, "T") -> Akebia Therapeutics, Inc. | E7: =RTD("cqg.rtd", ,"ContractData",C7, "Open",, "T") -> 2.17 | F7: =RTD("cqg.rtd", ,"ContractData",C7, "High",, "T") -> 2.19 | G7: =RTD("cqg.rtd", ,"ContractData",C7, "Low",, "T") -> 2.13 | H7: =RTD("cqg.rtd", ,"ContractData",C7, "LastTradeToday",, "T") -> 2.14 | I7: =RTD("cqg.rtd", ,"ContractData",C7, "NetLastTradeToday",, "T") -> -0.02 | J7: =IFERROR(RTD("cqg.rtd", ,"ContractData",C7, "PerCentNetLastTrade",, "T")/100,0) -> -0.009259259259 | K7: =RTD("cqg.rtd", ,"ContractData", C7, "T_CVol",, "T") -> 232124 | L7: 7 | M7: =RANK($J7,$J$1:J$137)+COUNTIF($J$1:J7,J7)-1 -> 93 | N7: S.US.AKBA | O7: S.US.SWTX | P7: =RTD("cqg.rtd", ,"ContractData",O7, "PerCentNetLastTrade",, "T")/100 -> 0.02240325866 | Q7: https://finance.yahoo.com/quote/SWTX | S7: 0.02240325866 | V7: =IFERROR(RTD("cqg.rtd", ,"ContractData",O7, "LongDescription",, "T"),"") -> SpringWorks Therapeutics, Inc. | Y7: 0.02240325866 | AA7: 1 | AB7: 1 | AD7: 0.02240325866
A8: =RTD("cqg.rtd", ,"ContractData",C8, "LongDescription",, "T") -> Akero Therapeutics, Inc. | B8: S.US.AKRO | C8: S.US.AKRO | D8: =RTD("cqg.rtd", ,"ContractData",C8, "LongDescription",, "T") -> Akero Therapeutics, Inc. | E8: =RTD("cqg.rtd", ,"ContractData",C8, "Open",, "T") -> 54.81 | F8: =RTD("cqg.rtd", ,"ContractData",C8, "High",, "T") -> 55.32 | G8: =RTD("cqg.rtd", ,"ContractData",C8, "Low",, "T") -> 54.03 | H8: =RTD("cqg.rtd", ,"ContractData",C8, "LastTradeToday",, "T") -> 54.65 | I8: =RTD("cqg.rtd", ,"ContractData",C8, "NetLastTradeToday",, "T") -> -0.3 | J8: =IFERROR(RTD("cqg.rtd", ,"ContractData",C8, "PerCentNetLastTrade",, "T")/100,0) -> -0.005459508644 | K8: =RTD("cqg.rtd", ,"ContractData", C8, "T_CVol",, "T") -> 99467 | L8: 8 | M8: =RANK($J8,$J$1:J$137)+COUNTIF($J$1:J8,J8)-1 -> 73 | N8: S.US.AKRO | O8: S.US.DNTH | P8: =(RTD("cqg.rtd",,"ContractData",O8,"LastTradeToday",,"T")-RTD("cqg.rtd",,"ContractData",O8,"Y_Close",,"T"))/RTD("cqg.rtd",,"ContractData",O8,"Y_Close",,"T") -> 0.02221254355 | Q8: https://finance.yahoo.com/quote/DNTH | S8: 0.02221254355 | V8: =IFERROR(RTD("cqg.rtd", ,"ContractData",O8, "LongDescription",, "T"),"") -> Dianthus Therapeutics Inc | Y8: 0.02221254355 | AA8: 1 | AB8: 1 | AD8: 0.02221254355
A9: =RTD("cqg.rtd", ,"ContractData",C9, "LongDescription",, "T") -> Alkermes plc | B9: S.US.ALKS | C9: S.US.ALKS | D9: =RTD("cqg.rtd", ,"ContractData",C9, "LongDescription",, "T") -> Alkermes plc | E9: =RTD("cqg.rtd", ,"ContractData",C9, "Open",, "T") -> 31.24 | F9: =RTD("cqg.rtd", ,"ContractData",C9, "High",, "T") -> 31.55 | G9: =RTD("cqg.rtd", ,"ContractData",C9, "Low",, "T") -> 31.23 | H9: =RTD("cqg.rtd", ,"ContractData",C9, "LastTradeToday",, "T") -> 31.45 | I9: =RTD("cqg.rtd", ,"ContractData",C9, "NetLastTradeToday",, "T") -> 0.06 | J9: =IFERROR(RTD("cqg.rtd", ,"ContractData",C9, "PerCentNetLastTrade",, "T")/100,0) -> 0.001911436763 | K9: =RTD("cqg.rtd", ,"ContractData", C9, "T_CVol",, "T") -> 79449 | L9: 9 | M9: =RANK($J9,$J$1:J$137)+COUNTIF($J$1:J9,J9)-1 -> 46 | N9: S.US.ALKS | O9: S.US.CRGX | P9: =RTD("cqg.rtd", ,"ContractData",O9, "PerCentNetLastTrade",, "T")/100 -> 0.02162162162 | Q9: https://finance.yahoo.com/quote/CRGX | S9: 0.02162162162 | V9: =IFERROR(RTD("cqg.rtd", ,"ContractData",O9, "LongDescription",, "T"),"") -> CARGO Therapeutics, Inc. | Y9: 0.02162162162 | AA9: 1 | AB9: 1 | AD9: 0.02162162162
A10: =RTD("cqg.rtd", ,"ContractData",C10, "LongDescription",, "T") -> Allogene Therapeutics, Inc. | B10: S.US.ALLO | C10: S.US.ALLO | D10: =RTD("cqg.rtd", ,"ContractData",C10, "LongDescription",, "T") -> Allogene Therapeutics, Inc. | E10: =RTD("cqg.rtd", ,"ContractData",C10, "Open",, "T") -> 1.6 | F10: =RTD("cqg.rtd", ,"ContractData",C10, "High",, "T") -> 1.61 | G10: =RTD("cqg.rtd", ,"ContractData",C10, "Low",, "T") -> 1.56 | H10: =RTD("cqg.rtd", ,"ContractData",C10, "LastTradeToday",, "T") -> 1.59 | I10: =RTD("cqg.rtd", ,"ContractData",C10, "NetLastTradeToday",, "T") -> -0.01 | J10: =IFERROR(RTD("cqg.rtd", ,"ContractData",C10, "PerCentNetLastTrade",, "T")/100,0) -> -0.00625 | K10: =RTD("cqg.rtd", ,"ContractData", C10, "T_CVol",, "T") -> 240754 | L10: 10 | M10: =RANK($J10,$J$1:J$137)+COUNTIF($J$1:J10,J10)-1 -> 77 | N10: S.US.ALLO | O10: S.US.IBRX | P10: =RTD("cqg.rtd", ,"ContractData",O10, "PerCentNetLastTrade",, "T")/100 -> 0.02114803625 | Q10: https://finance.yahoo.com/quote/IBRX | S10: 0.02114803625 | V10: =IFERROR(RTD("cqg.rtd", ,"ContractData",O10, "LongDescription",, "T"),"") -> ImmunityBio, Inc. | Y10: 0.02114803625 | AA10: 1 | AB10: 1 | AD10: 0.02114803625
A11: =RTD("cqg.rtd", ,"ContractData",C11, "LongDescription",, "T") -> Alnylam Pharmaceuticals, Inc. | B11: S.US.ALNY | C11: S.US.ALNY | D11: =RTD("cqg.rtd", ,"ContractData",C11, "LongDescription",, "T") -> Alnylam Pharmaceuticals, Inc. | E11: =RTD("cqg.rtd", ,"ContractData",C11, "Open",, "T") -> 276.91 | F11: =RTD("cqg.rtd", ,"ContractData",C11, "High",, "T") -> 278.03 | G11: =RTD("cqg.rtd", ,"ContractData",C11, "Low",, "T") -> 273.21 | H11: =RTD("cqg.rtd", ,"ContractData",C11, "LastTradeToday",, "T") -> 274.65 | I11: =RTD("cqg.rtd", ,"ContractData",C11, "NetLastTradeToday",, "T") -> -3.6 | J11: =IFERROR(RTD("cqg.rtd", ,"ContractData",C11, "PerCentNetLastTrade",, "T")/100,0) -> -0.01293800539 | K11: =RTD("cqg.rtd", ,"ContractData", C11, "T_CVol",, "T") -> 51110 | L11: 11 | M11: =RANK($J11,$J$1:J$137)+COUNTIF($J$1:J11,J11)-1 -> 105 | N11: S.US.ALNY | O11: S.US.ARWR | P11: =RTD("cqg.rtd", ,"ContractData",O11, "PerCentNetLastTrade",, "T")/100 -> 0.017578125 | Q11: https://finance.yahoo.com/quote/ARWR | S11: 0.017578125 | V11: =IFERROR(RTD("cqg.rtd", ,"ContractData",O11, "LongDescription",, "T"),"") -> Arrowhead Pharmaceuticals, Inc. | Y11: 0.017578125 | AA11: 1 | AB11: 1 | AD11: 0.017578125
A12: =RTD("cqg.rtd", ,"ContractData",C12, "LongDescription",, "T") -> Altimmune, Inc. | B12: S.US.ALT | C12: S.US.ALT | D12: =RTD("cqg.rtd", ,"ContractData",C12, "LongDescription",, "T") -> Altimmune, Inc. | E12: =RTD("cqg.rtd", ,"ContractData",C12, "Open",, "T") -> 6.87 | F12: =RTD("cqg.rtd", ,"ContractData",C12, "High",, "T") -> 7.05 | G12: =RTD("cqg.rtd", ,"ContractData",C12, "Low",, "T") -> 6.87 | H12: =RTD("cqg.rtd", ,"ContractData",C12, "LastTradeToday",, "T") -> 6.99 | I12: =RTD("cqg.rtd", ,"ContractData",C12, "NetLastTradeToday",, "T") -> 0.08 | J12: =IFERROR(RTD("cqg.rtd", ,"ContractData",C12, "PerCentNetLastTrade",, "T")/100,0) -> 0.01157742402 | K12: =RTD("cqg.rtd", ,"ContractData", C12, "T_CVol",, "T") -> 214929 | L12: 12 | M12: =RANK($J12,$J$1:J$137)+COUNTIF($J$1:J12,J12)-1 -> 16 | N12: S.US.ALT | O12: S.US.BCRX | P12: =RTD("cqg.rtd", ,"ContractData",O12, "PerCentNetLastTrade",, "T")/100 -> 0.01603665521 | Q12: https://finance.yahoo.com/quote/BCRX | S12: 0.01603665521 | V12: =IFERROR(RTD("cqg.rtd", ,"ContractData",O12, "LongDescription",, "T"),"") -> Biocryst Pharmaceuticals Inc | Y12: 0.01603665521 | AA12: 1 | AB12: 1 | AD12: 0.01603665521
A13: =RTD("cqg.rtd", ,"ContractData",C13, "LongDescription",, "T") -> Amgen Inc | B13: S.US.AMGN | C13: S.US.AMGN | D13: =RTD("cqg.rtd", ,"ContractData",C13, "LongDescription",, "T") -> Amgen Inc | E13: =RTD("cqg.rtd", ,"ContractData",C13, "Open",, "T") -> 299.16 | F13: =RTD("cqg.rtd", ,"ContractData",C13, "High",, "T") -> 299.61 | G13: =RTD("cqg.rtd", ,"ContractData",C13, "Low",, "T") -> 294.13 | H13: =RTD("cqg.rtd", ,"ContractData",C13, "LastTradeToday",, "T") -> 296.7 | I13: =RTD("cqg.rtd", ,"ContractData",C13, "NetLastTradeToday",, "T") -> -1.08 | J13: =IFERROR(RTD("cqg.rtd", ,"ContractData",C13, "PerCentNetLastTrade",, "T")/100,0) -> -0.003626838606 | K13: =RTD("cqg.rtd", ,"ContractData", C13, "T_CVol",, "T") -> 381421 | L13: 13 | M13: =RANK($J13,$J$1:J$137)+COUNTIF($J$1:J13,J13)-1 -> 66 | N13: S.US.AMGN | O13: S.US.PTCT | P13: =RTD("cqg.rtd", ,"ContractData",O13, "PerCentNetLastTrade",, "T")/100 -> 0.01285398674 | Q13: https://finance.yahoo.com/quote/PTCT | S13: 0.01285398674 | V13: =IFERROR(RTD("cqg.rtd", ,"ContractData",O13, "LongDescription",, "T"),"") -> PTC Therapeutics, Inc | Y13: 0.01285398674 | AA13: 1 | AB13: 1 | AD13: 0.01285398674
A14: =RTD("cqg.rtd", ,"ContractData",C14, "LongDescription",, "T") -> AnaptysBio, Inc. | B14: S.US.ANAB | C14: S.US.ANAB | D14: =RTD("cqg.rtd", ,"ContractData",C14, "LongDescription",, "T") -> AnaptysBio, Inc. | E14: =RTD("cqg.rtd", ,"ContractData",C14, "Open",, "T") -> 16.09 | F14: =RTD("cqg.rtd", ,"ContractData",C14, "High",, "T") -> 16.21 | G14: =RTD("cqg.rtd", ,"ContractData",C14, "Low",, "T") -> 15.66 | H14: =RTD("cqg.rtd", ,"ContractData",C14, "LastTradeToday",, "T") -> 15.73 | I14: =RTD("cqg.rtd", ,"ContractData",C14, "NetLastTradeToday",, "T") -> -0.35 | J14: =IFERROR(RTD("cqg.rtd", ,"ContractData",C14, "PerCentNetLastTrade",, "T")/100,0) -> -0.02176616915 | K14: =RTD("cqg.rtd", ,"ContractData", C14, "T_CVol",, "T") -> 59216 | L14: 14 | M14: =RANK($J14,$J$1:J$137)+COUNTIF($J$1:J14,J14)-1 -> 123 | N14: S.US.ANAB | O14: S.US.ORIC | P14: =RTD("cqg.rtd", ,"ContractData",O14, "PerCentNetLastTrade",, "T")/100 -> 0.01275917065 | Q14: https://finance.yahoo.com/quote/ORIC | S14: 0.01275917065 | V14: =IFERROR(RTD("cqg.rtd", ,"ContractData",O14, "LongDescription",, "T"),"") -> Oric Pharmaceuticals, Inc | Y14: 0.01275917065 | AA14: 1 | AB14: 1 | AD14: 0.01275917065
A15: =RTD("cqg.rtd", ,"ContractData",C15, "LongDescription",, "T") -> Annexon, Inc. | B15: S.US.ANNX | C15: S.US.ANNX | D15: =RTD("cqg.rtd", ,"ContractData",C15, "LongDescription",, "T") -> Annexon, Inc. | E15: =RTD("cqg.rtd", ,"ContractData",C15, "Open",, "T") -> 3.57 | F15: =RTD("cqg.rtd", ,"ContractData",C15, "High",, "T") -> 3.6 | G15: =RTD("cqg.rtd", ,"ContractData",C15, "Low",, "T") -> 3.5 | H15: =RTD("cqg.rtd", ,"ContractData",C15, "LastTradeToday",, "T") -> 3.52 | I15: =RTD("cqg.rtd", ,"ContractData",C15, "NetLastTradeToday",, "T") -> -0.05 | J15: =IFERROR(RTD("cqg.rtd", ,"ContractData",C15, "PerCentNetLastTrade",, "T")/100,0) -> -0.01400560224 | K15: =RTD("cqg.rtd", ,"ContractData", C15, "T_CVol",, "T") -> 98446 | L15: 15 | M15: =RANK($J15,$J$1:J$137)+COUNTIF($J$1:J15,J15)-1 -> 107 | N15: S.US.ANNX | O15: S.US.MIRM | P15: =RTD("cqg.rtd", ,"ContractData",O15, "PerCentNetLastTrade",, "T")/100 -> 0.01249268007 | Q15: https://finance.yahoo.com/quote/MIRM | S15: 0.01249268007 | V15: =IFERROR(RTD("cqg.rtd", ,"ContractData",O15, "LongDescription",, "T"),"") -> Mirum Pharmaceuticals, Inc. | Y15: 0.01249268007 | AA15: 1 | AB15: 1 | AD15: 0.01249268007
A16: =RTD("cqg.rtd", ,"ContractData",C16, "LongDescription",, "T") -> Apogee Therapeutics, Inc. | B16: S.US.APGE | C16: S.US.APGE | D16: =RTD("cqg.rtd", ,"ContractData",C16, "LongDescription",, "T") -> Apogee Therapeutics, Inc. | E16: =RTD("cqg.rtd", ,"ContractData",C16, "Open",, "T") -> 41.68 | F16: =RTD("cqg.rtd", ,"ContractData",C16, "High",, "T") -> 42.14 | G16: =RTD("cqg.rtd", ,"ContractData",C16, "Low",, "T") -> 40.38 | H16: =RTD("cqg.rtd", ,"ContractData",C16, "LastTradeToday",, "T") -> 41.05 | I16: =RTD("cqg.rtd", ,"ContractData",C16, "NetLastTradeToday",, "T") -> -0.59 | J16: =IFERROR(RTD("cqg.rtd", ,"ContractData",C16, "PerCentNetLastTrade",, "T")/100,0) -> -0.0141690682 | K16: =RTD("cqg.rtd", ,"ContractData", C16, "T_CVol",, "T") -> 31063 | L16: 16 | M16: =RANK($J16,$J$1:J$137)+COUNTIF($J$1:J16,J16)-1 -> 108 | N16: S.US.APGE | O16: S.US.ALT | P16: =RTD("cqg.rtd", ,"ContractData",O16, "PerCentNetLastTrade",, "T")/100 -> 0.01157742402 | Q16: https://finance.yahoo.com/quote/ALT | S16: 0.01157742402 | V16: =IFERROR(RTD("cqg.rtd", ,"ContractData",O16, "LongDescription",, "T"),"") -> Altimmune, Inc. | Y16: 0.01157742402 | AA16: 1 | AB16: 1 | AD16: 0.01157742402
A17: =RTD("cqg.rtd", ,"ContractData",C17, "LongDescription",, "T") -> Apellis Pharmaceuticals, Inc. | B17: S.US.APLS | C17: S.US.APLS | D17: =RTD("cqg.rtd", ,"ContractData",C17, "LongDescription",, "T") -> Apellis Pharmaceuticals, Inc. | E17: =RTD("cqg.rtd", ,"ContractData",C17, "Open",, "T") -> 30 | F17: =RTD("cqg.rtd", ,"ContractData",C17, "High",, "T") -> 30.26 | G17: =RTD("cqg.rtd", ,"ContractData",C17, "Low",, "T") -> 29.77 | H17: =RTD("cqg.rtd", ,"ContractData",C17, "LastTradeToday",, "T") -> 29.94 | I17: =RTD("cqg.rtd", ,"ContractData",C17, "NetLastTradeToday",, "T") -> -0.26 | J17: =IFERROR(RTD("cqg.rtd", ,"ContractData",C17, "PerCentNetLastTrade",, "T")/100,0) -> -0.008609271523 | K17: =RTD("cqg.rtd", ,"ContractData", C17, "T_CVol",, "T") -> 43909 | L17: 17 | M17: =RANK($J17,$J$1:J$137)+COUNTIF($J$1:J17,J17)-1 -> 88 | N17: S.US.APLS | O17: S.US.INCY | P17: =RTD("cqg.rtd", ,"ContractData",O17, "PerCentNetLastTrade",, "T")/100 -> 0.01147431621 | Q17: https://finance.yahoo.com/quote/INCY | S17: 0.01147431621 | V17: =IFERROR(RTD("cqg.rtd", ,"ContractData",O17, "LongDescription",, "T"),"") -> Incyte Corporation | Y17: 0.01147431621 | AA17: 1 | AB17: 1 | AD17: 0.01147431621
A18: =RTD("cqg.rtd", ,"ContractData",C18, "LongDescription",, "T") -> Arcturus Therapeutics Holdings Inc. | B18: S.US.ARCT | C18: S.US.ARCT | D18: =RTD("cqg.rtd", ,"ContractData",C18, "LongDescription",, "T") -> Arcturus Therapeutics Holdings Inc. | E18: =RTD("cqg.rtd", ,"ContractData",C18, "Open",, "T") -> 17.18 | F18: =RTD("cqg.rtd", ,"ContractData",C18, "High",, "T") -> 17.48 | G18: =RTD("cqg.rtd", ,"ContractData",C18, "Low",, "T") -> 16.97 | H18: =RTD("cqg.rtd", ,"ContractData",C18, "LastTradeToday",, "T") -> 16.97 | I18: =RTD("cqg.rtd", ,"ContractData",C18, "NetLastTradeToday",, "T") -> -0.32 | J18: =IFERROR(RTD("cqg.rtd", ,"ContractData",C18, "PerCentNetLastTrade",, "T")/100,0) -> -0.01850780798 | K18: =RTD("cqg.rtd", ,"ContractData", C18, "T_CVol",, "T") -> 24775 | L18: 18 | M18: =RANK($J18,$J$1:J$137)+COUNTIF($J$1:J18,J18)-1 -> 122 | N18: S.US.ARCT | O18: S.US.VERV | P18: =RTD("cqg.rtd", ,"ContractData",O18, "PerCentNetLastTrade",, "T")/100 -> 0.01076555024 | Q18: https://finance.yahoo.com/quote/VERV | S18: 0.01076555024 | V18: =IFERROR(RTD("cqg.rtd", ,"ContractData",O18, "LongDescription",, "T"),"") -> Verve Therapeutics, Inc. | Y18: 0.01076555024 | AA18: 1 | AB18: 1 | AD18: 0.01076555024
A19: =RTD("cqg.rtd", ,"ContractData",C19, "LongDescription",, "T") -> Ardelyx, Inc. | B19: S.US.ARDX | C19: S.US.ARDX | D19: =RTD("cqg.rtd", ,"ContractData",C19, "LongDescription",, "T") -> Ardelyx, Inc. | E19: =RTD("cqg.rtd", ,"ContractData",C19, "Open",, "T") -> 5.69 | F19: =RTD("cqg.rtd", ,"ContractData",C19, "High",, "T") -> 5.77 | G19: =RTD("cqg.rtd", ,"ContractData",C19, "Low",, "T") -> 5.65 | H19: =RTD("cqg.rtd", ,"ContractData",C19, "LastTradeToday",, "T") -> 5.71 | I19: =RTD("cqg.rtd", ,"ContractData",C19, "NetLastTradeToday",, "T") -> 0.04 | J19: =IFERROR(RTD("cqg.rtd", ,"ContractData",C19, "PerCentNetLastTrade",, "T")/100,0) -> 0.007054673721 | K19: =RTD("cqg.rtd", ,"ContractData", C19, "T_CVol",, "T") -> 240205 | L19: 19 | M19: =RANK($J19,$J$1:J$137)+COUNTIF($J$1:J19,J19)-1 -> 31 | N19: S.US.ARDX | O19: S.US.STOK | P19: =RTD("cqg.rtd", ,"ContractData",O19, "PerCentNetLastTrade",, "T")/100 -> 0.01020408163 | Q19: https://finance.yahoo.com/quote/STOK | S19: 0.01020408163 | V19: =IFERROR(RTD("cqg.rtd", ,"ContractData",O19, "LongDescription",, "T"),"") -> Stoke Therapeutics, Inc. | Y19: 0.01020408163 | AA19: 1 | AB19: 1 | AD19: 0.01020408163
A20: =RTD("cqg.rtd", ,"ContractData",C20, "LongDescription",, "T") -> Arcutis Biotherapeutics, Inc. | B20: S.US.ARQT | C20: S.US.ARQT | D20: =RTD("cqg.rtd", ,"ContractData",C20, "LongDescription",, "T") -> Arcutis Biotherapeutics, Inc. | E20: =RTD("cqg.rtd", ,"ContractData",C20, "Open",, "T") -> 12.73 | F20: =RTD("cqg.rtd", ,"ContractData",C20, "High",, "T") -> 12.89 | G20: =RTD("cqg.rtd", ,"ContractData",C20, "Low",, "T") -> 12.3 | H20: =RTD("cqg.rtd", ,"ContractData",C20, "LastTradeToday",, "T") -> 12.42 | I20: =RTD("cqg.rtd", ,"ContractData",C20, "NetLastTradeToday",, "T") -> 0 | J20: =IFERROR(RTD("cqg.rtd", ,"ContractData",C20, "PerCentNetLastTrade",, "T")/100,0) -> 0 | K20: =RTD("cqg.rtd", ,"ContractData", C20, "T_CVol",, "T") -> 443318 | L20: 20 | M20: =RANK($J20,$J$1:J$137)+COUNTIF($J$1:J20,J20)-1 -> 51 | N20: S.US.ARQT | O20: S.US.ROIV | P20: =RTD("cqg.rtd", ,"ContractData",O20, "PerCentNetLastTrade",, "T")/100 -> 0.01011959522 | Q20: https://finance.yahoo.com/quote/ROIV | S20: 0.01011959522 | V20: =IFERROR(RTD("cqg.rtd", ,"ContractData",O20, "LongDescription",, "T"),"") -> Roivant Sciences Ltd. | Y20: 0.01011959522 | AA20: 1 | AB20: 1 | AD20: 0.01011959522
A21: =RTD("cqg.rtd", ,"ContractData",C21, "LongDescription",, "T") -> Arrowhead Pharmaceuticals, Inc. | B21: S.US.ARWR | C21: S.US.ARWR | D21: =RTD("cqg.rtd", ,"ContractData",C21, "LongDescription",, "T") -> Arrowhead Pharmaceuticals, Inc. | E21: =RTD("cqg.rtd", ,"ContractData",C21, "Open",, "T") -> 20.56 | F21: =RTD("cqg.rtd", ,"ContractData",C21, "High",, "T") -> 21.84 | G21: =RTD("cqg.rtd", ,"ContractData",C21, "Low",, "T") -> 20.56 | H21: =RTD("cqg.rtd", ,"ContractData",C21, "LastTradeToday",, "T") -> 20.84 | I21: =RTD("cqg.rtd", ,"ContractData",C21, "NetLastTradeToday",, "T") -> 0.36 | J21: =IFERROR(RTD("cqg.rtd", ,"ContractData",C21, "PerCentNetLastTrade",, "T")/100,0) -> 0.017578125 | K21: =RTD("cqg.rtd", ,"ContractData", C21, "T_CVol",, "T") -> 286783 | L21: 21 | M21: =RANK($J21,$J$1:J$137)+COUNTIF($J$1:J21,J21)-1 -> 11 | N21: S.US.ARWR | O21: S.US.BMRN | P21: =RTD("cqg.rtd", ,"ContractData",O21, "PerCentNetLastTrade",, "T")/100 -> 0.01010258004 | Q21: https://finance.yahoo.com/quote/BMRN | S21: 0.01010258004 | V21: =IFERROR(RTD("cqg.rtd", ,"ContractData",O21, "LongDescription",, "T"),"") -> BioMarin Pharmaceutical Inc | Y21: 0.01010258004 | AA21: 1 | AB21: 1 | AD21: 0.01010258004 | AE21: =IFERROR(T21,"") -> 
A22: =RTD("cqg.rtd", ,"ContractData",C22, "LongDescription",, "T") -> Astria Therapeutics, Inc. | B22: S.US.ATXS | C22: S.US.ATXS | D22: =RTD("cqg.rtd", ,"ContractData",C22, "LongDescription",, "T") -> Astria Therapeutics, Inc. | E22: =RTD("cqg.rtd", ,"ContractData",C22, "Open",, "T") -> 7.43 | F22: =RTD("cqg.rtd", ,"ContractData",C22, "High",, "T") -> 7.49 | G22: =RTD("cqg.rtd", ,"ContractData",C22, "Low",, "T") -> 7.3 | H22: =RTD("cqg.rtd", ,"ContractData",C22, "LastTradeToday",, "T") -> 7.36 | I22: =RTD("cqg.rtd", ,"ContractData",C22, "NetLastTradeToday",, "T") -> -0.09 | J22: =IFERROR(RTD("cqg.rtd", ,"ContractData",C22, "PerCentNetLastTrade",, "T")/100,0) -> -0.01208053691 | K22: =RTD("cqg.rtd", ,"ContractData", C22, "T_CVol",, "T") -> 14022 | L22: 22 | M22: =RANK($J22,$J$1:J$137)+COUNTIF($J$1:J22,J22)-1 -> 99 | N22: S.US.ATXS | O22: S.US.ACLX | P22: =RTD("cqg.rtd", ,"ContractData",O22, "PerCentNetLastTrade",, "T")/100 -> 0.009818288394 | Q22: https://finance.yahoo.com/quote/ACLX | S22: 0.009818288394 | V22: =IFERROR(RTD("cqg.rtd", ,"ContractData",O22, "LongDescription",, "T"),"") -> Arcellx, Inc | Y22: 0.009818288394 | AA22: 1 | AB22: 1 | AD22: 0.009818288394
A23: =RTD("cqg.rtd", ,"ContractData",C23, "LongDescription",, "T") -> ArriVent BioPharma, Inc. | B23: S.US.AVBP | C23: S.US.AVBP | D23: =RTD("cqg.rtd", ,"ContractData",C23, "LongDescription",, "T") -> ArriVent BioPharma, Inc. | E23: =RTD("cqg.rtd", ,"ContractData",C23, "Open",, "T") -> 26.98 | F23: =RTD("cqg.rtd", ,"ContractData",C23, "High",, "T") -> 27.39 | G23: =RTD("cqg.rtd", ,"ContractData",C23, "Low",, "T") -> 26.61 | H23: =RTD("cqg.rtd", ,"ContractData",C23, "LastTradeToday",, "T") -> 27.16 | I23: =RTD("cqg.rtd", ,"ContractData",C23, "NetLastTradeToday",, "T") -> -0.22 | J23: =IFERROR(RTD("cqg.rtd", ,"ContractData",C23, "PerCentNetLastTrade",, "T")/100,0) -> -0.008035062089 | K23: =RTD("cqg.rtd", ,"ContractData", C23, "T_CVol",, "T") -> 54951 | L23: 23 | M23: =RANK($J23,$J$1:J$137)+COUNTIF($J$1:J23,J23)-1 -> 82 | N23: S.US.AVBP | O23: S.US.RGNX | P23: =RTD("cqg.rtd", ,"ContractData",O23, "PerCentNetLastTrade",, "T")/100 -> 0.009489916963 | Q23: https://finance.yahoo.com/quote/RGNX | S23: 0.009489916963 | V23: =IFERROR(RTD("cqg.rtd", ,"ContractData",O23, "LongDescription",, "T"),"") -> REGENXBIO Inc. | Y23: 0.009489916963 | AA23: 1 | AB23: 1 | AD23: 0.009489916963 | AE23: =IFERROR(T23,"") -> 
A24: =RTD("cqg.rtd", ,"ContractData",C24, "LongDescription",, "T") -> Anavex Life Sciences Corp. | B24: S.US.AVXL | C24: S.US.AVXL | D24: =RTD("cqg.rtd", ,"ContractData",C24, "LongDescription",, "T") -> Anavex Life Sciences Corp. | E24: =RTD("cqg.rtd", ,"ContractData",C24, "Open",, "T") -> 8.69 | F24: =RTD("cqg.rtd", ,"ContractData",C24, "High",, "T") -> 8.86 | G24: =RTD("cqg.rtd", ,"ContractData",C24, "Low",, "T") -> 8.62 | H24: =RTD("cqg.rtd", ,"ContractData",C24, "LastTradeToday",, "T") -> 8.73 | I24: =RTD("cqg.rtd", ,"ContractData",C24, "NetLastTradeToday",, "T") -> 0.04 | J24: =IFERROR(RTD("cqg.rtd", ,"ContractData",C24, "PerCentNetLastTrade",, "T")/100,0) -> 0.004602991945 | K24: =RTD("cqg.rtd", ,"ContractData", C24, "T_CVol",, "T") -> 72335 | L24: 24 | M24: =RANK($J24,$J$1:J$137)+COUNTIF($J$1:J24,J24)-1 -> 37 | N24: S.US.AVXL | O24: S.US.REGN | P24: =RTD("cqg.rtd", ,"ContractData",O24, "PerCentNetLastTrade",, "T")/100 -> 0.009320425997 | Q24: https://finance.yahoo.com/quote/REGN | S24: 0.009320425997 | V24: =IFERROR(RTD("cqg.rtd", ,"ContractData",O24, "LongDescription",, "T"),"") -> Regeneron Pharm Inc | Y24: 0.009320425997 | AA24: 1 | AB24: 1 | AD24: 0.009320425997
A25: =RTD("cqg.rtd", ,"ContractData",C25, "LongDescription",, "T") -> BridgeBio Pharma, Inc. | B25: S.US.BBIO | C25: S.US.BBIO | D25: =RTD("cqg.rtd", ,"ContractData",C25, "LongDescription",, "T") -> BridgeBio Pharma, Inc. | E25: =RTD("cqg.rtd", ,"ContractData",C25, "Open",, "T") -> 32.55 | F25: =RTD("cqg.rtd", ,"ContractData",C25, "High",, "T") -> 32.85 | G25: =RTD("cqg.rtd", ,"ContractData",C25, "Low",, "T") -> 32.26 | H25: =RTD("cqg.rtd", ,"ContractData",C25, "LastTradeToday",, "T") -> 32.53 | I25: =RTD("cqg.rtd", ,"ContractData",C25, "NetLastTradeToday",, "T") -> -0.17 | J25: =IFERROR(RTD("cqg.rtd", ,"ContractData",C25, "PerCentNetLastTrade",, "T")/100,0) -> -0.005198776758 | K25: =RTD("cqg.rtd", ,"ContractData", C25, "T_CVol",, "T") -> 87232 | L25: 25 | M25: =RANK($J25,$J$1:J$137)+COUNTIF($J$1:J25,J25)-1 -> 71 | N25: S.US.BBIO | O25: S.US.TGTX | P25: =RTD("cqg.rtd", ,"ContractData",O25, "PerCentNetLastTrade",, "T")/100 -> 0.008955223881 | Q25: https://finance.yahoo.com/quote/TGTX | S25: 0.008955223881 | V25: =IFERROR(RTD("cqg.rtd", ,"ContractData",O25, "LongDescription",, "T"),"") -> TG Therapeutics, Inc. | Y25: 0.008955223881 | AA25: 1 | AB25: 1 | AD25: =IFERROR(S25,"") -> 0.008955223881 | AE25: =IFERROR(T25,"") -> 
A26: =RTD("cqg.rtd", ,"ContractData",C26, "LongDescription",, "T") -> Biocryst Pharmaceuticals Inc | B26: S.US.BCRX | C26: S.US.BCRX | D26: =RTD("cqg.rtd", ,"ContractData",C26, "LongDescription",, "T") -> Biocryst Pharmaceuticals Inc | E26: =RTD("cqg.rtd", ,"ContractData",C26, "Open",, "T") -> 8.74 | F26: =RTD("cqg.rtd", ,"ContractData",C26, "High",, "T") -> 8.87 | G26: =RTD("cqg.rtd", ,"ContractData",C26, "Low",, "T") -> 8.73 | H26: =RTD("cqg.rtd", ,"ContractData",C26, "LastTradeToday",, "T") -> 8.87 | I26: =RTD("cqg.rtd", ,"ContractData",C26, "NetLastTradeToday",, "T") -> 0.14 | J26: =IFERROR(RTD("cqg.rtd", ,"ContractData",C26, "PerCentNetLastTrade",, "T")/100,0) -> 0.01603665521 | K26: =RTD("cqg.rtd", ,"ContractData", C26, "T_CVol",, "T") -> 235258 | L26: 26 | M26: =RANK($J26,$J$1:J$137)+COUNTIF($J$1:J26,J26)-1 -> 12 | N26: S.US.BCRX | O26: S.US.BIIB | P26: =RTD("cqg.rtd", ,"ContractData",O26, "PerCentNetLastTrade",, "T")/100 -> 0.00800730491 | Q26: https://finance.yahoo.com/quote/BIIB | S26: 0.00800730491 | V26: =IFERROR(RTD("cqg.rtd", ,"ContractData",O26, "LongDescription",, "T"),"") -> Biogen Inc. | Y26: 0.00800730491 | AA26: 1 | AB26: 1 | AD26: 0.00800730491
A27: =RTD("cqg.rtd", ,"ContractData",C27, "LongDescription",, "T") -> Beam Therapeutics Inc. | B27: S.US.BEAM | C27: S.US.BEAM | D27: =RTD("cqg.rtd", ,"ContractData",C27, "LongDescription",, "T") -> Beam Therapeutics Inc. | E27: =RTD("cqg.rtd", ,"ContractData",C27, "Open",, "T") -> 27.54 | F27: =RTD("cqg.rtd", ,"ContractData",C27, "High",, "T") -> 27.98 | G27: =RTD("cqg.rtd", ,"ContractData",C27, "Low",, "T") -> 27.35 | H27: =RTD("cqg.rtd", ,"ContractData",C27, "LastTradeToday",, "T") -> 27.73 | I27: =RTD("cqg.rtd", ,"ContractData",C27, "NetLastTradeToday",, "T") -> 0.08 | J27: =IFERROR(RTD("cqg.rtd", ,"ContractData",C27, "PerCentNetLastTrade",, "T")/100,0) -> 0.002893309222 | K27: =RTD("cqg.rtd", ,"ContractData", C27, "T_CVol",, "T") -> 142665 | L27: 27 | M27: =RANK($J27,$J$1:J$137)+COUNTIF($J$1:J27,J27)-1 -> 42 | N27: S.US.BEAM | O27: S.US.MDGL | P27: =RTD("cqg.rtd", ,"ContractData",O27, "PerCentNetLastTrade",, "T")/100 -> 0.007842068611 | Q27: https://finance.yahoo.com/quote/MDGL | S27: 0.007842068611 | V27: =IFERROR(RTD("cqg.rtd", ,"ContractData",O27, "LongDescription",, "T"),"") -> Madrigal Pharmaceuticals, Inc. | Y27: 0.007842068611 | AA27: 1 | AB27: 1 | AD27: 0.007842068611
A28: =RTD("cqg.rtd", ,"ContractData",C28, "LongDescription",, "T") -> Biohaven Pharmaceutical Holding Co Ltd. | B28: S.US.BHVN | C28: S.US.BHVN | D28: =RTD("cqg.rtd", ,"ContractData",C28, "LongDescription",, "T") -> Biohaven Pharmaceutical Holding Co Ltd. | E28: =RTD("cqg.rtd", ,"ContractData",C28, "Open",, "T") -> 38.87 | F28: =RTD("cqg.rtd", ,"ContractData",C28, "High",, "T") -> 39.43 | G28: =RTD("cqg.rtd", ,"ContractData",C28, "Low",, "T") -> 38.6 | H28: =RTD("cqg.rtd", ,"ContractData",C28, "LastTradeToday",, "T") -> 38.96 | I28: =RTD("cqg.rtd", ,"ContractData",C28, "NetLastTradeToday",, "T") -> 0.08 | J28: =IFERROR(RTD("cqg.rtd", ,"ContractData",C28, "PerCentNetLastTrade",, "T")/100,0) -> 0.002057613169 | K28: =RTD("cqg.rtd", ,"ContractData", C28, "T_CVol",, "T") -> 70766 | L28: 28 | M28: =RANK($J28,$J$1:J$137)+COUNTIF($J$1:J28,J28)-1 -> 45 | N28: S.US.BHVN | O28: S.US.IRON | P28: =RTD("cqg.rtd", ,"ContractData",O28, "PerCentNetLastTrade",, "T")/100 -> 0.007816663706 | Q28: https://finance.yahoo.com/quote/IRON | S28: 0.007816663706 | V28: =IFERROR(RTD("cqg.rtd", ,"ContractData",O28, "LongDescription",, "T"),"") -> Disc Medicine, Inc. | Y28: 0.007816663706 | AA28: 1 | AB28: 1 | AD28: 0.007816663706
A29: =RTD("cqg.rtd", ,"ContractData",C29, "LongDescription",, "T") -> Biogen Inc. | B29: S.US.BIIB | C29: S.US.BIIB | D29: =RTD("cqg.rtd", ,"ContractData",C29, "LongDescription",, "T") -> Biogen Inc. | E29: =RTD("cqg.rtd", ,"ContractData",C29, "Open",, "T") -> 141.84 | F29: =RTD("cqg.rtd", ,"ContractData",C29, "High",, "T") -> 143.68 | G29: =RTD("cqg.rtd", ,"ContractData",C29, "Low",, "T") -> 141.05 | H29: =RTD("cqg.rtd", ,"ContractData",C29, "LastTradeToday",, "T") -> 143.51 | I29: =RTD("cqg.rtd", ,"ContractData",C29, "NetLastTradeToday",, "T") -> 1.14 | J29: =IFERROR(RTD("cqg.rtd", ,"ContractData",C29, "PerCentNetLastTrade",, "T")/100,0) -> 0.00800730491 | K29: =RTD("cqg.rtd", ,"ContractData", C29, "T_CVol",, "T") -> 204874 | L29: 29 | M29: =RANK($J29,$J$1:J$137)+COUNTIF($J$1:J29,J29)-1 -> 26 | N29: S.US.BIIB | O29: S.US.SPRY | P29: =RTD("cqg.rtd", ,"ContractData",O29, "PerCentNetLastTrade",, "T")/100 -> 0.0078125 | Q29: https://finance.yahoo.com/quote/SPRY | S29: 0.0078125 | V29: =IFERROR(RTD("cqg.rtd", ,"ContractData",O29, "LongDescription",, "T"),"") -> ARS Pharmaceuticals, Inc. | Y29: 0.0078125 | AA29: 1 | AB29: 1 | AD29: 0.0078125
A30: =RTD("cqg.rtd", ,"ContractData",C30, "LongDescription",, "T") -> BioMarin Pharmaceutical Inc | B30: S.US.BMRN | C30: S.US.BMRN | D30: =RTD("cqg.rtd", ,"ContractData",C30, "LongDescription",, "T") -> BioMarin Pharmaceutical Inc | E30: =RTD("cqg.rtd", ,"ContractData",C30, "Open",, "T") -> 64.5 | F30: =RTD("cqg.rtd", ,"ContractData",C30, "High",, "T") -> 65.01 | G30: =RTD("cqg.rtd", ,"ContractData",C30, "Low",, "T") -> 64.23 | H30: =RTD("cqg.rtd", ,"ContractData",C30, "LastTradeToday",, "T") -> 64.99 | I30: =RTD("cqg.rtd", ,"ContractData",C30, "NetLastTradeToday",, "T") -> 0.65 | J30: =IFERROR(RTD("cqg.rtd", ,"ContractData",C30, "PerCentNetLastTrade",, "T")/100,0) -> 0.01010258004 | K30: =RTD("cqg.rtd", ,"ContractData", C30, "T_CVol",, "T") -> 99887 | L30: 30 | M30: =RANK($J30,$J$1:J$137)+COUNTIF($J$1:J30,J30)-1 -> 21 | N30: S.US.BMRN | O30: S.US.TVTX | P30: =RTD("cqg.rtd", ,"ContractData",O30, "PerCentNetLastTrade",, "T")/100 -> 0.007776761208 | Q30: https://finance.yahoo.com/quote/TVTX | S30: 0.007776761208 | V30: =IFERROR(RTD("cqg.rtd", ,"ContractData",O30, "LongDescription",, "T"),"") -> Travere Therapeutics, Inc. | Y30: 0.007776761208 | AA30: 1 | AB30: 1 | AD30: 0.007776761208
A31: =RTD("cqg.rtd", ,"ContractData",C31, "LongDescription",, "T") -> Blueprint Medicines Corp | B31: S.US.BPMC | C31: S.US.BPMC | D31: =RTD("cqg.rtd", ,"ContractData",C31, "LongDescription",, "T") -> Blueprint Medicines Corp | E31: =RTD("cqg.rtd", ,"ContractData",C31, "Open",, "T") -> 109.43 | F31: =RTD("cqg.rtd", ,"ContractData",C31, "High",, "T") -> 110.55 | G31: =RTD("cqg.rtd", ,"ContractData",C31, "Low",, "T") -> 108.36 | H31: =RTD("cqg.rtd", ,"ContractData",C31, "LastTradeToday",, "T") -> 109 | I31: =RTD("cqg.rtd", ,"ContractData",C31, "NetLastTradeToday",, "T") -> -0.62 | J31: =IFERROR(RTD("cqg.rtd", ,"ContractData",C31, "PerCentNetLastTrade",, "T")/100,0) -> -0.005655902208 | K31: =RTD("cqg.rtd", ,"ContractData", C31, "T_CVol",, "T") -> 108351 | L31: 31 | M31: =RANK($J31,$J$1:J$137)+COUNTIF($J$1:J31,J31)-1 -> 74 | N31: S.US.BPMC | O31: S.US.ARDX | P31: =RTD("cqg.rtd", ,"ContractData",O31, "PerCentNetLastTrade",, "T")/100 -> 0.007054673721 | Q31: https://finance.yahoo.com/quote/ARDX | S31: 0.007054673721 | V31: =IFERROR(RTD("cqg.rtd", ,"ContractData",O31, "LongDescription",, "T"),"") -> Ardelyx, Inc. | Y31: 0.007054673721 | AA31: 1 | AB31: 1 | AD31: 0.007054673721
A32: =RTD("cqg.rtd", ,"ContractData",C32, "LongDescription",, "T") -> Capricor Therapeutics, Inc. | B32: S.US.CAPR | C32: S.US.CAPR | D32: =RTD("cqg.rtd", ,"ContractData",C32, "LongDescription",, "T") -> Capricor Therapeutics, Inc. | E32: =RTD("cqg.rtd", ,"ContractData",C32, "Open",, "T") -> 14.45 | F32: =RTD("cqg.rtd", ,"ContractData",C32, "High",, "T") -> 14.45 | G32: =RTD("cqg.rtd", ,"ContractData",C32, "Low",, "T") -> 13.75 | H32: =RTD("cqg.rtd", ,"ContractData",C32, "LastTradeToday",, "T") -> 14 | I32: =RTD("cqg.rtd", ,"ContractData",C32, "NetLastTradeToday",, "T") -> -0.33 | J32: =IFERROR(RTD("cqg.rtd", ,"ContractData",C32, "PerCentNetLastTrade",, "T")/100,0) -> -0.0230286113 | K32: =RTD("cqg.rtd", ,"ContractData", C32, "T_CVol",, "T") -> 310728 | L32: 32 | M32: =RANK($J32,$J$1:J$137)+COUNTIF($J$1:J32,J32)-1 -> 126 | N32: S.US.CAPR | O32: S.US.HUMA | P32: =RTD("cqg.rtd", ,"ContractData",O32, "PerCentNetLastTrade",, "T")/100 -> 0.007025761124 | Q32: https://finance.yahoo.com/quote/HUMA | S32: 0.007025761124 | V32: =IFERROR(RTD("cqg.rtd", ,"ContractData",O32, "LongDescription",, "T"),"") -> Humacyte, Inc. | Y32: 0.007025761124 | AA32: 1 | AB32: 1 | AD32: 0.007025761124
A33: =RTD("cqg.rtd", ,"ContractData",C33, "LongDescription",, "T") -> CareDx, Inc. | B33: S.US.CDNA | C33: S.US.CDNA | D33: =RTD("cqg.rtd", ,"ContractData",C33, "LongDescription",, "T") -> CareDx, Inc. | E33: =RTD("cqg.rtd", ,"ContractData",C33, "Open",, "T") -> 22.58 | F33: =RTD("cqg.rtd", ,"ContractData",C33, "High",, "T") -> 22.72 | G33: =RTD("cqg.rtd", ,"ContractData",C33, "Low",, "T") -> 22.16 | H33: =RTD("cqg.rtd", ,"ContractData",C33, "LastTradeToday",, "T") -> 22.37 | I33: =RTD("cqg.rtd", ,"ContractData",C33, "NetLastTradeToday",, "T") -> -0.33 | J33: =IFERROR(RTD("cqg.rtd", ,"ContractData",C33, "PerCentNetLastTrade",, "T")/100,0) -> -0.01453744493 | K33: =RTD("cqg.rtd", ,"ContractData", C33, "T_CVol",, "T") -> 65745 | L33: 33 | M33: =RANK($J33,$J$1:J$137)+COUNTIF($J$1:J33,J33)-1 -> 110 | N33: =C33 -> S.US.CDNA | O33: S.US.NRIX | P33: =RTD("cqg.rtd", ,"ContractData",O33, "PerCentNetLastTrade",, "T")/100 -> 0.006827731092 | Q33: https://finance.yahoo.com/quote/NRIX | S33: 0.006827731092 | V33: =IFERROR(RTD("cqg.rtd", ,"ContractData",O33, "LongDescription",, "T"),"") -> Nurix Therapeutics, Inc | Y33: 0.006827731092 | AA33: 1 | AB33: 1 | AD33: 0.006827731092
A34: =RTD("cqg.rtd", ,"ContractData",C34, "LongDescription",, "T") -> Celcuity Inc. | B34: S.US.CELC | C34: S.US.CELC | D34: =RTD("cqg.rtd", ,"ContractData",C34, "LongDescription",, "T") -> Celcuity Inc. | E34: =RTD("cqg.rtd", ,"ContractData",C34, "Open",, "T") -> 12.54 | F34: =RTD("cqg.rtd", ,"ContractData",C34, "High",, "T") -> 12.56 | G34: =RTD("cqg.rtd", ,"ContractData",C34, "Low",, "T") -> 12.3 | H34: =RTD("cqg.rtd", ,"ContractData",C34, "LastTradeToday",, "T") -> 12.37 | I34: =RTD("cqg.rtd", ,"ContractData",C34, "NetLastTradeToday",, "T") -> -0.22 | J34: =IFERROR(RTD("cqg.rtd", ,"ContractData",C34, "PerCentNetLastTrade",, "T")/100,0) -> -0.01747418586 | K34: =RTD("cqg.rtd", ,"ContractData", C34, "T_CVol",, "T") -> 15769 | L34: 34 | M34: =RANK($J34,$J$1:J$137)+COUNTIF($J$1:J34,J34)-1 -> 119 | N34: S.US.CELC | O34: S.US.ERAS | P34: =RTD("cqg.rtd", ,"ContractData",O34, "PerCentNetLastTrade",, "T")/100 -> 0.005988023952 | Q34: https://finance.yahoo.com/quote/ERAS | S34: 0.005988023952 | V34: =IFERROR(RTD("cqg.rtd", ,"ContractData",O34, "LongDescription",, "T"),"") -> Erasca, Inc. | Y34: 0.005988023952 | AA34: 1 | AB34: 1 | AD34: 0.005988023952
A35: =RTD("cqg.rtd", ,"ContractData",C35, "LongDescription",, "T") -> Cullinan Therapeutics, Inc. | B35: S.US.CGEM | C35: S.US.CGEM | D35: =RTD("cqg.rtd", ,"ContractData",C35, "LongDescription",, "T") -> Cullinan Therapeutics, Inc. | E35: =RTD("cqg.rtd", ,"ContractData",C35, "Open",, "T") -> 10.4 | F35: =RTD("cqg.rtd", ,"ContractData",C35, "High",, "T") -> 10.58 | G35: =RTD("cqg.rtd", ,"ContractData",C35, "Low",, "T") -> 10.12 | H35: =RTD("cqg.rtd", ,"ContractData",C35, "LastTradeToday",, "T") -> 10.23 | I35: =RTD("cqg.rtd", ,"ContractData",C35, "NetLastTradeToday",, "T") -> -0.12 | J35: =IFERROR(RTD("cqg.rtd", ,"ContractData",C35, "PerCentNetLastTrade",, "T")/100,0) -> -0.0115942029 | K35: =RTD("cqg.rtd", ,"ContractData", C35, "T_CVol",, "T") -> 44403 | L35: 35 | M35: =RANK($J35,$J$1:J$137)+COUNTIF($J$1:J35,J35)-1 -> 98 | N35: S.US.CGEM | O35: S.US.MNKD | P35: =RTD("cqg.rtd", ,"ContractData",O35, "PerCentNetLastTrade",, "T")/100 -> 0.005309734513 | Q35: https://finance.yahoo.com/quote/MNKD | S35: 0.005309734513 | V35: =IFERROR(RTD("cqg.rtd", ,"ContractData",O35, "LongDescription",, "T"),"") -> MannKind Corporation | Y35: 0.005309734513 | AA35: 1 | AB35: 1 | AD35: 0.005309734513
A36: =RTD("cqg.rtd", ,"ContractData",C36, "LongDescription",, "T") -> CG Oncology, Inc. | B36: S.US.CGON | C36: S.US.CGON | D36: =RTD("cqg.rtd", ,"ContractData",C36, "LongDescription",, "T") -> CG Oncology, Inc. | E36: =RTD("cqg.rtd", ,"ContractData",C36, "Open",, "T") -> 29.9 | F36: =RTD("cqg.rtd", ,"ContractData",C36, "High",, "T") -> 30.15 | G36: =RTD("cqg.rtd", ,"ContractData",C36, "Low",, "T") -> 29.41 | H36: =RTD("cqg.rtd", ,"ContractData",C36, "LastTradeToday",, "T") -> 29.86 | I36: =RTD("cqg.rtd", ,"ContractData",C36, "NetLastTradeToday",, "T") -> -0.17 | J36: =IFERROR(RTD("cqg.rtd", ,"ContractData",C36, "PerCentNetLastTrade",, "T")/100,0) -> -0.005661005661 | K36: =RTD("cqg.rtd", ,"ContractData", C36, "T_CVol",, "T") -> 51627 | L36: 36 | M36: =RANK($J36,$J$1:J$137)+COUNTIF($J$1:J36,J36)-1 -> 75 | N36: S.US.CGON | O36: S.US.SRRK | P36: =RTD("cqg.rtd", ,"ContractData",O36, "PerCentNetLastTrade",, "T")/100 -> 0.005157170923 | Q36: https://finance.yahoo.com/quote/SRRK | S36: 0.005157170923 | V36: =IFERROR(RTD("cqg.rtd", ,"ContractData",O36, "LongDescription",, "T"),"") -> Scholar Rock Holding Corporation | Y36: 0.005157170923 | AA36: 1 | AB36: 1 | AD36: 0.005157170923
A37: =RTD("cqg.rtd", ,"ContractData",C37, "LongDescription",, "T") -> Celldex Therapeutics Inc | B37: S.US.CLDX | C37: S.US.CLDX | D37: =RTD("cqg.rtd", ,"ContractData",C37, "LongDescription",, "T") -> Celldex Therapeutics Inc | E37: =RTD("cqg.rtd", ,"ContractData",C37, "Open",, "T") -> 23.27 | F37: =RTD("cqg.rtd", ,"ContractData",C37, "High",, "T") -> 23.28 | G37: =RTD("cqg.rtd", ,"ContractData",C37, "Low",, "T") -> 22.58 | H37: =RTD("cqg.rtd", ,"ContractData",C37, "LastTradeToday",, "T") -> 22.9 | I37: =RTD("cqg.rtd", ,"ContractData",C37, "NetLastTradeToday",, "T") -> -0.39 | J37: =IFERROR(RTD("cqg.rtd", ,"ContractData",C37, "PerCentNetLastTrade",, "T")/100,0) -> -0.01674538429 | K37: =RTD("cqg.rtd", ,"ContractData", C37, "T_CVol",, "T") -> 38523 | L37: 37 | M37: =RANK($J37,$J$1:J$137)+COUNTIF($J$1:J37,J37)-1 -> 118 | N37: S.US.CLDX | O37: S.US.AVXL | P37: =RTD("cqg.rtd", ,"ContractData",O37, "PerCentNetLastTrade",, "T")/100 -> 0.004602991945 | Q37: https://finance.yahoo.com/quote/AVXL | S37: 0.004602991945 | V37: =IFERROR(RTD("cqg.rtd", ,"ContractData",O37, "LongDescription",, "T"),"") -> Anavex Life Sciences Corp. | Y37: 0.004602991945 | AA37: 1 | AB37: 1 | AD37: 0.004602991945
A38: =RTD("cqg.rtd", ,"ContractData",C38, "LongDescription",, "T") -> Cogent Biosciences, Inc. | B38: S.US.COGT | C38: S.US.COGT | D38: =RTD("cqg.rtd", ,"ContractData",C38, "LongDescription",, "T") -> Cogent Biosciences, Inc. | E38: =RTD("cqg.rtd", ,"ContractData",C38, "Open",, "T") -> 9.14 | F38: =RTD("cqg.rtd", ,"ContractData",C38, "High",, "T") -> 9.28 | G38: =RTD("cqg.rtd", ,"ContractData",C38, "Low",, "T") -> 8.93 | H38: =RTD("cqg.rtd", ,"ContractData",C38, "LastTradeToday",, "T") -> 9.03 | I38: =RTD("cqg.rtd", ,"ContractData",C38, "NetLastTradeToday",, "T") -> -0.14 | J38: =IFERROR(RTD("cqg.rtd", ,"ContractData",C38, "PerCentNetLastTrade",, "T")/100,0) -> -0.01526717557 | K38: =RTD("cqg.rtd", ,"ContractData", C38, "T_CVol",, "T") -> 118346 | L38: 38 | M38: =RANK($J38,$J$1:J$137)+COUNTIF($J$1:J38,J38)-1 -> 111 | N38: S.US.COGT | O38: S.US.DVAX | P38: =RTD("cqg.rtd", ,"ContractData",O38, "PerCentNetLastTrade",, "T")/100 -> 0.004576659039 | Q38: https://finance.yahoo.com/quote/DVAX | S38: 0.004576659039 | V38: =IFERROR(RTD("cqg.rtd", ,"ContractData",O38, "LongDescription",, "T"),"") -> Dynavax Technologies Corporation | Y38: 0.004576659039 | AA38: 1 | AB38: 1 | AD38: 0.004576659039
A39: =RTD("cqg.rtd", ,"ContractData",C39, "LongDescription",, "T") -> Catalyst Pharmaceuticals, Inc. | B39: S.US.CPRX | C39: S.US.CPRX | D39: =RTD("cqg.rtd", ,"ContractData",C39, "LongDescription",, "T") -> Catalyst Pharmaceuticals, Inc. | E39: =RTD("cqg.rtd", ,"ContractData",C39, "Open",, "T") -> 23.08 | F39: =RTD("cqg.rtd", ,"ContractData",C39, "High",, "T") -> 23.22 | G39: =RTD("cqg.rtd", ,"ContractData",C39, "Low",, "T") -> 23 | H39: =RTD("cqg.rtd", ,"ContractData",C39, "LastTradeToday",, "T") -> 23.14 | I39: =RTD("cqg.rtd", ,"ContractData",C39, "NetLastTradeToday",, "T") -> 0.08 | J39: =IFERROR(RTD("cqg.rtd", ,"ContractData",C39, "PerCentNetLastTrade",, "T")/100,0) -> 0.003469210755 | K39: =RTD("cqg.rtd", ,"ContractData", C39, "T_CVol",, "T") -> 63239 | L39: 39 | M39: =RANK($J39,$J$1:J$137)+COUNTIF($J$1:J39,J39)-1 -> 41 | N39: S.US.CPRX | O39: S.US.CRSP | P39: =RTD("cqg.rtd", ,"ContractData",O39, "PerCentNetLastTrade",, "T")/100 -> 0.003693671509 | Q39: https://finance.yahoo.com/quote/CRSP | S39: 0.003693671509 | V39: =IFERROR(RTD("cqg.rtd", ,"ContractData",O39, "LongDescription",, "T"),"") -> CRISPR Therapeutics AG | Y39: 0.003693671509 | AA39: =IF(S39="#N/A",0,1) -> 1 | AB39: 1 | AD39: 0.003693671509
A40: =RTD("cqg.rtd", ,"ContractData",C40, "LongDescription",, "T") -> CARGO Therapeutics, Inc. | B40: S.US.CRGX | C40: S.US.CRGX | D40: =RTD("cqg.rtd", ,"ContractData",C40, "LongDescription",, "T") -> CARGO Therapeutics, Inc. | E40: =RTD("cqg.rtd", ,"ContractData",C40, "Open",, "T") -> 3.71 | F40: =RTD("cqg.rtd", ,"ContractData",C40, "High",, "T") -> 3.8 | G40: =RTD("cqg.rtd", ,"ContractData",C40, "Low",, "T") -> 3.64 | H40: =RTD("cqg.rtd", ,"ContractData",C40, "LastTradeToday",, "T") -> 3.78 | I40: =RTD("cqg.rtd", ,"ContractData",C40, "NetLastTradeToday",, "T") -> 0.08 | J40: =IFERROR(RTD("cqg.rtd", ,"ContractData",C40, "PerCentNetLastTrade",, "T")/100,0) -> 0.02162162162 | K40: =RTD("cqg.rtd", ,"ContractData", C40, "T_CVol",, "T") -> 65689 | L40: 40 | M40: =RANK($J40,$J$1:J$137)+COUNTIF($J$1:J40,J40)-1 -> 9 | N40: S.US.CRGX | O40: S.US.SVRA | P40: =RTD("cqg.rtd", ,"ContractData",O40, "PerCentNetLastTrade",, "T")/100 -> 0.003521126761 | Q40: https://finance.yahoo.com/quote/SVRA | S40: 0.003521126761 | V40: =IFERROR(RTD("cqg.rtd", ,"ContractData",O40, "LongDescription",, "T"),"") -> Savara Inc. | Y40: 0.003521126761 | AA40: 1 | AB40: 1 | AD40: 0.003521126761
A41: =RTD("cqg.rtd", ,"ContractData",C41, "LongDescription",, "T") -> Crinetics Pharmaceuticals, Inc. | B41: S.US.CRNX | C41: S.US.CRNX | D41: =RTD("cqg.rtd", ,"ContractData",C41, "LongDescription",, "T") -> Crinetics Pharmaceuticals, Inc. | E41: =RTD("cqg.rtd", ,"ContractData",C41, "Open",, "T") -> 38.58 | F41: =RTD("cqg.rtd", ,"ContractData",C41, "High",, "T") -> 39.18 | G41: =RTD("cqg.rtd", ,"ContractData",C41, "Low",, "T") -> 38.45 | H41: =RTD("cqg.rtd", ,"ContractData",C41, "LastTradeToday",, "T") -> 38.56 | I41: =RTD("cqg.rtd", ,"ContractData",C41, "NetLastTradeToday",, "T") -> -0.15 | J41: =IFERROR(RTD("cqg.rtd", ,"ContractData",C41, "PerCentNetLastTrade",, "T")/100,0) -> -0.003874967709 | K41: =RTD("cqg.rtd", ,"ContractData", C41, "T_CVol",, "T") -> 49559 | L41: 41 | M41: =RANK($J41,$J$1:J$137)+COUNTIF($J$1:J41,J41)-1 -> 68 | N41: S.US.CRNX | O41: S.US.CPRX | P41: =RTD("cqg.rtd", ,"ContractData",O41, "PerCentNetLastTrade",, "T")/100 -> 0.003469210755 | Q41: https://finance.yahoo.com/quote/CPRX | S41: 0.003469210755 | V41: =IFERROR(RTD("cqg.rtd", ,"ContractData",O41, "LongDescription",, "T"),"") -> Catalyst Pharmaceuticals, Inc. | Y41: 0.003469210755 | AA41: 1 | AB41: 1 | AD41: 0.003469210755
A42: =RTD("cqg.rtd", ,"ContractData",C42, "LongDescription",, "T") -> CRISPR Therapeutics AG | B42: S.US.CRSP | C42: S.US.CRSP | D42: =RTD("cqg.rtd", ,"ContractData",C42, "LongDescription",, "T") -> CRISPR Therapeutics AG | E42: =RTD("cqg.rtd", ,"ContractData",C42, "Open",, "T") -> 41 | F42: =RTD("cqg.rtd", ,"ContractData",C42, "High",, "T") -> 41.74 | G42: =RTD("cqg.rtd", ,"ContractData",C42, "Low",, "T") -> 40.41 | H42: =RTD("cqg.rtd", ,"ContractData",C42, "LastTradeToday",, "T") -> 40.76 | I42: =RTD("cqg.rtd", ,"ContractData",C42, "NetLastTradeToday",, "T") -> 0.15 | J42: =IFERROR(RTD("cqg.rtd", ,"ContractData",C42, "PerCentNetLastTrade",, "T")/100,0) -> 0.003693671509 | K42: =RTD("cqg.rtd", ,"ContractData", C42, "T_CVol",, "T") -> 378327 | L42: 42 | M42: =RANK($J42,$J$1:J$137)+COUNTIF($J$1:J42,J42)-1 -> 39 | N42: S.US.CRSP | O42: S.US.BEAM | P42: =RTD("cqg.rtd", ,"ContractData",O42, "PerCentNetLastTrade",, "T")/100 -> 0.002893309222 | Q42: https://finance.yahoo.com/quote/BEAM | S42: 0.002893309222 | V42: =IFERROR(RTD("cqg.rtd", ,"ContractData",O42, "LongDescription",, "T"),"") -> Beam Therapeutics Inc. | Y42: 0.002893309222 | AA42: 1 | AB42: 1 | AD42: 0.002893309222
A43: =RTD("cqg.rtd", ,"ContractData",C43, "LongDescription",, "T") -> Cytokinetics Inc | B43: S.US.CYTK | C43: S.US.CYTK | D43: =RTD("cqg.rtd", ,"ContractData",C43, "LongDescription",, "T") -> Cytokinetics Inc | E43: =RTD("cqg.rtd", ,"ContractData",C43, "Open",, "T") -> 46.23 | F43: =RTD("cqg.rtd", ,"ContractData",C43, "High",, "T") -> 46.23 | G43: =RTD("cqg.rtd", ,"ContractData",C43, "Low",, "T") -> 44.25 | H43: =RTD("cqg.rtd", ,"ContractData",C43, "LastTradeToday",, "T") -> 44.65 | I43: =RTD("cqg.rtd", ,"ContractData",C43, "NetLastTradeToday",, "T") -> -1.52 | J43: =IFERROR(RTD("cqg.rtd", ,"ContractData",C43, "PerCentNetLastTrade",, "T")/100,0) -> -0.0329218107 | K43: =RTD("cqg.rtd", ,"ContractData", C43, "T_CVol",, "T") -> 569548 | L43: 43 | M43: =RANK($J43,$J$1:J$137)+COUNTIF($J$1:J43,J43)-1 -> 133 | N43: S.US.CYTK | O43: S.US.RARE | P43: =RTD("cqg.rtd", ,"ContractData",O43, "PerCentNetLastTrade",, "T")/100 -> 0.002621231979 | Q43: https://finance.yahoo.com/quote/RARE | S43: 0.002621231979 | V43: =IFERROR(RTD("cqg.rtd", ,"ContractData",O43, "LongDescription",, "T"),"") -> Ultragenyx Pharmaceutical Inc. | Y43: 0.002621231979 | AA43: 1 | AB43: 1 | AD43: 0.002621231979
A44: =RTD("cqg.rtd", ,"ContractData",C44, "LongDescription",, "T") -> Day One Biopharmaceuticals, Inc. | B44: S.US.DAWN | C44: S.US.DAWN | D44: =RTD("cqg.rtd", ,"ContractData",C44, "LongDescription",, "T") -> Day One Biopharmaceuticals, Inc. | E44: =RTD("cqg.rtd", ,"ContractData",C44, "Open",, "T") -> 12.45 | F44: =RTD("cqg.rtd", ,"ContractData",C44, "High",, "T") -> 12.61 | G44: =RTD("cqg.rtd", ,"ContractData",C44, "Low",, "T") -> 12.25 | H44: =RTD("cqg.rtd", ,"ContractData",C44, "LastTradeToday",, "T") -> 12.31 | I44: =RTD("cqg.rtd", ,"ContractData",C44, "NetLastTradeToday",, "T") -> -0.2 | J44: =IFERROR(RTD("cqg.rtd", ,"ContractData",C44, "PerCentNetLastTrade",, "T")/100,0) -> -0.01598721023 | K44: =RTD("cqg.rtd", ,"ContractData", C44, "T_CVol",, "T") -> 55980 | L44: 44 | M44: =RANK($J44,$J$1:J$137)+COUNTIF($J$1:J44,J44)-1 -> 113 | N44: S.US.DAWN | O44: S.US.KURA | P44: =RTD("cqg.rtd", ,"ContractData",O44, "PerCentNetLastTrade",, "T")/100 -> 0.002267573696 | Q44: https://finance.yahoo.com/quote/KURA | S44: 0.002267573696 | V44: =IFERROR(RTD("cqg.rtd", ,"ContractData",O44, "LongDescription",, "T"),"") -> Kura Oncology, Inc. | Y44: 0.002267573696 | AA44: 1 | AB44: 1 | AD44: 0.002267573696
A45: =RTD("cqg.rtd", ,"ContractData",C45, "LongDescription",, "T") -> Denali Therapeutics Inc. | B45: S.US.DNLI | C45: S.US.DNLI | D45: =RTD("cqg.rtd", ,"ContractData",C45, "LongDescription",, "T") -> Denali Therapeutics Inc. | E45: =RTD("cqg.rtd", ,"ContractData",C45, "Open",, "T") -> 22.41 | F45: =RTD("cqg.rtd", ,"ContractData",C45, "High",, "T") -> 23.04 | G45: =RTD("cqg.rtd", ,"ContractData",C45, "Low",, "T") -> 22.32 | H45: =RTD("cqg.rtd", ,"ContractData",C45, "LastTradeToday",, "T") -> 22.55 | I45: =RTD("cqg.rtd", ,"ContractData",C45, "NetLastTradeToday",, "T") -> 0.02 | J45: =IFERROR(RTD("cqg.rtd", ,"ContractData",C45, "PerCentNetLastTrade",, "T")/100,0) -> 0.0008877052818 | K45: =RTD("cqg.rtd", ,"ContractData", C45, "T_CVol",, "T") -> 52128 | L45: 45 | M45: =RANK($J45,$J$1:J$137)+COUNTIF($J$1:J45,J45)-1 -> 49 | N45: S.US.DNLI | O45: S.US.BHVN | P45: =RTD("cqg.rtd", ,"ContractData",O45, "PerCentNetLastTrade",, "T")/100 -> 0.002057613169 | Q45: https://finance.yahoo.com/quote/BHVN | S45: 0.002057613169 | V45: =IFERROR(RTD("cqg.rtd", ,"ContractData",O45, "LongDescription",, "T"),"") -> Biohaven Pharmaceutical Holding Co Ltd. | Y45: 0.002057613169 | AA45: 1 | AB45: 1 | AD45: 0.002057613169
A46: =RTD("cqg.rtd", ,"ContractData",C46, "LongDescription",, "T") -> Dianthus Therapeutics Inc | B46: S.US.DNTH | C46: S.US.DNTH | D46: =RTD("cqg.rtd", ,"ContractData",C46, "LongDescription",, "T") -> Dianthus Therapeutics Inc | E46: =RTD("cqg.rtd", ,"ContractData",C46, "Open",, "T") -> 23.1 | F46: =RTD("cqg.rtd", ,"ContractData",C46, "High",, "T") -> 23.52 | G46: =RTD("cqg.rtd", ,"ContractData",C46, "Low",, "T") -> 23 | H46: =RTD("cqg.rtd", ,"ContractData",C46, "LastTradeToday",, "T") -> 23.47 | I46: =RTD("cqg.rtd", ,"ContractData",C46, "NetLastTradeToday",, "T") -> 0.51 | J46: =IFERROR(RTD("cqg.rtd", ,"ContractData",C46, "PerCentNetLastTrade",, "T")/100,0) -> 0.02221254355 | K46: =RTD("cqg.rtd", ,"ContractData", C46, "T_CVol",, "T") -> 23025 | L46: 46 | M46: =RANK($J46,$J$1:J$137)+COUNTIF($J$1:J46,J46)-1 -> 8 | N46: S.US.DNTH | O46: S.US.ALKS | P46: =RTD("cqg.rtd", ,"ContractData",O46, "PerCentNetLastTrade",, "T")/100 -> 0.001911436763 | Q46: https://finance.yahoo.com/quote/ALKS | S46: 0.001911436763 | V46: =IFERROR(RTD("cqg.rtd", ,"ContractData",O46, "LongDescription",, "T"),"") -> Alkermes plc | Y46: 0.001911436763 | AA46: 1 | AB46: 1 | AD46: 0.001911436763
A47: =RTD("cqg.rtd", ,"ContractData",C47, "LongDescription",, "T") -> Dynavax Technologies Corporation | B47: S.US.DVAX | C47: S.US.DVAX | D47: =RTD("cqg.rtd", ,"ContractData",C47, "LongDescription",, "T") -> Dynavax Technologies Corporation | E47: =RTD("cqg.rtd", ,"ContractData",C47, "Open",, "T") -> 13.09 | F47: =RTD("cqg.rtd", ,"ContractData",C47, "High",, "T") -> 13.2 | G47: =RTD("cqg.rtd", ,"ContractData",C47, "Low",, "T") -> 13.07 | H47: =RTD("cqg.rtd", ,"ContractData",C47, "LastTradeToday",, "T") -> 13.17 | I47: =RTD("cqg.rtd", ,"ContractData",C47, "NetLastTradeToday",, "T") -> 0.06 | J47: =IFERROR(RTD("cqg.rtd", ,"ContractData",C47, "PerCentNetLastTrade",, "T")/100,0) -> 0.004576659039 | K47: =RTD("cqg.rtd", ,"ContractData", C47, "T_CVol",, "T") -> 139066 | L47: 47 | M47: =RANK($J47,$J$1:J$137)+COUNTIF($J$1:J47,J47)-1 -> 38 | N47: S.US.DVAX | O47: S.US.ABBV | P47: =RTD("cqg.rtd", ,"ContractData",O47, "PerCentNetLastTrade",, "T")/100 -> 0.001451002747 | Q47: https://finance.yahoo.com/quote/ABBV | S47: 0.001451002747 | V47: =IFERROR(RTD("cqg.rtd", ,"ContractData",O47, "LongDescription",, "T"),"") -> AbbVie Inc. | Y47: 0.001451002747 | AA47: 1 | AB47: 1 | AD47: 0.001451002747
A48: =RTD("cqg.rtd", ,"ContractData",C48, "LongDescription",, "T") -> Dyne Therapeutics, Inc. | B48: S.US.DYN | C48: S.US.DYN | D48: =RTD("cqg.rtd", ,"ContractData",C48, "LongDescription",, "T") -> Dyne Therapeutics, Inc. | E48: =RTD("cqg.rtd", ,"ContractData",C48, "Open",, "T") -> 16.75 | F48: =RTD("cqg.rtd", ,"ContractData",C48, "High",, "T") -> 16.75 | G48: =RTD("cqg.rtd", ,"ContractData",C48, "Low",, "T") -> 16.07 | H48: =RTD("cqg.rtd", ,"ContractData",C48, "LastTradeToday",, "T") -> 16.24 | I48: =RTD("cqg.rtd", ,"ContractData",C48, "NetLastTradeToday",, "T") -> -0.52 | J48: =IFERROR(RTD("cqg.rtd", ,"ContractData",C48, "PerCentNetLastTrade",, "T")/100,0) -> -0.03102625298 | K48: =RTD("cqg.rtd", ,"ContractData", C48, "T_CVol",, "T") -> 138499 | L48: 48 | M48: =RANK($J48,$J$1:J$137)+COUNTIF($J$1:J48,J48)-1 -> 132 | N48: S.US.DYN | O48: S.US.RNA | P48: =RTD("cqg.rtd", ,"ContractData",O48, "PerCentNetLastTrade",, "T")/100 -> 0.001424095699 | Q48: https://finance.yahoo.com/quote/RNA | S48: 0.001424095699 | V48: =IFERROR(RTD("cqg.rtd", ,"ContractData",O48, "LongDescription",, "T"),"") -> Avidity Biosciences, Inc. | Y48: 0.001424095699 | AA48: 1 | AB48: 1 | AD48: 0.001424095699
A49: =RTD("cqg.rtd", ,"ContractData",C49, "LongDescription",, "T") -> Emergent Biosolutions | B49: S.US.EBS | C49: S.US.EBS | D49: =RTD("cqg.rtd", ,"ContractData",C49, "LongDescription",, "T") -> Emergent Biosolutions | E49: =RTD("cqg.rtd", ,"ContractData",C49, "Open",, "T") -> 10.46 | F49: =RTD("cqg.rtd", ,"ContractData",C49, "High",, "T") -> 10.56 | G49: =RTD("cqg.rtd", ,"ContractData",C49, "Low",, "T") -> 10.05 | H49: =RTD("cqg.rtd", ,"ContractData",C49, "LastTradeToday",, "T") -> 10.21 | I49: =RTD("cqg.rtd", ,"ContractData",C49, "NetLastTradeToday",, "T") -> -0.25 | J49: =IFERROR(RTD("cqg.rtd", ,"ContractData",C49, "PerCentNetLastTrade",, "T")/100,0) -> -0.02390057361 | K49: =RTD("cqg.rtd", ,"ContractData", C49, "T_CVol",, "T") -> 147978 | L49: 49 | M49: =RANK($J49,$J$1:J$137)+COUNTIF($J$1:J49,J49)-1 -> 130 | N49: S.US.EBS | O49: S.US.DNLI | P49: =RTD("cqg.rtd", ,"ContractData",O49, "PerCentNetLastTrade",, "T")/100 -> 0.0008877052818 | Q49: https://finance.yahoo.com/quote/DNLI | S49: 0.0008877052818 | V49: =IFERROR(RTD("cqg.rtd", ,"ContractData",O49, "LongDescription",, "T"),"") -> Denali Therapeutics Inc. | Y49: 0.0008877052818 | AA49: 1 | AB49: 1 | AD49: 0.0008877052818
A50: =RTD("cqg.rtd", ,"ContractData",C50, "LongDescription",, "T") -> Erasca, Inc. | B50: S.US.ERAS | C50: S.US.ERAS | D50: =RTD("cqg.rtd", ,"ContractData",C50, "LongDescription",, "T") -> Erasca, Inc. | E50: =RTD("cqg.rtd", ,"ContractData",C50, "Open",, "T") -> 1.67 | F50: =RTD("cqg.rtd", ,"ContractData",C50, "High",, "T") -> 1.71 | G50: =RTD("cqg.rtd", ,"ContractData",C50, "Low",, "T") -> 1.65 | H50: =RTD("cqg.rtd", ,"ContractData",C50, "LastTradeToday",, "T") -> 1.68 | I50: =RTD("cqg.rtd", ,"ContractData",C50, "NetLastTradeToday",, "T") -> 0.01 | J50: =IFERROR(RTD("cqg.rtd", ,"ContractData",C50, "PerCentNetLastTrade",, "T")/100,0) -> 0.005988023952 | K50: =RTD("cqg.rtd", ,"ContractData", C50, "T_CVol",, "T") -> 188895 | L50: 50 | M50: =RANK($J50,$J$1:J$137)+COUNTIF($J$1:J50,J50)-1 -> 34 | N50: S.US.ERAS | O50: S.US.MRNA | P50: =RTD("cqg.rtd", ,"ContractData",O50, "PerCentNetLastTrade",, "T")/100 -> 0.0005950609938 | Q50: https://finance.yahoo.com/quote/MRNA | S50: 0.0005950609938 | V50: =IFERROR(RTD("cqg.rtd", ,"ContractData",O50, "LongDescription",, "T"),"") -> Moderna, Inc. | Y50: 0.0005950609938 | AA50: 1 | AB50: 1 | AD50: 0.0005950609938
A51: =RTD("cqg.rtd", ,"ContractData",C51, "LongDescription",, "T") -> 89bio, Inc. | B51: S.US.ETNB | C51: S.US.ETNB | D51: =RTD("cqg.rtd", ,"ContractData",C51, "LongDescription",, "T") -> 89bio, Inc. | E51: =RTD("cqg.rtd", ,"ContractData",C51, "Open",, "T") -> 11.37 | F51: =RTD("cqg.rtd", ,"ContractData",C51, "High",, "T") -> 11.57 | G51: =RTD("cqg.rtd", ,"ContractData",C51, "Low",, "T") -> 11.13 | H51: =RTD("cqg.rtd", ,"ContractData",C51, "LastTradeToday",, "T") -> 11.3 | I51: =RTD("cqg.rtd", ,"ContractData",C51, "NetLastTradeToday",, "T") -> -0.13 | J51: =IFERROR(RTD("cqg.rtd", ,"ContractData",C51, "PerCentNetLastTrade",, "T")/100,0) -> -0.0113735783 | K51: =RTD("cqg.rtd", ,"ContractData", C51, "T_CVol",, "T") -> 179270 | L51: 51 | M51: =RANK($J51,$J$1:J$137)+COUNTIF($J$1:J51,J51)-1 -> 97 | N51: S.US.ETNB | O51: S.US.ARQT | P51: =RTD("cqg.rtd", ,"ContractData",O51, "PerCentNetLastTrade",, "T")/100 -> 0 | Q51: https://finance.yahoo.com/quote/ARQT | S51: 0 | V51: =IFERROR(RTD("cqg.rtd", ,"ContractData",O51, "LongDescription",, "T"),"") -> Arcutis Biotherapeutics, Inc. | Y51: 0 | AA51: 1 | AB51: 1 | AD51: 0
A52: =RTD("cqg.rtd", ,"ContractData",C52, "LongDescription",, "T") -> EXACT Sciences Corp | B52: S.US.EXAS | C52: S.US.EXAS | D52: =RTD("cqg.rtd", ,"ContractData",C52, "LongDescription",, "T") -> EXACT Sciences Corp | E52: =RTD("cqg.rtd", ,"ContractData",C52, "Open",, "T") -> 54.32 | F52: =RTD("cqg.rtd", ,"ContractData",C52, "High",, "T") -> 54.87 | G52: =RTD("cqg.rtd", ,"ContractData",C52, "Low",, "T") -> 53.55 | H52: =RTD("cqg.rtd", ,"ContractData",C52, "LastTradeToday",, "T") -> 53.99 | I52: =RTD("cqg.rtd", ,"ContractData",C52, "NetLastTradeToday",, "T") -> -0.29 | J52: =IFERROR(RTD("cqg.rtd", ,"ContractData",C52, "PerCentNetLastTrade",, "T")/100,0) -> -0.005342667649 | K52: =RTD("cqg.rtd", ,"ContractData", C52, "T_CVol",, "T") -> 121184 | L52: 52 | M52: =RANK($J52,$J$1:J$137)+COUNTIF($J$1:J52,J52)-1 -> 72 | N52: S.US.EXAS | O52: S.US.IOVA | P52: =RTD("cqg.rtd", ,"ContractData",O52, "PerCentNetLastTrade",, "T")/100 -> 0 | Q52: https://finance.yahoo.com/quote/IOVA | S52: 0 | V52: =IFERROR(RTD("cqg.rtd", ,"ContractData",O52, "LongDescription",, "T"),"") -> Iovance Biotherapeutics, Inc. | Y52: 0 | AA52: 1 | AB52: 1 | AD52: 0
A53: =RTD("cqg.rtd", ,"ContractData",C53, "LongDescription",, "T") -> Exelixis, Inc. | B53: S.US.EXEL | C53: S.US.EXEL | D53: =RTD("cqg.rtd", ,"ContractData",C53, "LongDescription",, "T") -> Exelixis, Inc. | E53: =RTD("cqg.rtd", ,"ContractData",C53, "Open",, "T") -> 33.6 | F53: =RTD("cqg.rtd", ,"ContractData",C53, "High",, "T") -> 33.8 | G53: =RTD("cqg.rtd", ,"ContractData",C53, "Low",, "T") -> 33.32 | H53: =RTD("cqg.rtd", ,"ContractData",C53, "LastTradeToday",, "T") -> 33.41 | I53: =RTD("cqg.rtd", ,"ContractData",C53, "NetLastTradeToday",, "T") -> -0.26 | J53: =IFERROR(RTD("cqg.rtd", ,"ContractData",C53, "PerCentNetLastTrade",, "T")/100,0) -> -0.007722007722 | K53: =RTD("cqg.rtd", ,"ContractData", C53, "T_CVol",, "T") -> 139680 | L53: 53 | M53: =RANK($J53,$J$1:J$137)+COUNTIF($J$1:J53,J53)-1 -> 80 | N53: S.US.EXEL | O53: S.US.RCKT | P53: =RTD("cqg.rtd", ,"ContractData",O53, "PerCentNetLastTrade",, "T")/100 -> 0 | Q53: https://finance.yahoo.com/quote/RCKT | S53: 0 | V53: =IFERROR(RTD("cqg.rtd", ,"ContractData",O53, "LongDescription",, "T"),"") -> Rocket Pharmaceuticals, Inc. | Y53: 0 | AA53: 1 | AB53: 1 | AD53: 0
A54: =RTD("cqg.rtd", ,"ContractData",C54, "LongDescription",, "T") -> Amicus Therapeutics Inc | B54: S.US.FOLD | C54: S.US.FOLD | D54: =RTD("cqg.rtd", ,"ContractData",C54, "LongDescription",, "T") -> Amicus Therapeutics Inc | E54: =RTD("cqg.rtd", ,"ContractData",C54, "Open",, "T") -> 9.84 | F54: =RTD("cqg.rtd", ,"ContractData",C54, "High",, "T") -> 9.84 | G54: =RTD("cqg.rtd", ,"ContractData",C54, "Low",, "T") -> 9.6 | H54: =RTD("cqg.rtd", ,"ContractData",C54, "LastTradeToday",, "T") -> 9.69 | I54: =RTD("cqg.rtd", ,"ContractData",C54, "NetLastTradeToday",, "T") -> -0.14 | J54: =IFERROR(RTD("cqg.rtd", ,"ContractData",C54, "PerCentNetLastTrade",, "T")/100,0) -> -0.01424211597 | K54: =RTD("cqg.rtd", ,"ContractData", C54, "T_CVol",, "T") -> 260182 | L54: 54 | M54: =RANK($J54,$J$1:J$137)+COUNTIF($J$1:J54,J54)-1 -> 109 | N54: S.US.FOLD | O54: S.US.IONS | P54: =RTD("cqg.rtd", ,"ContractData",O54, "PerCentNetLastTrade",, "T")/100 -> -0.0003064664419 | Q54: https://finance.yahoo.com/quote/IONS | T54: 0.0003064664419 | V54: =IFERROR(RTD("cqg.rtd", ,"ContractData",O54, "LongDescription",, "T"),"") -> Ionis Pharmaceuticals, Inc. | Y54: -0.0003064664419 | AB54: 0 | AE54: 0.0003064664419 | AF54: -0.0003064664419
A55: =RTD("cqg.rtd", ,"ContractData",C55, "LongDescription",, "T") -> Geron Corporation | B55: S.US.GERN | C55: S.US.GERN | D55: =RTD("cqg.rtd", ,"ContractData",C55, "LongDescription",, "T") -> Geron Corporation | E55: =RTD("cqg.rtd", ,"ContractData",C55, "Open",, "T") -> 2.92 | F55: =RTD("cqg.rtd", ,"ContractData",C55, "High",, "T") -> 2.94 | G55: =RTD("cqg.rtd", ,"ContractData",C55, "Low",, "T") -> 2.87 | H55: =RTD("cqg.rtd", ,"ContractData",C55, "LastTradeToday",, "T") -> 2.91 | I55: =RTD("cqg.rtd", ,"ContractData",C55, "NetLastTradeToday",, "T") -> -0.02 | J55: =IFERROR(RTD("cqg.rtd", ,"ContractData",C55, "PerCentNetLastTrade",, "T")/100,0) -> -0.006825938567 | K55: =RTD("cqg.rtd", ,"ContractData", C55, "T_CVol",, "T") -> 500034 | L55: 55 | M55: =RANK($J55,$J$1:J$137)+COUNTIF($J$1:J55,J55)-1 -> 78 | N55: S.US.GERN | O55: S.US.RVMD | P55: =RTD("cqg.rtd", ,"ContractData",O55, "PerCentNetLastTrade",, "T")/100 -> -0.0004590314437 | Q55: https://finance.yahoo.com/quote/RVMD | T55: 0.0004590314437 | V55: =IFERROR(RTD("cqg.rtd", ,"ContractData",O55, "LongDescription",, "T"),"") -> Revolution Medicines, Inc. | Y55: -0.0004590314437 | AB55: 0 | AE55: 0.0004590314437 | AF55: -0.0004590314437
A56: =RTD("cqg.rtd", ,"ContractData",C56, "LongDescription",, "T") -> Gilead Sciences Inc | B56: S.US.GILD | C56: S.US.GILD | D56: =RTD("cqg.rtd", ,"ContractData",C56, "LongDescription",, "T") -> Gilead Sciences Inc | E56: =RTD("cqg.rtd", ,"ContractData",C56, "Open",, "T") -> 97.76 | F56: =RTD("cqg.rtd", ,"ContractData",C56, "High",, "T") -> 98.33 | G56: =RTD("cqg.rtd", ,"ContractData",C56, "Low",, "T") -> 97.09 | H56: =RTD("cqg.rtd", ,"ContractData",C56, "LastTradeToday",, "T") -> 97.93 | I56: =RTD("cqg.rtd", ,"ContractData",C56, "NetLastTradeToday",, "T") -> -0.11 | J56: =IFERROR(RTD("cqg.rtd", ,"ContractData",C56, "PerCentNetLastTrade",, "T")/100,0) -> -0.001121991024 | K56: =RTD("cqg.rtd", ,"ContractData", C56, "T_CVol",, "T") -> 1339952 | L56: 56 | M56: =RANK($J56,$J$1:J$137)+COUNTIF($J$1:J56,J56)-1 -> 56 | N56: S.US.GILD | O56: S.US.GILD | P56: =RTD("cqg.rtd", ,"ContractData",O56, "PerCentNetLastTrade",, "T")/100 -> -0.001121991024 | Q56: https://finance.yahoo.com/quote/GILD | T56: 0.001121991024 | V56: =IFERROR(RTD("cqg.rtd", ,"ContractData",O56, "LongDescription",, "T"),"") -> Gilead Sciences Inc | Y56: -0.001121991024 | AB56: 0 | AE56: 0.001121991024 | AF56: -0.001121991024
A57: =RTD("cqg.rtd", ,"ContractData",C57, "LongDescription",, "T") -> Monte Rosa Therapeutics, Inc. | B57: S.US.GLUE | C57: S.US.GLUE | D57: =RTD("cqg.rtd", ,"ContractData",C57, "LongDescription",, "T") -> Monte Rosa Therapeutics, Inc. | E57: =RTD("cqg.rtd", ,"ContractData",C57, "Open",, "T") -> 6.84 | F57: =RTD("cqg.rtd", ,"ContractData",C57, "High",, "T") -> 6.99 | G57: =RTD("cqg.rtd", ,"ContractData",C57, "Low",, "T") -> 6.79 | H57: =RTD("cqg.rtd", ,"ContractData",C57, "LastTradeToday",, "T") -> 6.83 | I57: =RTD("cqg.rtd", ,"ContractData",C57, "NetLastTradeToday",, "T") -> -0.05 | J57: =IFERROR(RTD("cqg.rtd", ,"ContractData",C57, "PerCentNetLastTrade",, "T")/100,0) -> -0.00726744186 | K57: =RTD("cqg.rtd", ,"ContractData", C57, "T_CVol",, "T") -> 60119 | L57: 57 | M57: =RANK($J57,$J$1:J$137)+COUNTIF($J$1:J57,J57)-1 -> 79 | N57: S.US.GLUE | O57: S.US.NVAX | P57: =RTD("cqg.rtd", ,"ContractData",O57, "PerCentNetLastTrade",, "T")/100 -> -0.001209189843 | Q57: https://finance.yahoo.com/quote/NVAX | T57: 0.001209189843 | V57: =IFERROR(RTD("cqg.rtd", ,"ContractData",O57, "LongDescription",, "T"),"") -> Novavax Inc | Y57: -0.001209189843 | AB57: 0 | AE57: 0.001209189843 | AF57: -0.001209189843
A58: =RTD("cqg.rtd", ,"ContractData",C58, "LongDescription",, "T") -> GRAIL, Inc. | B58: S.US.GRAL | C58: S.US.GRAL | D58: =RTD("cqg.rtd", ,"ContractData",C58, "LongDescription",, "T") -> GRAIL, Inc. | E58: =RTD("cqg.rtd", ,"ContractData",C58, "Open",, "T") -> 33 | F58: =RTD("cqg.rtd", ,"ContractData",C58, "High",, "T") -> 33.36 | G58: =RTD("cqg.rtd", ,"ContractData",C58, "Low",, "T") -> 31.62 | H58: =RTD("cqg.rtd", ,"ContractData",C58, "LastTradeToday",, "T") -> 32.21 | I58: =RTD("cqg.rtd", ,"ContractData",C58, "NetLastTradeToday",, "T") -> -0.78 | J58: =IFERROR(RTD("cqg.rtd", ,"ContractData",C58, "PerCentNetLastTrade",, "T")/100,0) -> -0.02364352834 | K58: =RTD("cqg.rtd", ,"ContractData", C58, "T_CVol",, "T") -> 116029 | L58: 58 | M58: =RANK($J58,$J$1:J$137)+COUNTIF($J$1:J58,J58)-1 -> 129 | N58: S.US.GRAL | O58: S.US.RYTM | P58: =RTD("cqg.rtd", ,"ContractData",O58, "PerCentNetLastTrade",, "T")/100 -> -0.001499750042 | Q58: https://finance.yahoo.com/quote/RYTM | T58: 0.001499750042 | V58: =IFERROR(RTD("cqg.rtd", ,"ContractData",O58, "LongDescription",, "T"),"") -> Rhythm Pharmaceuticals, Inc. | Y58: -0.001499750042 | AB58: 0 | AE58: 0.001499750042 | AF58: -0.001499750042
A59: =RTD("cqg.rtd", ,"ContractData",C59, "LongDescription",, "T") -> Halozyme Therapeutics | B59: S.US.HALO | C59: S.US.HALO | D59: =RTD("cqg.rtd", ,"ContractData",C59, "LongDescription",, "T") -> Halozyme Therapeutics | E59: =RTD("cqg.rtd", ,"ContractData",C59, "Open",, "T") -> 58.07 | F59: =RTD("cqg.rtd", ,"ContractData",C59, "High",, "T") -> 58.07 | G59: =RTD("cqg.rtd", ,"ContractData",C59, "Low",, "T") -> 57.04 | H59: =RTD("cqg.rtd", ,"ContractData",C59, "LastTradeToday",, "T") -> 57.42 | I59: =RTD("cqg.rtd", ,"ContractData",C59, "NetLastTradeToday",, "T") -> -0.52 | J59: =IFERROR(RTD("cqg.rtd", ,"ContractData",C59, "PerCentNetLastTrade",, "T")/100,0) -> -0.008974801519 | K59: =RTD("cqg.rtd", ,"ContractData", C59, "T_CVol",, "T") -> 79031 | L59: 59 | M59: =RANK($J59,$J$1:J$137)+COUNTIF($J$1:J59,J59)-1 -> 91 | N59: S.US.HALO | O59: S.US.NTLA | P59: =RTD("cqg.rtd", ,"ContractData",O59, "PerCentNetLastTrade",, "T")/100 -> -0.001974333662 | Q59: https://finance.yahoo.com/quote/NTLA | T59: 0.001974333662 | V59: =IFERROR(RTD("cqg.rtd", ,"ContractData",O59, "LongDescription",, "T"),"") -> Intellia Therapeutics, Inc. | Y59: -0.001974333662 | AB59: 0 | AE59: 0.001974333662 | AF59: -0.001974333662
A60: =RTD("cqg.rtd", ,"ContractData",C60, "LongDescription",, "T") -> Humacyte, Inc. | B60: S.US.HUMA | C60: S.US.HUMA | D60: =RTD("cqg.rtd", ,"ContractData",C60, "LongDescription",, "T") -> Humacyte, Inc. | E60: =RTD("cqg.rtd", ,"ContractData",C60, "Open",, "T") -> 4.28 | F60: =RTD("cqg.rtd", ,"ContractData",C60, "High",, "T") -> 4.38 | G60: =RTD("cqg.rtd", ,"ContractData",C60, "Low",, "T") -> 4.26 | H60: =RTD("cqg.rtd", ,"ContractData",C60, "LastTradeToday",, "T") -> 4.3 | I60: =RTD("cqg.rtd", ,"ContractData",C60, "NetLastTradeToday",, "T") -> 0.03 | J60: =IFERROR(RTD("cqg.rtd", ,"ContractData",C60, "PerCentNetLastTrade",, "T")/100,0) -> 0.007025761124 | K60: =RTD("cqg.rtd", ,"ContractData", C60, "T_CVol",, "T") -> 187234 | L60: 60 | M60: =RANK($J60,$J$1:J$137)+COUNTIF($J$1:J60,J60)-1 -> 32 | N60: S.US.HUMA | O60: S.US.NTRA | P60: =RTD("cqg.rtd", ,"ContractData",O60, "PerCentNetLastTrade",, "T")/100 -> -0.002169692817 | Q60: https://finance.yahoo.com/quote/NTRA | T60: 0.002169692817 | V60: =IFERROR(RTD("cqg.rtd", ,"ContractData",O60, "LongDescription",, "T"),"") -> Natera, Inc. | Y60: -0.002169692817 | AB60: 0 | AE60: 0.002169692817 | AF60: -0.002169692817
A61: =RTD("cqg.rtd", ,"ContractData",C61, "LongDescription",, "T") -> ImmunityBio, Inc. | B61: S.US.IBRX | C61: S.US.IBRX | D61: =RTD("cqg.rtd", ,"ContractData",C61, "LongDescription",, "T") -> ImmunityBio, Inc. | E61: =RTD("cqg.rtd", ,"ContractData",C61, "Open",, "T") -> 3.34 | F61: =RTD("cqg.rtd", ,"ContractData",C61, "High",, "T") -> 3.46 | G61: =RTD("cqg.rtd", ,"ContractData",C61, "Low",, "T") -> 3.32 | H61: =RTD("cqg.rtd", ,"ContractData",C61, "LastTradeToday",, "T") -> 3.38 | I61: =RTD("cqg.rtd", ,"ContractData",C61, "NetLastTradeToday",, "T") -> 0.07 | J61: =IFERROR(RTD("cqg.rtd", ,"ContractData",C61, "PerCentNetLastTrade",, "T")/100,0) -> 0.02114803625 | K61: =RTD("cqg.rtd", ,"ContractData", C61, "T_CVol",, "T") -> 816550 | L61: 61 | M61: =RANK($J61,$J$1:J$137)+COUNTIF($J$1:J61,J61)-1 -> 10 | N61: S.US.IBRX | O61: S.US.KRYS | P61: =RTD("cqg.rtd", ,"ContractData",O61, "PerCentNetLastTrade",, "T")/100 -> -0.002173103191 | Q61: https://finance.yahoo.com/quote/KRYS | T61: 0.002173103191 | V61: =IFERROR(RTD("cqg.rtd", ,"ContractData",O61, "LongDescription",, "T"),"") -> Krytsal Biotech, Inc. | Y61: -0.002173103191 | AB61: 0 | AE61: 0.002173103191 | AF61: -0.002173103191
A62: =RTD("cqg.rtd", ,"ContractData",C62, "LongDescription",, "T") -> IDEAYA Biosciences, Inc. | B62: S.US.IDYA | C62: S.US.IDYA | D62: =RTD("cqg.rtd", ,"ContractData",C62, "LongDescription",, "T") -> IDEAYA Biosciences, Inc. | E62: =RTD("cqg.rtd", ,"ContractData",C62, "Open",, "T") -> 24 | F62: =RTD("cqg.rtd", ,"ContractData",C62, "High",, "T") -> 24.28 | G62: =RTD("cqg.rtd", ,"ContractData",C62, "Low",, "T") -> 23.58 | H62: =RTD("cqg.rtd", ,"ContractData",C62, "LastTradeToday",, "T") -> 23.77 | I62: =RTD("cqg.rtd", ,"ContractData",C62, "NetLastTradeToday",, "T") -> -0.19 | J62: =IFERROR(RTD("cqg.rtd", ,"ContractData",C62, "PerCentNetLastTrade",, "T")/100,0) -> -0.007929883139 | K62: =RTD("cqg.rtd", ,"ContractData", C62, "T_CVol",, "T") -> 56496 | L62: 62 | M62: =RANK($J62,$J$1:J$137)+COUNTIF($J$1:J62,J62)-1 -> 81 | N62: S.US.IDYA | O62: S.US.PCVX | P62: =RTD("cqg.rtd", ,"ContractData",O62, "PerCentNetLastTrade",, "T")/100 -> -0.002246938546 | Q62: https://finance.yahoo.com/quote/PCVX | T62: 0.002246938546 | V62: =IFERROR(RTD("cqg.rtd", ,"ContractData",O62, "LongDescription",, "T"),"") -> Vaxcyte, Inc. | Y62: -0.002246938546 | AB62: 0 | AE62: 0.002246938546 | AF62: -0.002246938546
A63: =RTD("cqg.rtd", ,"ContractData",C63, "LongDescription",, "T") -> Immunome, Inc. | B63: S.US.IMNM | C63: S.US.IMNM | D63: =RTD("cqg.rtd", ,"ContractData",C63, "LongDescription",, "T") -> Immunome, Inc. | E63: =RTD("cqg.rtd", ,"ContractData",C63, "Open",, "T") -> 11.3 | F63: =RTD("cqg.rtd", ,"ContractData",C63, "High",, "T") -> 11.55 | G63: =RTD("cqg.rtd", ,"ContractData",C63, "Low",, "T") -> 11.17 | H63: =RTD("cqg.rtd", ,"ContractData",C63, "LastTradeToday",, "T") -> 11.25 | I63: =RTD("cqg.rtd", ,"ContractData",C63, "NetLastTradeToday",, "T") -> -0.18 | J63: =IFERROR(RTD("cqg.rtd", ,"ContractData",C63, "PerCentNetLastTrade",, "T")/100,0) -> -0.0157480315 | K63: =RTD("cqg.rtd", ,"ContractData", C63, "T_CVol",, "T") -> 95324 | L63: 63 | M63: =RANK($J63,$J$1:J$137)+COUNTIF($J$1:J63,J63)-1 -> 112 | N63: S.US.IMNM | O63: S.US.SYRE | P63: =RTD("cqg.rtd", ,"ContractData",O63, "PerCentNetLastTrade",, "T")/100 -> -0.002514668902 | Q63: https://finance.yahoo.com/quote/SYRE | T63: 0.002514668902 | V63: =IFERROR(RTD("cqg.rtd", ,"ContractData",O63, "LongDescription",, "T"),"") -> Spyre Therapeutics, Inc. | Y63: -0.002514668902 | AB63: 0 | AE63: 0.002514668902 | AF63: -0.002514668902
A64: =RTD("cqg.rtd", ,"ContractData",C64, "LongDescription",, "T") -> Immunovant, Inc. | B64: S.US.IMVT | C64: S.US.IMVT | D64: =RTD("cqg.rtd", ,"ContractData",C64, "LongDescription",, "T") -> Immunovant, Inc. | E64: =RTD("cqg.rtd", ,"ContractData",C64, "Open",, "T") -> 20.36 | F64: =RTD("cqg.rtd", ,"ContractData",C64, "High",, "T") -> 21.07 | G64: =RTD("cqg.rtd", ,"ContractData",C64, "Low",, "T") -> 19.86 | H64: =RTD("cqg.rtd", ,"ContractData",C64, "LastTradeToday",, "T") -> 20.87 | I64: =RTD("cqg.rtd", ,"ContractData",C64, "NetLastTradeToday",, "T") -> 0.51 | J64: =IFERROR(RTD("cqg.rtd", ,"ContractData",C64, "PerCentNetLastTrade",, "T")/100,0) -> 0.02504911591 | K64: =RTD("cqg.rtd", ,"ContractData", C64, "T_CVol",, "T") -> 400975 | L64: 64 | M64: =RANK($J64,$J$1:J$137)+COUNTIF($J$1:J64,J64)-1 -> 6 | N64: S.US.IMVT | O64: S.US.ACAD | P64: =RTD("cqg.rtd", ,"ContractData",O64, "PerCentNetLastTrade",, "T")/100 -> -0.002613695766 | Q64: https://finance.yahoo.com/quote/ACAD | T64: 0.002613695766 | V64: =IFERROR(RTD("cqg.rtd", ,"ContractData",O64, "LongDescription",, "T"),"") -> ACADIA Pharmaceuticals, Inc. | Y64: -0.002613695766 | AB64: 0 | AE64: 0.002613695766 | AF64: -0.002613695766
A65: =RTD("cqg.rtd", ,"ContractData",C65, "LongDescription",, "T") -> Incyte Corporation | B65: S.US.INCY | C65: S.US.INCY | D65: =RTD("cqg.rtd", ,"ContractData",C65, "LongDescription",, "T") -> Incyte Corporation | E65: =RTD("cqg.rtd", ,"ContractData",C65, "Open",, "T") -> 75.37 | F65: =RTD("cqg.rtd", ,"ContractData",C65, "High",, "T") -> 76.96 | G65: =RTD("cqg.rtd", ,"ContractData",C65, "Low",, "T") -> 75.17 | H65: =RTD("cqg.rtd", ,"ContractData",C65, "LastTradeToday",, "T") -> 75.81 | I65: =RTD("cqg.rtd", ,"ContractData",C65, "NetLastTradeToday",, "T") -> 0.86 | J65: =IFERROR(RTD("cqg.rtd", ,"ContractData",C65, "PerCentNetLastTrade",, "T")/100,0) -> 0.01147431621 | K65: =RTD("cqg.rtd", ,"ContractData", C65, "T_CVol",, "T") -> 416822 | L65: 65 | M65: =RANK($J65,$J$1:J$137)+COUNTIF($J$1:J65,J65)-1 -> 17 | N65: =C65 -> S.US.INCY | O65: S.US.PRTA | P65: =RTD("cqg.rtd", ,"ContractData",O65, "PerCentNetLastTrade",, "T")/100 -> -0.002770083102 | Q65: https://finance.yahoo.com/quote/PRTA | T65: 0.002770083102 | V65: =IFERROR(RTD("cqg.rtd", ,"ContractData",O65, "LongDescription",, "T"),"") -> Prothena | Y65: -0.002770083102 | AB65: 0 | AE65: 0.002770083102 | AF65: -0.002770083102
A66: =RTD("cqg.rtd", ,"ContractData",C66, "LongDescription",, "T") -> Insmed, Inc. | B66: S.US.INSM | C66: S.US.INSM | D66: =RTD("cqg.rtd", ,"ContractData",C66, "LongDescription",, "T") -> Insmed, Inc. | E66: =RTD("cqg.rtd", ,"ContractData",C66, "Open",, "T") -> 81.33 | F66: =RTD("cqg.rtd", ,"ContractData",C66, "High",, "T") -> 81.33 | G66: =RTD("cqg.rtd", ,"ContractData",C66, "Low",, "T") -> 79.24 | H66: =RTD("cqg.rtd", ,"ContractData",C66, "LastTradeToday",, "T") -> 79.8 | I66: =RTD("cqg.rtd", ,"ContractData",C66, "NetLastTradeToday",, "T") -> -0.98 | J66: =IFERROR(RTD("cqg.rtd", ,"ContractData",C66, "PerCentNetLastTrade",, "T")/100,0) -> -0.01213171577 | K66: =RTD("cqg.rtd", ,"ContractData", C66, "T_CVol",, "T") -> 379241 | L66: 66 | M66: =RANK($J66,$J$1:J$137)+COUNTIF($J$1:J66,J66)-1 -> 100 | N66: S.US.INSM | O66: =VLOOKUP($L66,$M$1:$N$137,2,FALSE) -> S.US.AMGN | P66: =RTD("cqg.rtd", ,"ContractData",O66, "PerCentNetLastTrade",, "T")/100 -> -0.003626838606 | Q66: ="https://finance.yahoo.com/quote/"&RIGHT(O66,(LEN(O66)-5)) -> https://finance.yahoo.com/quote/AMGN | S66: =IF(P66>=0,P66,NA()) ->  | T66: =IF(P66>=0,NA(),-1*P66) -> 0.003626838606 | V66: =IFERROR(RTD("cqg.rtd", ,"ContractData",O66, "LongDescription",, "T"),"") -> Amgen Inc | Y66: =IFERROR(S66,P66) -> -0.003626838606 | AA66: =IF(S66="NA()",0,1) ->  | AB66: =IFERROR(AA66,0) -> 0 | AE66: 0.003626838606 | AF66: =IF(AE66="","",Y66) -> -0.003626838606
A67: =RTD("cqg.rtd", ,"ContractData",C67, "LongDescription",, "T") -> Ionis Pharmaceuticals, Inc. | B67: S.US.IONS | C67: S.US.IONS | D67: =RTD("cqg.rtd", ,"ContractData",C67, "LongDescription",, "T") -> Ionis Pharmaceuticals, Inc. | E67: =RTD("cqg.rtd", ,"ContractData",C67, "Open",, "T") -> 32.56 | F67: =RTD("cqg.rtd", ,"ContractData",C67, "High",, "T") -> 32.73 | G67: =RTD("cqg.rtd", ,"ContractData",C67, "Low",, "T") -> 32.38 | H67: =RTD("cqg.rtd", ,"ContractData",C67, "LastTradeToday",, "T") -> 32.62 | I67: =RTD("cqg.rtd", ,"ContractData",C67, "NetLastTradeToday",, "T") -> -0.01 | J67: =IFERROR(RTD("cqg.rtd", ,"ContractData",C67, "PerCentNetLastTrade",, "T")/100,0) -> -0.0003064664419 | K67: =RTD("cqg.rtd", ,"ContractData", C67, "T_CVol",, "T") -> 98065 | L67: =L66+1 -> 67 | M67: =RANK($J67,$J$1:J$137)+COUNTIF($J$1:J67,J67)-1 -> 54 | N67: S.US.IONS | O67: S.US.RCUS | P67: =RTD("cqg.rtd", ,"ContractData",O67, "PerCentNetLastTrade",, "T")/100 -> -0.00384319754 | Q67: https://finance.yahoo.com/quote/RCUS | T67: 0.00384319754 | V67: =IFERROR(RTD("cqg.rtd", ,"ContractData",O67, "LongDescription",, "T"),"") -> Arcus Biosciences, Inc. | Y67: -0.00384319754 | AB67: 0 | AE67: 0.00384319754 | AF67: -0.00384319754
A68: =RTD("cqg.rtd", ,"ContractData",C68, "LongDescription",, "T") -> Iovance Biotherapeutics, Inc. | B68: S.US.IOVA | C68: S.US.IOVA | D68: =RTD("cqg.rtd", ,"ContractData",C68, "LongDescription",, "T") -> Iovance Biotherapeutics, Inc. | E68: =RTD("cqg.rtd", ,"ContractData",C68, "Open",, "T") -> 5.86 | F68: =RTD("cqg.rtd", ,"ContractData",C68, "High",, "T") -> 5.93 | G68: =RTD("cqg.rtd", ,"ContractData",C68, "Low",, "T") -> 5.8 | H68: =RTD("cqg.rtd", ,"ContractData",C68, "LastTradeToday",, "T") -> 5.88 | I68: =RTD("cqg.rtd", ,"ContractData",C68, "NetLastTradeToday",, "T") -> 0 | J68: =IFERROR(RTD("cqg.rtd", ,"ContractData",C68, "PerCentNetLastTrade",, "T")/100,0) -> 0 | K68: =RTD("cqg.rtd", ,"ContractData", C68, "T_CVol",, "T") -> 1017768 | L68: 68 | M68: =RANK($J68,$J$1:J$137)+COUNTIF($J$1:J68,J68)-1 -> 52 | N68: S.US.IOVA | O68: S.US.CRNX | P68: =RTD("cqg.rtd", ,"ContractData",O68, "PerCentNetLastTrade",, "T")/100 -> -0.003874967709 | Q68: https://finance.yahoo.com/quote/CRNX | T68: 0.003874967709 | V68: =IFERROR(RTD("cqg.rtd", ,"ContractData",O68, "LongDescription",, "T"),"") -> Crinetics Pharmaceuticals, Inc. | Y68: -0.003874967709 | AB68: 0 | AE68: 0.003874967709 | AF68: -0.003874967709
A69: =RTD("cqg.rtd", ,"ContractData",C69, "LongDescription",, "T") -> Disc Medicine, Inc. | B69: S.US.IRON | C69: S.US.IRON | D69: =RTD("cqg.rtd", ,"ContractData",C69, "LongDescription",, "T") -> Disc Medicine, Inc. | E69: =RTD("cqg.rtd", ,"ContractData",C69, "Open",, "T") -> 56.29 | F69: =RTD("cqg.rtd", ,"ContractData",C69, "High",, "T") -> 56.9 | G69: =RTD("cqg.rtd", ,"ContractData",C69, "Low",, "T") -> 55.9 | H69: =RTD("cqg.rtd", ,"ContractData",C69, "LastTradeToday",, "T") -> 56.73 | I69: =RTD("cqg.rtd", ,"ContractData",C69, "NetLastTradeToday",, "T") -> 0.44 | J69: =IFERROR(RTD("cqg.rtd", ,"ContractData",C69, "PerCentNetLastTrade",, "T")/100,0) -> 0.007816663706 | K69: =RTD("cqg.rtd", ,"ContractData", C69, "T_CVol",, "T") -> 27863 | L69: 69 | M69: =RANK($J69,$J$1:J$137)+COUNTIF($J$1:J69,J69)-1 -> 28 | N69: S.US.IRON | O69: S.US.JANX | P69: =RTD("cqg.rtd", ,"ContractData",O69, "PerCentNetLastTrade",, "T")/100 -> -0.003933136676 | Q69: https://finance.yahoo.com/quote/JANX | T69: 0.003933136676 | V69: =IFERROR(RTD("cqg.rtd", ,"ContractData",O69, "LongDescription",, "T"),"") -> Janux Therapeutics, Inc. | Y69: -0.003933136676 | AB69: 0 | AE69: 0.003933136676 | AF69: -0.003933136676
A70: =RTD("cqg.rtd", ,"ContractData",C70, "LongDescription",, "T") -> Ironwood Pharmaceuticals, Inc. | B70: S.US.IRWD | C70: S.US.IRWD | D70: =RTD("cqg.rtd", ,"ContractData",C70, "LongDescription",, "T") -> Ironwood Pharmaceuticals, Inc. | E70: =RTD("cqg.rtd", ,"ContractData",C70, "Open",, "T") -> 1.94 | F70: =RTD("cqg.rtd", ,"ContractData",C70, "High",, "T") -> 1.95 | G70: =RTD("cqg.rtd", ,"ContractData",C70, "Low",, "T") -> 1.87 | H70: =RTD("cqg.rtd", ,"ContractData",C70, "LastTradeToday",, "T") -> 1.87 | I70: =RTD("cqg.rtd", ,"ContractData",C70, "NetLastTradeToday",, "T") -> -0.07 | J70: =IFERROR(RTD("cqg.rtd", ,"ContractData",C70, "PerCentNetLastTrade",, "T")/100,0) -> -0.03608247423 | K70: =RTD("cqg.rtd", ,"ContractData", C70, "T_CVol",, "T") -> 1535777 | L70: 70 | M70: =RANK($J70,$J$1:J$137)+COUNTIF($J$1:J70,J70)-1 -> 135 | N70: S.US.IRWD | O70: S.US.SRPT | P70: =RTD("cqg.rtd", ,"ContractData",O70, "PerCentNetLastTrade",, "T")/100 -> -0.004816697886 | Q70: https://finance.yahoo.com/quote/SRPT | T70: 0.004816697886 | V70: =IFERROR(RTD("cqg.rtd", ,"ContractData",O70, "LongDescription",, "T"),"") -> Sarepta Therapeutics, Inc. | Y70: -0.004816697886 | AB70: 0 | AE70: 0.004816697886 | AF70: -0.004816697886
A71: =RTD("cqg.rtd", ,"ContractData",C71, "LongDescription",, "T") -> Janux Therapeutics, Inc. | B71: S.US.JANX | C71: S.US.JANX | D71: =RTD("cqg.rtd", ,"ContractData",C71, "LongDescription",, "T") -> Janux Therapeutics, Inc. | E71: =RTD("cqg.rtd", ,"ContractData",C71, "Open",, "T") -> 40.44 | F71: =RTD("cqg.rtd", ,"ContractData",C71, "High",, "T") -> 41.56 | G71: =RTD("cqg.rtd", ,"ContractData",C71, "Low",, "T") -> 40.27 | H71: =RTD("cqg.rtd", ,"ContractData",C71, "LastTradeToday",, "T") -> 40.52 | I71: =RTD("cqg.rtd", ,"ContractData",C71, "NetLastTradeToday",, "T") -> -0.16 | J71: =IFERROR(RTD("cqg.rtd", ,"ContractData",C71, "PerCentNetLastTrade",, "T")/100,0) -> -0.003933136676 | K71: =RTD("cqg.rtd", ,"ContractData", C71, "T_CVol",, "T") -> 119836 | L71: 71 | M71: =RANK($J71,$J$1:J$137)+COUNTIF($J$1:J71,J71)-1 -> 69 | N71: S.US.JANX | O71: S.US.BBIO | P71: =RTD("cqg.rtd", ,"ContractData",O71, "PerCentNetLastTrade",, "T")/100 -> -0.005198776758 | Q71: https://finance.yahoo.com/quote/BBIO | T71: 0.005198776758 | V71: =IFERROR(RTD("cqg.rtd", ,"ContractData",O71, "LongDescription",, "T"),"") -> BridgeBio Pharma, Inc. | Y71: -0.005198776758 | AB71: 0 | AE71: 0.005198776758 | AF71: -0.005198776758
A72: =RTD("cqg.rtd", ,"ContractData",C72, "LongDescription",, "T") -> KalVista Pharmaceuticals, Inc. | B72: S.US.KALV | C72: S.US.KALV | D72: =RTD("cqg.rtd", ,"ContractData",C72, "LongDescription",, "T") -> KalVista Pharmaceuticals, Inc. | E72: =RTD("cqg.rtd", ,"ContractData",C72, "Open",, "T") -> 9.58 | F72: =RTD("cqg.rtd", ,"ContractData",C72, "High",, "T") -> 9.68 | G72: =RTD("cqg.rtd", ,"ContractData",C72, "Low",, "T") -> 9.49 | H72: =RTD("cqg.rtd", ,"ContractData",C72, "LastTradeToday",, "T") -> 9.5 | I72: =RTD("cqg.rtd", ,"ContractData",C72, "NetLastTradeToday",, "T") -> -0.12 | J72: =IFERROR(RTD("cqg.rtd", ,"ContractData",C72, "PerCentNetLastTrade",, "T")/100,0) -> -0.01247401247 | K72: =RTD("cqg.rtd", ,"ContractData", C72, "T_CVol",, "T") -> 21806 | L72: 72 | M72: =RANK($J72,$J$1:J$137)+COUNTIF($J$1:J72,J72)-1 -> 102 | N72: S.US.KALV | O72: S.US.EXAS | P72: =RTD("cqg.rtd", ,"ContractData",O72, "PerCentNetLastTrade",, "T")/100 -> -0.005342667649 | Q72: https://finance.yahoo.com/quote/EXAS | T72: 0.005342667649 | V72: =IFERROR(RTD("cqg.rtd", ,"ContractData",O72, "LongDescription",, "T"),"") -> EXACT Sciences Corp | Y72: -0.005342667649 | AB72: 0 | AE72: 0.005342667649 | AF72: -0.005342667649
A73: =RTD("cqg.rtd", ,"ContractData",C73, "LongDescription",, "T") -> Keros Therapeutics, Inc. | B73: S.US.KROS | C73: S.US.KROS | D73: =RTD("cqg.rtd", ,"ContractData",C73, "LongDescription",, "T") -> Keros Therapeutics, Inc. | E73: =RTD("cqg.rtd", ,"ContractData",C73, "Open",, "T") -> 11.44 | F73: =RTD("cqg.rtd", ,"ContractData",C73, "High",, "T") -> 11.64 | G73: =RTD("cqg.rtd", ,"ContractData",C73, "Low",, "T") -> 11.25 | H73: =RTD("cqg.rtd", ,"ContractData",C73, "LastTradeToday",, "T") -> 11.44 | I73: =RTD("cqg.rtd", ,"ContractData",C73, "NetLastTradeToday",, "T") -> -0.07 | J73: =IFERROR(RTD("cqg.rtd", ,"ContractData",C73, "PerCentNetLastTrade",, "T")/100,0) -> -0.006081668115 | K73: =RTD("cqg.rtd", ,"ContractData", C73, "T_CVol",, "T") -> 191497 | L73: 73 | M73: =RANK($J73,$J$1:J$137)+COUNTIF($J$1:J73,J73)-1 -> 76 | N73: S.US.KROS | O73: S.US.AKRO | P73: =RTD("cqg.rtd", ,"ContractData",O73, "PerCentNetLastTrade",, "T")/100 -> -0.005459508644 | Q73: https://finance.yahoo.com/quote/AKRO | T73: 0.005459508644 | V73: =IFERROR(RTD("cqg.rtd", ,"ContractData",O73, "LongDescription",, "T"),"") -> Akero Therapeutics, Inc. | Y73: -0.005459508644 | AB73: 0 | AE73: 0.005459508644 | AF73: -0.005459508644
A74: =RTD("cqg.rtd", ,"ContractData",C74, "LongDescription",, "T") -> Krytsal Biotech, Inc. | B74: S.US.KRYS | C74: S.US.KRYS | D74: =RTD("cqg.rtd", ,"ContractData",C74, "LongDescription",, "T") -> Krytsal Biotech, Inc. | E74: =RTD("cqg.rtd", ,"ContractData",C74, "Open",, "T") -> 160.82 | F74: =RTD("cqg.rtd", ,"ContractData",C74, "High",, "T") -> 161.5 | G74: =RTD("cqg.rtd", ,"ContractData",C74, "Low",, "T") -> 159.44 | H74: =RTD("cqg.rtd", ,"ContractData",C74, "LastTradeToday",, "T") -> 160.71 | I74: =RTD("cqg.rtd", ,"ContractData",C74, "NetLastTradeToday",, "T") -> -0.35 | J74: =IFERROR(RTD("cqg.rtd", ,"ContractData",C74, "PerCentNetLastTrade",, "T")/100,0) -> -0.002173103191 | K74: =RTD("cqg.rtd", ,"ContractData", C74, "T_CVol",, "T") -> 25506 | L74: 74 | M74: =RANK($J74,$J$1:J$137)+COUNTIF($J$1:J74,J74)-1 -> 61 | N74: S.US.KRYS | O74: S.US.BPMC | P74: =RTD("cqg.rtd", ,"ContractData",O74, "PerCentNetLastTrade",, "T")/100 -> -0.005655902208 | Q74: https://finance.yahoo.com/quote/BPMC | T74: 0.005655902208 | V74: =IFERROR(RTD("cqg.rtd", ,"ContractData",O74, "LongDescription",, "T"),"") -> Blueprint Medicines Corp | Y74: -0.005655902208 | AB74: 0 | AE74: 0.005655902208 | AF74: -0.005655902208
A75: =RTD("cqg.rtd", ,"ContractData",C75, "LongDescription",, "T") -> Kura Oncology, Inc. | B75: S.US.KURA | C75: S.US.KURA | D75: =RTD("cqg.rtd", ,"ContractData",C75, "LongDescription",, "T") -> Kura Oncology, Inc. | E75: =RTD("cqg.rtd", ,"ContractData",C75, "Open",, "T") -> 8.81 | F75: =RTD("cqg.rtd", ,"ContractData",C75, "High",, "T") -> 8.98 | G75: =RTD("cqg.rtd", ,"ContractData",C75, "Low",, "T") -> 8.65 | H75: =RTD("cqg.rtd", ,"ContractData",C75, "LastTradeToday",, "T") -> 8.84 | I75: =RTD("cqg.rtd", ,"ContractData",C75, "NetLastTradeToday",, "T") -> 0.02 | J75: =IFERROR(RTD("cqg.rtd", ,"ContractData",C75, "PerCentNetLastTrade",, "T")/100,0) -> 0.002267573696 | K75: =RTD("cqg.rtd", ,"ContractData", C75, "T_CVol",, "T") -> 223243 | L75: 75 | M75: =RANK($J75,$J$1:J$137)+COUNTIF($J$1:J75,J75)-1 -> 44 | N75: S.US.KURA | O75: S.US.CGON | P75: =RTD("cqg.rtd", ,"ContractData",O75, "PerCentNetLastTrade",, "T")/100 -> -0.005661005661 | Q75: https://finance.yahoo.com/quote/CGON | T75: 0.005661005661 | V75: =IFERROR(RTD("cqg.rtd", ,"ContractData",O75, "LongDescription",, "T"),"") -> CG Oncology, Inc. | Y75: -0.005661005661 | AB75: 0 | AE75: 0.005661005661 | AF75: -0.005661005661
A76: =RTD("cqg.rtd", ,"ContractData",C76, "LongDescription",, "T") -> Kymera Therapeutics, Inc. | B76: S.US.KYMR | C76: S.US.KYMR | D76: =RTD("cqg.rtd", ,"ContractData",C76, "LongDescription",, "T") -> Kymera Therapeutics, Inc. | E76: =RTD("cqg.rtd", ,"ContractData",C76, "Open",, "T") -> 38.9 | F76: =RTD("cqg.rtd", ,"ContractData",C76, "High",, "T") -> 39.4 | G76: =RTD("cqg.rtd", ,"ContractData",C76, "Low",, "T") -> 38.2 | H76: =RTD("cqg.rtd", ,"ContractData",C76, "LastTradeToday",, "T") -> 38.64 | I76: =RTD("cqg.rtd", ,"ContractData",C76, "NetLastTradeToday",, "T") -> -0.4 | J76: =IFERROR(RTD("cqg.rtd", ,"ContractData",C76, "PerCentNetLastTrade",, "T")/100,0) -> -0.01024590164 | K76: =RTD("cqg.rtd", ,"ContractData", C76, "T_CVol",, "T") -> 32076 | L76: 76 | M76: =RANK($J76,$J$1:J$137)+COUNTIF($J$1:J76,J76)-1 -> 95 | N76: S.US.KYMR | O76: S.US.KROS | P76: =RTD("cqg.rtd", ,"ContractData",O76, "PerCentNetLastTrade",, "T")/100 -> -0.006081668115 | Q76: https://finance.yahoo.com/quote/KROS | T76: 0.006081668115 | V76: =IFERROR(RTD("cqg.rtd", ,"ContractData",O76, "LongDescription",, "T"),"") -> Keros Therapeutics, Inc. | Y76: -0.006081668115 | AB76: 0 | AE76: 0.006081668115 | AF76: -0.006081668115
A77: =RTD("cqg.rtd", ,"ContractData",C77, "LongDescription",, "T") -> LENZ Therapeutics, Inc. | B77: S.US.LENZ | C77: S.US.LENZ | D77: =RTD("cqg.rtd", ,"ContractData",C77, "LongDescription",, "T") -> LENZ Therapeutics, Inc. | E77: =RTD("cqg.rtd", ,"ContractData",C77, "Open",, "T") -> 26.38 | F77: =RTD("cqg.rtd", ,"ContractData",C77, "High",, "T") -> 26.67 | G77: =RTD("cqg.rtd", ,"ContractData",C77, "Low",, "T") -> 25.69 | H77: =RTD("cqg.rtd", ,"ContractData",C77, "LastTradeToday",, "T") -> 25.81 | I77: =RTD("cqg.rtd", ,"ContractData",C77, "NetLastTradeToday",, "T") -> -0.88 | J77: =IFERROR(RTD("cqg.rtd", ,"ContractData",C77, "PerCentNetLastTrade",, "T")/100,0) -> -0.03297115024 | K77: =RTD("cqg.rtd", ,"ContractData", C77, "T_CVol",, "T") -> 21494 | L77: 77 | M77: =RANK($J77,$J$1:J$137)+COUNTIF($J$1:J77,J77)-1 -> 134 | N77: S.US.LENZ | O77: S.US.ALLO | P77: =RTD("cqg.rtd", ,"ContractData",O77, "PerCentNetLastTrade",, "T")/100 -> -0.00625 | Q77: https://finance.yahoo.com/quote/ALLO | T77: 0.00625 | V77: =IFERROR(RTD("cqg.rtd", ,"ContractData",O77, "LongDescription",, "T"),"") -> Allogene Therapeutics, Inc. | Y77: -0.00625 | AB77: 0 | AE77: 0.00625 | AF77: -0.00625
A78: =RTD("cqg.rtd", ,"ContractData",C78, "LongDescription",, "T") -> Madrigal Pharmaceuticals, Inc. | B78: S.US.MDGL | C78: S.US.MDGL | D78: =RTD("cqg.rtd", ,"ContractData",C78, "LongDescription",, "T") -> Madrigal Pharmaceuticals, Inc. | E78: =RTD("cqg.rtd", ,"ContractData",C78, "Open",, "T") -> 330.25 | F78: =RTD("cqg.rtd", ,"ContractData",C78, "High",, "T") -> 334.44 | G78: =RTD("cqg.rtd", ,"ContractData",C78, "Low",, "T") -> 325.37 | H78: =RTD("cqg.rtd", ,"ContractData",C78, "LastTradeToday",, "T") -> 332.86 | I78: =RTD("cqg.rtd", ,"ContractData",C78, "NetLastTradeToday",, "T") -> 2.59 | J78: =IFERROR(RTD("cqg.rtd", ,"ContractData",C78, "PerCentNetLastTrade",, "T")/100,0) -> 0.007842068611 | K78: =RTD("cqg.rtd", ,"ContractData", C78, "T_CVol",, "T") -> 17256 | L78: 78 | M78: =RANK($J78,$J$1:J$137)+COUNTIF($J$1:J78,J78)-1 -> 27 | N78: S.US.MDGL | O78: S.US.GERN | P78: =RTD("cqg.rtd", ,"ContractData",O78, "PerCentNetLastTrade",, "T")/100 -> -0.006825938567 | Q78: https://finance.yahoo.com/quote/GERN | T78: 0.006825938567 | V78: =IFERROR(RTD("cqg.rtd", ,"ContractData",O78, "LongDescription",, "T"),"") -> Geron Corporation | Y78: -0.006825938567 | AB78: 0 | AE78: 0.006825938567 | AF78: -0.006825938567
A79: =RTD("cqg.rtd", ,"ContractData",C79, "LongDescription",, "T") -> MiMedx Group, Inc | B79: S.US.MDXG | C79: S.US.MDXG | D79: =RTD("cqg.rtd", ,"ContractData",C79, "LongDescription",, "T") -> MiMedx Group, Inc | E79: =RTD("cqg.rtd", ,"ContractData",C79, "Open",, "T") -> 8.46 | F79: =RTD("cqg.rtd", ,"ContractData",C79, "High",, "T") -> 8.51 | G79: =RTD("cqg.rtd", ,"ContractData",C79, "Low",, "T") -> 8.35 | H79: =RTD("cqg.rtd", ,"ContractData",C79, "LastTradeToday",, "T") -> 8.36 | I79: =RTD("cqg.rtd", ,"ContractData",C79, "NetLastTradeToday",, "T") -> -0.14 | J79: =IFERROR(RTD("cqg.rtd", ,"ContractData",C79, "PerCentNetLastTrade",, "T")/100,0) -> -0.01647058824 | K79: =RTD("cqg.rtd", ,"ContractData", C79, "T_CVol",, "T") -> 66925 | L79: 79 | M79: =RANK($J79,$J$1:J$137)+COUNTIF($J$1:J79,J79)-1 -> 117 | N79: S.US.MDXG | O79: S.US.GLUE | P79: =RTD("cqg.rtd", ,"ContractData",O79, "PerCentNetLastTrade",, "T")/100 -> -0.00726744186 | Q79: https://finance.yahoo.com/quote/GLUE | T79: 0.00726744186 | V79: =IFERROR(RTD("cqg.rtd", ,"ContractData",O79, "LongDescription",, "T"),"") -> Monte Rosa Therapeutics, Inc. | Y79: -0.00726744186 | AB79: 0 | AE79: 0.00726744186 | AF79: -0.00726744186
A80: =RTD("cqg.rtd", ,"ContractData",C80, "LongDescription",, "T") -> Mirum Pharmaceuticals, Inc. | B80: S.US.MIRM | C80: S.US.MIRM | D80: =RTD("cqg.rtd", ,"ContractData",C80, "LongDescription",, "T") -> Mirum Pharmaceuticals, Inc. | E80: =RTD("cqg.rtd", ,"ContractData",C80, "Open",, "T") -> 51.23 | F80: =RTD("cqg.rtd", ,"ContractData",C80, "High",, "T") -> 52.53 | G80: =RTD("cqg.rtd", ,"ContractData",C80, "Low",, "T") -> 50.41 | H80: =RTD("cqg.rtd", ,"ContractData",C80, "LastTradeToday",, "T") -> 51.87 | I80: =RTD("cqg.rtd", ,"ContractData",C80, "NetLastTradeToday",, "T") -> 0.64 | J80: =IFERROR(RTD("cqg.rtd", ,"ContractData",C80, "PerCentNetLastTrade",, "T")/100,0) -> 0.01249268007 | K80: =RTD("cqg.rtd", ,"ContractData", C80, "T_CVol",, "T") -> 62448 | L80: 80 | M80: =RANK($J80,$J$1:J$137)+COUNTIF($J$1:J80,J80)-1 -> 15 | N80: S.US.MIRM | O80: S.US.EXEL | P80: =RTD("cqg.rtd", ,"ContractData",O80, "PerCentNetLastTrade",, "T")/100 -> -0.007722007722 | Q80: https://finance.yahoo.com/quote/EXEL | T80: 0.007722007722 | V80: =IFERROR(RTD("cqg.rtd", ,"ContractData",O80, "LongDescription",, "T"),"") -> Exelixis, Inc. | Y80: -0.007722007722 | AB80: 0 | AE80: 0.007722007722 | AF80: -0.007722007722
A81: =RTD("cqg.rtd", ,"ContractData",C81, "LongDescription",, "T") -> MannKind Corporation | B81: S.US.MNKD | C81: S.US.MNKD | D81: =RTD("cqg.rtd", ,"ContractData",C81, "LongDescription",, "T") -> MannKind Corporation | E81: =RTD("cqg.rtd", ,"ContractData",C81, "Open",, "T") -> 5.65 | F81: =RTD("cqg.rtd", ,"ContractData",C81, "High",, "T") -> 5.76 | G81: =RTD("cqg.rtd", ,"ContractData",C81, "Low",, "T") -> 5.61 | H81: =RTD("cqg.rtd", ,"ContractData",C81, "LastTradeToday",, "T") -> 5.68 | I81: =RTD("cqg.rtd", ,"ContractData",C81, "NetLastTradeToday",, "T") -> 0.03 | J81: =IFERROR(RTD("cqg.rtd", ,"ContractData",C81, "PerCentNetLastTrade",, "T")/100,0) -> 0.005309734513 | K81: =RTD("cqg.rtd", ,"ContractData", C81, "T_CVol",, "T") -> 179671 | L81: 81 | M81: =RANK($J81,$J$1:J$137)+COUNTIF($J$1:J81,J81)-1 -> 35 | N81: S.US.MNKD | O81: S.US.IDYA | P81: =RTD("cqg.rtd", ,"ContractData",O81, "PerCentNetLastTrade",, "T")/100 -> -0.007929883139 | Q81: https://finance.yahoo.com/quote/IDYA | T81: 0.007929883139 | V81: =IFERROR(RTD("cqg.rtd", ,"ContractData",O81, "LongDescription",, "T"),"") -> IDEAYA Biosciences, Inc. | Y81: -0.007929883139 | AB81: 0 | AE81: 0.007929883139 | AF81: -0.007929883139
A82: =RTD("cqg.rtd", ,"ContractData",C82, "LongDescription",, "T") -> Moderna, Inc. | B82: S.US.MRNA | C82: S.US.MRNA | D82: =RTD("cqg.rtd", ,"ContractData",C82, "LongDescription",, "T") -> Moderna, Inc. | E82: =RTD("cqg.rtd", ,"ContractData",C82, "Open",, "T") -> 33.51 | F82: =RTD("cqg.rtd", ,"ContractData",C82, "High",, "T") -> 33.77 | G82: =RTD("cqg.rtd", ,"ContractData",C82, "Low",, "T") -> 33.03 | H82: =RTD("cqg.rtd", ,"ContractData",C82, "LastTradeToday",, "T") -> 33.63 | I82: =RTD("cqg.rtd", ,"ContractData",C82, "NetLastTradeToday",, "T") -> 0.02 | J82: =IFERROR(RTD("cqg.rtd", ,"ContractData",C82, "PerCentNetLastTrade",, "T")/100,0) -> 0.0005950609938 | K82: =RTD("cqg.rtd", ,"ContractData", C82, "T_CVol",, "T") -> 2152077 | L82: 82 | M82: =RANK($J82,$J$1:J$137)+COUNTIF($J$1:J82,J82)-1 -> 50 | N82: S.US.MRNA | O82: S.US.AVBP | P82: =RTD("cqg.rtd", ,"ContractData",O82, "PerCentNetLastTrade",, "T")/100 -> -0.008035062089 | Q82: https://finance.yahoo.com/quote/AVBP | T82: 0.008035062089 | V82: =IFERROR(RTD("cqg.rtd", ,"ContractData",O82, "LongDescription",, "T"),"") -> ArriVent BioPharma, Inc. | Y82: -0.008035062089 | AB82: 0 | AE82: 0.008035062089 | AF82: -0.008035062089
A83: =RTD("cqg.rtd", ,"ContractData",C83, "LongDescription",, "T") -> Myriad Genetics Inc | B83: S.US.MYGN | C83: S.US.MYGN | D83: =RTD("cqg.rtd", ,"ContractData",C83, "LongDescription",, "T") -> Myriad Genetics Inc | E83: =RTD("cqg.rtd", ,"ContractData",C83, "Open",, "T") -> 12.78 | F83: =RTD("cqg.rtd", ,"ContractData",C83, "High",, "T") -> 12.87 | G83: =RTD("cqg.rtd", ,"ContractData",C83, "Low",, "T") -> 12.53 | H83: =RTD("cqg.rtd", ,"ContractData",C83, "LastTradeToday",, "T") -> 12.61 | I83: =RTD("cqg.rtd", ,"ContractData",C83, "NetLastTradeToday",, "T") -> -0.12 | J83: =IFERROR(RTD("cqg.rtd", ,"ContractData",C83, "PerCentNetLastTrade",, "T")/100,0) -> -0.009426551453 | K83: =RTD("cqg.rtd", ,"ContractData", C83, "T_CVol",, "T") -> 88724 | L83: 83 | M83: =RANK($J83,$J$1:J$137)+COUNTIF($J$1:J83,J83)-1 -> 94 | N83: S.US.MYGN | O83: S.US.XNCR | P83: =RTD("cqg.rtd", ,"ContractData",O83, "PerCentNetLastTrade",, "T")/100 -> -0.008115942029 | Q83: https://finance.yahoo.com/quote/XNCR | T83: 0.008115942029 | V83: =IFERROR(RTD("cqg.rtd", ,"ContractData",O83, "LongDescription",, "T"),"") -> Xencor, Inc. | Y83: -0.008115942029 | AB83: 0 | AE83: 0.008115942029 | AF83: -0.008115942029
A84: =RTD("cqg.rtd", ,"ContractData",C84, "LongDescription",, "T") -> Neurocrine Biosciences Inc | B84: S.US.NBIX | C84: S.US.NBIX | D84: =RTD("cqg.rtd", ,"ContractData",C84, "LongDescription",, "T") -> Neurocrine Biosciences Inc | E84: =RTD("cqg.rtd", ,"ContractData",C84, "Open",, "T") -> 126.01 | F84: =RTD("cqg.rtd", ,"ContractData",C84, "High",, "T") -> 132 | G84: =RTD("cqg.rtd", ,"ContractData",C84, "Low",, "T") -> 124.53 | H84: =RTD("cqg.rtd", ,"ContractData",C84, "LastTradeToday",, "T") -> 128.77 | I84: =RTD("cqg.rtd", ,"ContractData",C84, "NetLastTradeToday",, "T") -> -21.74 | J84: =IFERROR(RTD("cqg.rtd", ,"ContractData",C84, "PerCentNetLastTrade",, "T")/100,0) -> -0.1444422298 | K84: =RTD("cqg.rtd", ,"ContractData", C84, "T_CVol",, "T") -> 2122667 | L84: 84 | M84: =RANK($J84,$J$1:J$137)+COUNTIF($J$1:J84,J84)-1 -> 137 | N84: S.US.NBIX | O84: S.US.ADMA | P84: =RTD("cqg.rtd", ,"ContractData",O84, "PerCentNetLastTrade",, "T")/100 -> -0.008274231678 | Q84: https://finance.yahoo.com/quote/ADMA | T84: 0.008274231678 | V84: =IFERROR(RTD("cqg.rtd", ,"ContractData",O84, "LongDescription",, "T"),"") -> ADMA Biologics Inc | Y84: -0.008274231678 | AB84: 0 | AE84: 0.008274231678 | AF84: -0.008274231678
A85: =RTD("cqg.rtd", ,"ContractData",C85, "LongDescription",, "T") -> Nurix Therapeutics, Inc | B85: S.US.NRIX | C85: S.US.NRIX | D85: =RTD("cqg.rtd", ,"ContractData",C85, "LongDescription",, "T") -> Nurix Therapeutics, Inc | E85: =RTD("cqg.rtd", ,"ContractData",C85, "Open",, "T") -> 18.95 | F85: =RTD("cqg.rtd", ,"ContractData",C85, "High",, "T") -> 19.34 | G85: =RTD("cqg.rtd", ,"ContractData",C85, "Low",, "T") -> 18.77 | H85: =RTD("cqg.rtd", ,"ContractData",C85, "LastTradeToday",, "T") -> 19.17 | I85: =RTD("cqg.rtd", ,"ContractData",C85, "NetLastTradeToday",, "T") -> 0.13 | J85: =IFERROR(RTD("cqg.rtd", ,"ContractData",C85, "PerCentNetLastTrade",, "T")/100,0) -> 0.006827731092 | K85: =RTD("cqg.rtd", ,"ContractData", C85, "T_CVol",, "T") -> 42781 | L85: 85 | M85: =RANK($J85,$J$1:J$137)+COUNTIF($J$1:J85,J85)-1 -> 33 | N85: S.US.NRIX | O85: S.US.VCEL | P85: =RTD("cqg.rtd", ,"ContractData",O85, "PerCentNetLastTrade",, "T")/100 -> -0.00837520938 | Q85: https://finance.yahoo.com/quote/VCEL | T85: 0.00837520938 | V85: =IFERROR(RTD("cqg.rtd", ,"ContractData",O85, "LongDescription",, "T"),"") -> Vericel Corporation | Y85: -0.00837520938 | AB85: 0 | AE85: 0.00837520938 | AF85: -0.00837520938
A86: =RTD("cqg.rtd", ,"ContractData",C86, "LongDescription",, "T") -> Intellia Therapeutics, Inc. | B86: S.US.NTLA | C86: S.US.NTLA | D86: =RTD("cqg.rtd", ,"ContractData",C86, "LongDescription",, "T") -> Intellia Therapeutics, Inc. | E86: =RTD("cqg.rtd", ,"ContractData",C86, "Open",, "T") -> 10.07 | F86: =RTD("cqg.rtd", ,"ContractData",C86, "High",, "T") -> 10.43 | G86: =RTD("cqg.rtd", ,"ContractData",C86, "Low",, "T") -> 10 | H86: =RTD("cqg.rtd", ,"ContractData",C86, "LastTradeToday",, "T") -> 10.11 | I86: =RTD("cqg.rtd", ,"ContractData",C86, "NetLastTradeToday",, "T") -> -0.02 | J86: =IFERROR(RTD("cqg.rtd", ,"ContractData",C86, "PerCentNetLastTrade",, "T")/100,0) -> -0.001974333662 | K86: =RTD("cqg.rtd", ,"ContractData", C86, "T_CVol",, "T") -> 287018 | L86: 86 | M86: =RANK($J86,$J$1:J$137)+COUNTIF($J$1:J86,J86)-1 -> 59 | N86: S.US.NTLA | O86: S.US.PRAX | P86: =RTD("cqg.rtd", ,"ContractData",O86, "PerCentNetLastTrade",, "T")/100 -> -0.008465850589 | Q86: https://finance.yahoo.com/quote/PRAX | T86: 0.008465850589 | V86: =IFERROR(RTD("cqg.rtd", ,"ContractData",O86, "LongDescription",, "T"),"") -> Praxis Precision Medicines, Inc. | Y86: -0.008465850589 | AB86: 0 | AE86: 0.008465850589 | AF86: -0.008465850589
A87: =RTD("cqg.rtd", ,"ContractData",C87, "LongDescription",, "T") -> Natera, Inc. | B87: S.US.NTRA | C87: S.US.NTRA | D87: =RTD("cqg.rtd", ,"ContractData",C87, "LongDescription",, "T") -> Natera, Inc. | E87: =RTD("cqg.rtd", ,"ContractData",C87, "Open",, "T") -> 176.63 | F87: =RTD("cqg.rtd", ,"ContractData",C87, "High",, "T") -> 177.84 | G87: =RTD("cqg.rtd", ,"ContractData",C87, "Low",, "T") -> 173 | H87: =RTD("cqg.rtd", ,"ContractData",C87, "LastTradeToday",, "T") -> 174.76 | I87: =RTD("cqg.rtd", ,"ContractData",C87, "NetLastTradeToday",, "T") -> -0.38 | J87: =IFERROR(RTD("cqg.rtd", ,"ContractData",C87, "PerCentNetLastTrade",, "T")/100,0) -> -0.002169692817 | K87: =RTD("cqg.rtd", ,"ContractData", C87, "T_CVol",, "T") -> 141589 | L87: 87 | M87: =RANK($J87,$J$1:J$137)+COUNTIF($J$1:J87,J87)-1 -> 60 | N87: S.US.NTRA | O87: S.US.UTHR | P87: =RTD("cqg.rtd", ,"ContractData",O87, "PerCentNetLastTrade",, "T")/100 -> -0.008593639576 | Q87: https://finance.yahoo.com/quote/UTHR | T87: 0.008593639576 | V87: =IFERROR(RTD("cqg.rtd", ,"ContractData",O87, "LongDescription",, "T"),"") -> United Therapeutics Corp | Y87: -0.008593639576 | AB87: 0 | AE87: 0.008593639576 | AF87: -0.008593639576
A88: =RTD("cqg.rtd", ,"ContractData",C88, "LongDescription",, "T") -> Nuvalent, Inc. Class A | B88: S.US.NUVL | C88: S.US.NUVL | D88: =RTD("cqg.rtd", ,"ContractData",C88, "LongDescription",, "T") -> Nuvalent, Inc. Class A | E88: =RTD("cqg.rtd", ,"ContractData",C88, "Open",, "T") -> 86.29 | F88: =RTD("cqg.rtd", ,"ContractData",C88, "High",, "T") -> 86.77 | G88: =RTD("cqg.rtd", ,"ContractData",C88, "Low",, "T") -> 85.02 | H88: =RTD("cqg.rtd", ,"ContractData",C88, "LastTradeToday",, "T") -> 85.64 | I88: =RTD("cqg.rtd", ,"ContractData",C88, "NetLastTradeToday",, "T") -> -1.06 | J88: =IFERROR(RTD("cqg.rtd", ,"ContractData",C88, "PerCentNetLastTrade",, "T")/100,0) -> -0.0122260669 | K88: =RTD("cqg.rtd", ,"ContractData", C88, "T_CVol",, "T") -> 37762 | L88: 88 | M88: =RANK($J88,$J$1:J$137)+COUNTIF($J$1:J88,J88)-1 -> 101 | N88: S.US.NUVL | O88: S.US.APLS | P88: =RTD("cqg.rtd", ,"ContractData",O88, "PerCentNetLastTrade",, "T")/100 -> -0.008609271523 | Q88: https://finance.yahoo.com/quote/APLS | T88: 0.008609271523 | V88: =IFERROR(RTD("cqg.rtd", ,"ContractData",O88, "LongDescription",, "T"),"") -> Apellis Pharmaceuticals, Inc. | Y88: -0.008609271523 | AB88: 0 | AE88: 0.008609271523 | AF88: -0.008609271523
A89: =RTD("cqg.rtd", ,"ContractData",C89, "LongDescription",, "T") -> Novavax Inc | B89: S.US.NVAX | C89: S.US.NVAX | D89: =RTD("cqg.rtd", ,"ContractData",C89, "LongDescription",, "T") -> Novavax Inc | E89: =RTD("cqg.rtd", ,"ContractData",C89, "Open",, "T") -> 8.25 | F89: =RTD("cqg.rtd", ,"ContractData",C89, "High",, "T") -> 8.35 | G89: =RTD("cqg.rtd", ,"ContractData",C89, "Low",, "T") -> 8.18 | H89: =RTD("cqg.rtd", ,"ContractData",C89, "LastTradeToday",, "T") -> 8.26 | I89: =RTD("cqg.rtd", ,"ContractData",C89, "NetLastTradeToday",, "T") -> -0.01 | J89: =IFERROR(RTD("cqg.rtd", ,"ContractData",C89, "PerCentNetLastTrade",, "T")/100,0) -> -0.001209189843 | K89: =RTD("cqg.rtd", ,"ContractData", C89, "T_CVol",, "T") -> 426683 | L89: 89 | M89: =RANK($J89,$J$1:J$137)+COUNTIF($J$1:J89,J89)-1 -> 57 | N89: S.US.NVAX | O89: S.US.VRDN | P89: =RTD("cqg.rtd", ,"ContractData",O89, "PerCentNetLastTrade",, "T")/100 -> -0.008643976229 | Q89: https://finance.yahoo.com/quote/VRDN | T89: 0.008643976229 | V89: =IFERROR(RTD("cqg.rtd", ,"ContractData",O89, "LongDescription",, "T"),"") -> Viridian Therapeutics, Inc. | Y89: -0.008643976229 | AB89: 0 | AD89: =IFERROR(S89,"") ->  | AE89: 0.008643976229 | AF89: -0.008643976229
A90: =RTD("cqg.rtd", ,"ContractData",C90, "LongDescription",, "T") -> Olema Pharmaceuticals, Inc. | B90: S.US.OLMA | C90: S.US.OLMA | D90: =RTD("cqg.rtd", ,"ContractData",C90, "LongDescription",, "T") -> Olema Pharmaceuticals, Inc. | E90: =RTD("cqg.rtd", ,"ContractData",C90, "Open",, "T") -> 6.25 | F90: =RTD("cqg.rtd", ,"ContractData",C90, "High",, "T") -> 6.4 | G90: =RTD("cqg.rtd", ,"ContractData",C90, "Low",, "T") -> 6.07 | H90: =RTD("cqg.rtd", ,"ContractData",C90, "LastTradeToday",, "T") -> 6.15 | I90: =RTD("cqg.rtd", ,"ContractData",C90, "NetLastTradeToday",, "T") -> -0.1 | J90: =IFERROR(RTD("cqg.rtd", ,"ContractData",C90, "PerCentNetLastTrade",, "T")/100,0) -> -0.016 | K90: =RTD("cqg.rtd", ,"ContractData", C90, "T_CVol",, "T") -> 68617 | L90: 90 | M90: =RANK($J90,$J$1:J$137)+COUNTIF($J$1:J90,J90)-1 -> 114 | N90: S.US.OLMA | O90: S.US.VRTX | P90: =RTD("cqg.rtd", ,"ContractData",O90, "PerCentNetLastTrade",, "T")/100 -> -0.008853603791 | Q90: https://finance.yahoo.com/quote/VRTX | T90: 0.008853603791 | V90: =IFERROR(RTD("cqg.rtd", ,"ContractData",O90, "LongDescription",, "T"),"") -> Vertex Pharmaceuticals Incorporated | Y90: -0.008853603791 | AB90: 0 | AE90: 0.008853603791 | AF90: -0.008853603791
A91: =RTD("cqg.rtd", ,"ContractData",C91, "LongDescription",, "T") -> Oric Pharmaceuticals, Inc | B91: S.US.ORIC | C91: S.US.ORIC | D91: =RTD("cqg.rtd", ,"ContractData",C91, "LongDescription",, "T") -> Oric Pharmaceuticals, Inc | E91: =RTD("cqg.rtd", ,"ContractData",C91, "Open",, "T") -> 12.5 | F91: =RTD("cqg.rtd", ,"ContractData",C91, "High",, "T") -> 13 | G91: =RTD("cqg.rtd", ,"ContractData",C91, "Low",, "T") -> 12.33 | H91: =RTD("cqg.rtd", ,"ContractData",C91, "LastTradeToday",, "T") -> 12.7 | I91: =RTD("cqg.rtd", ,"ContractData",C91, "NetLastTradeToday",, "T") -> 0.16 | J91: =IFERROR(RTD("cqg.rtd", ,"ContractData",C91, "PerCentNetLastTrade",, "T")/100,0) -> 0.01275917065 | K91: =RTD("cqg.rtd", ,"ContractData", C91, "T_CVol",, "T") -> 98213 | L91: 91 | M91: =RANK($J91,$J$1:J$137)+COUNTIF($J$1:J91,J91)-1 -> 14 | N91: S.US.ORIC | O91: S.US.HALO | P91: =RTD("cqg.rtd", ,"ContractData",O91, "PerCentNetLastTrade",, "T")/100 -> -0.008974801519 | Q91: https://finance.yahoo.com/quote/HALO | T91: 0.008974801519 | V91: =IFERROR(RTD("cqg.rtd", ,"ContractData",O91, "LongDescription",, "T"),"") -> Halozyme Therapeutics | Y91: -0.008974801519 | AB91: 0 | AE91: 0.008974801519 | AF91: -0.008974801519
A92: =RTD("cqg.rtd", ,"ContractData",C92, "LongDescription",, "T") -> Vaxcyte, Inc. | B92: S.US.PCVX | C92: S.US.PCVX | D92: =RTD("cqg.rtd", ,"ContractData",C92, "LongDescription",, "T") -> Vaxcyte, Inc. | E92: =RTD("cqg.rtd", ,"ContractData",C92, "Open",, "T") -> 89.15 | F92: =RTD("cqg.rtd", ,"ContractData",C92, "High",, "T") -> 90.47 | G92: =RTD("cqg.rtd", ,"ContractData",C92, "Low",, "T") -> 88.18 | H92: =RTD("cqg.rtd", ,"ContractData",C92, "LastTradeToday",, "T") -> 88.81 | I92: =RTD("cqg.rtd", ,"ContractData",C92, "NetLastTradeToday",, "T") -> -0.2 | J92: =IFERROR(RTD("cqg.rtd", ,"ContractData",C92, "PerCentNetLastTrade",, "T")/100,0) -> -0.002246938546 | K92: =RTD("cqg.rtd", ,"ContractData", C92, "T_CVol",, "T") -> 64017 | L92: 92 | M92: =RANK($J92,$J$1:J$137)+COUNTIF($J$1:J92,J92)-1 -> 62 | N92: S.US.PCVX | O92: S.US.REPL | P92: =RTD("cqg.rtd", ,"ContractData",O92, "PerCentNetLastTrade",, "T")/100 -> -0.009246088193 | Q92: https://finance.yahoo.com/quote/REPL | T92: 0.009246088193 | V92: =IFERROR(RTD("cqg.rtd", ,"ContractData",O92, "LongDescription",, "T"),"") -> Replimune Group, Inc. | Y92: -0.009246088193 | AB92: 0 | AE92: 0.009246088193 | AF92: -0.009246088193
A93: =RTD("cqg.rtd", ,"ContractData",C93, "LongDescription",, "T") -> Praxis Precision Medicines, Inc. | B93: S.US.PRAX | C93: S.US.PRAX | D93: =RTD("cqg.rtd", ,"ContractData",C93, "LongDescription",, "T") -> Praxis Precision Medicines, Inc. | E93: =RTD("cqg.rtd", ,"ContractData",C93, "Open",, "T") -> 87.16 | F93: =RTD("cqg.rtd", ,"ContractData",C93, "High",, "T") -> 88.3 | G93: =RTD("cqg.rtd", ,"ContractData",C93, "Low",, "T") -> 86.25 | H93: =RTD("cqg.rtd", ,"ContractData",C93, "LastTradeToday",, "T") -> 86.67 | I93: =RTD("cqg.rtd", ,"ContractData",C93, "NetLastTradeToday",, "T") -> -0.74 | J93: =IFERROR(RTD("cqg.rtd", ,"ContractData",C93, "PerCentNetLastTrade",, "T")/100,0) -> -0.008465850589 | K93: =RTD("cqg.rtd", ,"ContractData", C93, "T_CVol",, "T") -> 49032 | L93: 93 | M93: =RANK($J93,$J$1:J$137)+COUNTIF($J$1:J93,J93)-1 -> 86 | N93: S.US.PRAX | O93: S.US.AKBA | P93: =RTD("cqg.rtd", ,"ContractData",O93, "PerCentNetLastTrade",, "T")/100 -> -0.009259259259 | Q93: https://finance.yahoo.com/quote/AKBA | T93: 0.009259259259 | V93: =IFERROR(RTD("cqg.rtd", ,"ContractData",O93, "LongDescription",, "T"),"") -> Akebia Therapeutics, Inc. | Y93: -0.009259259259 | AB93: 0 | AE93: 0.009259259259 | AF93: -0.009259259259
A94: =RTD("cqg.rtd", ,"ContractData",C94, "LongDescription",, "T") -> Prothena | B94: S.US.PRTA | C94: S.US.PRTA | D94: =RTD("cqg.rtd", ,"ContractData",C94, "LongDescription",, "T") -> Prothena | E94: =RTD("cqg.rtd", ,"ContractData",C94, "Open",, "T") -> 14.55 | F94: =RTD("cqg.rtd", ,"ContractData",C94, "High",, "T") -> 14.75 | G94: =RTD("cqg.rtd", ,"ContractData",C94, "Low",, "T") -> 14.32 | H94: =RTD("cqg.rtd", ,"ContractData",C94, "LastTradeToday",, "T") -> 14.4 | I94: =RTD("cqg.rtd", ,"ContractData",C94, "NetLastTradeToday",, "T") -> -0.04 | J94: =IFERROR(RTD("cqg.rtd", ,"ContractData",C94, "PerCentNetLastTrade",, "T")/100,0) -> -0.002770083102 | K94: =RTD("cqg.rtd", ,"ContractData", C94, "T_CVol",, "T") -> 41938 | L94: 94 | M94: =RANK($J94,$J$1:J$137)+COUNTIF($J$1:J94,J94)-1 -> 65 | N94: S.US.PRTA | O94: S.US.MYGN | P94: =RTD("cqg.rtd", ,"ContractData",O94, "PerCentNetLastTrade",, "T")/100 -> -0.009426551453 | Q94: https://finance.yahoo.com/quote/MYGN | T94: 0.009426551453 | V94: =IFERROR(RTD("cqg.rtd", ,"ContractData",O94, "LongDescription",, "T"),"") -> Myriad Genetics Inc | Y94: -0.009426551453 | AB94: 0 | AE94: 0.009426551453 | AF94: -0.009426551453
A95: =RTD("cqg.rtd", ,"ContractData",C95, "LongDescription",, "T") -> PTC Therapeutics, Inc | B95: S.US.PTCT | C95: S.US.PTCT | D95: =RTD("cqg.rtd", ,"ContractData",C95, "LongDescription",, "T") -> PTC Therapeutics, Inc | E95: =RTD("cqg.rtd", ,"ContractData",C95, "Open",, "T") -> 49.82 | F95: =RTD("cqg.rtd", ,"ContractData",C95, "High",, "T") -> 50.84 | G95: =RTD("cqg.rtd", ,"ContractData",C95, "Low",, "T") -> 49.16 | H95: =RTD("cqg.rtd", ,"ContractData",C95, "LastTradeToday",, "T") -> 50.43 | I95: =RTD("cqg.rtd", ,"ContractData",C95, "NetLastTradeToday",, "T") -> 0.64 | J95: =IFERROR(RTD("cqg.rtd", ,"ContractData",C95, "PerCentNetLastTrade",, "T")/100,0) -> 0.01285398674 | K95: =RTD("cqg.rtd", ,"ContractData", C95, "T_CVol",, "T") -> 41065 | L95: 95 | M95: =RANK($J95,$J$1:J$137)+COUNTIF($J$1:J95,J95)-1 -> 13 | N95: S.US.PTCT | O95: S.US.KYMR | P95: =RTD("cqg.rtd", ,"ContractData",O95, "PerCentNetLastTrade",, "T")/100 -> -0.01024590164 | Q95: https://finance.yahoo.com/quote/KYMR | T95: 0.01024590164 | V95: =IFERROR(RTD("cqg.rtd", ,"ContractData",O95, "LongDescription",, "T"),"") -> Kymera Therapeutics, Inc. | Y95: -0.01024590164 | AB95: 0 | AE95: 0.01024590164 | AF95: -0.01024590164
A96: =RTD("cqg.rtd", ,"ContractData",C96, "LongDescription",, "T") -> Protagonist Therapeutics, Inc. | B96: S.US.PTGX | C96: S.US.PTGX | D96: =RTD("cqg.rtd", ,"ContractData",C96, "LongDescription",, "T") -> Protagonist Therapeutics, Inc. | E96: =RTD("cqg.rtd", ,"ContractData",C96, "Open",, "T") -> 37.81 | F96: =RTD("cqg.rtd", ,"ContractData",C96, "High",, "T") -> 38.88 | G96: =RTD("cqg.rtd", ,"ContractData",C96, "Low",, "T") -> 37.81 | H96: =RTD("cqg.rtd", ,"ContractData",C96, "LastTradeToday",, "T") -> 38.72 | I96: =RTD("cqg.rtd", ,"ContractData",C96, "NetLastTradeToday",, "T") -> 0.97 | J96: =IFERROR(RTD("cqg.rtd", ,"ContractData",C96, "PerCentNetLastTrade",, "T")/100,0) -> 0.02569536424 | K96: =RTD("cqg.rtd", ,"ContractData", C96, "T_CVol",, "T") -> 80198 | L96: 96 | M96: =RANK($J96,$J$1:J$137)+COUNTIF($J$1:J96,J96)-1 -> 5 | N96: S.US.PTGX | O96: S.US.SMMT | P96: =RTD("cqg.rtd", ,"ContractData",O96, "PerCentNetLastTrade",, "T")/100 -> -0.01064344461 | Q96: https://finance.yahoo.com/quote/SMMT | T96: 0.01064344461 | V96: =IFERROR(RTD("cqg.rtd", ,"ContractData",O96, "LongDescription",, "T"),"") -> Summit Therapeutics Inc. | Y96: -0.01064344461 | AB96: 0 | AE96: 0.01064344461 | AF96: -0.01064344461
A97: =RTD("cqg.rtd", ,"ContractData",C97, "LongDescription",, "T") -> Ultragenyx Pharmaceutical Inc. | B97: S.US.RARE | C97: S.US.RARE | D97: =RTD("cqg.rtd", ,"ContractData",C97, "LongDescription",, "T") -> Ultragenyx Pharmaceutical Inc. | E97: =RTD("cqg.rtd", ,"ContractData",C97, "Open",, "T") -> 45.73 | F97: =RTD("cqg.rtd", ,"ContractData",C97, "High",, "T") -> 46.15 | G97: =RTD("cqg.rtd", ,"ContractData",C97, "Low",, "T") -> 45.15 | H97: =RTD("cqg.rtd", ,"ContractData",C97, "LastTradeToday",, "T") -> 45.9 | I97: =RTD("cqg.rtd", ,"ContractData",C97, "NetLastTradeToday",, "T") -> 0.12 | J97: =IFERROR(RTD("cqg.rtd", ,"ContractData",C97, "PerCentNetLastTrade",, "T")/100,0) -> 0.002621231979 | K97: =RTD("cqg.rtd", ,"ContractData", C97, "T_CVol",, "T") -> 97382 | L97: 97 | M97: =RANK($J97,$J$1:J$137)+COUNTIF($J$1:J97,J97)-1 -> 43 | N97: =C97 -> S.US.RARE | O97: S.US.ETNB | P97: =RTD("cqg.rtd", ,"ContractData",O97, "PerCentNetLastTrade",, "T")/100 -> -0.0113735783 | Q97: https://finance.yahoo.com/quote/ETNB | T97: 0.0113735783 | V97: =IFERROR(RTD("cqg.rtd", ,"ContractData",O97, "LongDescription",, "T"),"") -> 89bio, Inc. | Y97: -0.0113735783 | AB97: 0 | AE97: 0.0113735783 | AF97: -0.0113735783
A98: =RTD("cqg.rtd", ,"ContractData",C98, "LongDescription",, "T") -> Rocket Pharmaceuticals, Inc. | B98: S.US.RCKT | C98: S.US.RCKT | D98: =RTD("cqg.rtd", ,"ContractData",C98, "LongDescription",, "T") -> Rocket Pharmaceuticals, Inc. | E98: =RTD("cqg.rtd", ,"ContractData",C98, "Open",, "T") -> 10.63 | F98: =RTD("cqg.rtd", ,"ContractData",C98, "High",, "T") -> 10.73 | G98: =RTD("cqg.rtd", ,"ContractData",C98, "Low",, "T") -> 10.53 | H98: =RTD("cqg.rtd", ,"ContractData",C98, "LastTradeToday",, "T") -> 10.65 | I98: =RTD("cqg.rtd", ,"ContractData",C98, "NetLastTradeToday",, "T") -> 0 | J98: =IFERROR(RTD("cqg.rtd", ,"ContractData",C98, "PerCentNetLastTrade",, "T")/100,0) -> 0 | K98: =RTD("cqg.rtd", ,"ContractData", C98, "T_CVol",, "T") -> 137990 | L98: 98 | M98: =RANK($J98,$J$1:J$137)+COUNTIF($J$1:J98,J98)-1 -> 53 | N98: S.US.RCKT | O98: S.US.CGEM | P98: =RTD("cqg.rtd", ,"ContractData",O98, "PerCentNetLastTrade",, "T")/100 -> -0.0115942029 | Q98: https://finance.yahoo.com/quote/CGEM | T98: 0.0115942029 | V98: =IFERROR(RTD("cqg.rtd", ,"ContractData",O98, "LongDescription",, "T"),"") -> Cullinan Therapeutics, Inc. | Y98: -0.0115942029 | AB98: 0 | AE98: 0.0115942029 | AF98: -0.0115942029
A99: =RTD("cqg.rtd", ,"ContractData",C99, "LongDescription",, "T") -> Arcus Biosciences, Inc. | B99: S.US.RCUS | C99: S.US.RCUS | D99: =RTD("cqg.rtd", ,"ContractData",C99, "LongDescription",, "T") -> Arcus Biosciences, Inc. | E99: =RTD("cqg.rtd", ,"ContractData",C99, "Open",, "T") -> 13.01 | F99: =RTD("cqg.rtd", ,"ContractData",C99, "High",, "T") -> 13.05 | G99: =RTD("cqg.rtd", ,"ContractData",C99, "Low",, "T") -> 12.9 | H99: =RTD("cqg.rtd", ,"ContractData",C99, "LastTradeToday",, "T") -> 12.96 | I99: =RTD("cqg.rtd", ,"ContractData",C99, "NetLastTradeToday",, "T") -> -0.05 | J99: =IFERROR(RTD("cqg.rtd", ,"ContractData",C99, "PerCentNetLastTrade",, "T")/100,0) -> -0.00384319754 | K99: =RTD("cqg.rtd", ,"ContractData", C99, "T_CVol",, "T") -> 21942 | L99: 99 | M99: =RANK($J99,$J$1:J$137)+COUNTIF($J$1:J99,J99)-1 -> 67 | N99: S.US.RCUS | O99: S.US.ATXS | P99: =RTD("cqg.rtd", ,"ContractData",O99, "PerCentNetLastTrade",, "T")/100 -> -0.01208053691 | Q99: https://finance.yahoo.com/quote/ATXS | T99: 0.01208053691 | V99: =IFERROR(RTD("cqg.rtd", ,"ContractData",O99, "LongDescription",, "T"),"") -> Astria Therapeutics, Inc. | Y99: -0.01208053691 | AB99: 0 | AE99: 0.01208053691 | AF99: -0.01208053691
A100: =RTD("cqg.rtd", ,"ContractData",C100, "LongDescription",, "T") -> Regeneron Pharm Inc | B100: S.US.REGN | C100: S.US.REGN | D100: =RTD("cqg.rtd", ,"ContractData",C100, "LongDescription",, "T") -> Regeneron Pharm Inc | E100: =RTD("cqg.rtd", ,"ContractData",C100, "Open",, "T") -> 726.46 | F100: =RTD("cqg.rtd", ,"ContractData",C100, "High",, "T") -> 731.42 | G100: =RTD("cqg.rtd", ,"ContractData",C100, "Low",, "T") -> 722.69 | H100: =RTD("cqg.rtd", ,"ContractData",C100, "LastTradeToday",, "T") -> 728.8 | I100: =RTD("cqg.rtd", ,"ContractData",C100, "NetLastTradeToday",, "T") -> 6.73 | J100: =IFERROR(RTD("cqg.rtd", ,"ContractData",C100, "PerCentNetLastTrade",, "T")/100,0) -> 0.009320425997 | K100: =RTD("cqg.rtd", ,"ContractData", C100, "T_CVol",, "T") -> 116763 | L100: 100 | M100: =RANK($J100,$J$1:J$137)+COUNTIF($J$1:J100,J100)-1 -> 24 | N100: S.US.REGN | O100: S.US.INSM | P100: =RTD("cqg.rtd", ,"ContractData",O100, "PerCentNetLastTrade",, "T")/100 -> -0.01213171577 | Q100: https://finance.yahoo.com/quote/INSM | T100: 0.01213171577 | V100: =IFERROR(RTD("cqg.rtd", ,"ContractData",O100, "LongDescription",, "T"),"") -> Insmed, Inc. | Y100: -0.01213171577 | AB100: 0 | AE100: 0.01213171577 | AF100: -0.01213171577
A101: =RTD("cqg.rtd", ,"ContractData",C101, "LongDescription",, "T") -> Replimune Group, Inc. | B101: S.US.REPL | C101: S.US.REPL | D101: =RTD("cqg.rtd", ,"ContractData",C101, "LongDescription",, "T") -> Replimune Group, Inc. | E101: =RTD("cqg.rtd", ,"ContractData",C101, "Open",, "T") -> 13.88 | F101: =RTD("cqg.rtd", ,"ContractData",C101, "High",, "T") -> 14.14 | G101: =RTD("cqg.rtd", ,"ContractData",C101, "Low",, "T") -> 13.72 | H101: =RTD("cqg.rtd", ,"ContractData",C101, "LastTradeToday",, "T") -> 13.93 | I101: =RTD("cqg.rtd", ,"ContractData",C101, "NetLastTradeToday",, "T") -> -0.13 | J101: =IFERROR(RTD("cqg.rtd", ,"ContractData",C101, "PerCentNetLastTrade",, "T")/100,0) -> -0.009246088193 | K101: =RTD("cqg.rtd", ,"ContractData", C101, "T_CVol",, "T") -> 40204 | L101: 101 | M101: =RANK($J101,$J$1:J$137)+COUNTIF($J$1:J101,J101)-1 -> 92 | N101: S.US.REPL | O101: S.US.NUVL | P101: =RTD("cqg.rtd", ,"ContractData",O101, "PerCentNetLastTrade",, "T")/100 -> -0.0122260669 | Q101: https://finance.yahoo.com/quote/NUVL | T101: 0.0122260669 | V101: =IFERROR(RTD("cqg.rtd", ,"ContractData",O101, "LongDescription",, "T"),"") -> Nuvalent, Inc. Class A | Y101: -0.0122260669 | AB101: 0 | AE101: 0.0122260669 | AF101: -0.0122260669
A102: =RTD("cqg.rtd", ,"ContractData",C102, "LongDescription",, "T") -> REGENXBIO Inc. | B102: S.US.RGNX | C102: S.US.RGNX | D102: =RTD("cqg.rtd", ,"ContractData",C102, "LongDescription",, "T") -> REGENXBIO Inc. | E102: =RTD("cqg.rtd", ,"ContractData",C102, "Open",, "T") -> 8.55 | F102: =RTD("cqg.rtd", ,"ContractData",C102, "High",, "T") -> 8.66 | G102: =RTD("cqg.rtd", ,"ContractData",C102, "Low",, "T") -> 8.35 | H102: =RTD("cqg.rtd", ,"ContractData",C102, "LastTradeToday",, "T") -> 8.51 | I102: =RTD("cqg.rtd", ,"ContractData",C102, "NetLastTradeToday",, "T") -> 0.08 | J102: =IFERROR(RTD("cqg.rtd", ,"ContractData",C102, "PerCentNetLastTrade",, "T")/100,0) -> 0.009489916963 | K102: =RTD("cqg.rtd", ,"ContractData", C102, "T_CVol",, "T") -> 71271 | L102: 102 | M102: =RANK($J102,$J$1:J$137)+COUNTIF($J$1:J102,J102)-1 -> 23 | N102: S.US.RGNX | O102: S.US.KALV | P102: =RTD("cqg.rtd", ,"ContractData",O102, "PerCentNetLastTrade",, "T")/100 -> -0.01247401247 | Q102: https://finance.yahoo.com/quote/KALV | T102: 0.01247401247 | V102: =IFERROR(RTD("cqg.rtd", ,"ContractData",O102, "LongDescription",, "T"),"") -> KalVista Pharmaceuticals, Inc. | Y102: -0.01247401247 | AB102: 0 | AE102: 0.01247401247 | AF102: -0.01247401247
A103: =RTD("cqg.rtd", ,"ContractData",C103, "LongDescription",, "T") -> Relay Therapeutics, Inc. | B103: S.US.RLAY | C103: S.US.RLAY | D103: =RTD("cqg.rtd", ,"ContractData",C103, "LongDescription",, "T") -> Relay Therapeutics, Inc. | E103: =RTD("cqg.rtd", ,"ContractData",C103, "Open",, "T") -> 4.53 | F103: =RTD("cqg.rtd", ,"ContractData",C103, "High",, "T") -> 4.58 | G103: =RTD("cqg.rtd", ,"ContractData",C103, "Low",, "T") -> 4.39 | H103: =RTD("cqg.rtd", ,"ContractData",C103, "LastTradeToday",, "T") -> 4.45 | I103: =RTD("cqg.rtd", ,"ContractData",C103, "NetLastTradeToday",, "T") -> -0.06 | J103: =IFERROR(RTD("cqg.rtd", ,"ContractData",C103, "PerCentNetLastTrade",, "T")/100,0) -> -0.0133037694 | K103: =RTD("cqg.rtd", ,"ContractData", C103, "T_CVol",, "T") -> 94301 | L103: 103 | M103: =RANK($J103,$J$1:J$137)+COUNTIF($J$1:J103,J103)-1 -> 106 | N103: S.US.RLAY | O103: S.US.AGIO | P103: =RTD("cqg.rtd", ,"ContractData",O103, "PerCentNetLastTrade",, "T")/100 -> -0.01249273678 | Q103: https://finance.yahoo.com/quote/AGIO | T103: 0.01249273678 | V103: =IFERROR(RTD("cqg.rtd", ,"ContractData",O103, "LongDescription",, "T"),"") -> Agios Pharmaceuticals, Inc. | Y103: -0.01249273678 | AB103: 0 | AE103: 0.01249273678 | AF103: -0.01249273678
A104: =RTD("cqg.rtd", ,"ContractData",C104, "LongDescription",, "T") -> Avidity Biosciences, Inc. | B104: S.US.RNA | C104: S.US.RNA | D104: =RTD("cqg.rtd", ,"ContractData",C104, "LongDescription",, "T") -> Avidity Biosciences, Inc. | E104: =RTD("cqg.rtd", ,"ContractData",C104, "Open",, "T") -> 35.07 | F104: =RTD("cqg.rtd", ,"ContractData",C104, "High",, "T") -> 35.53 | G104: =RTD("cqg.rtd", ,"ContractData",C104, "Low",, "T") -> 34.88 | H104: =RTD("cqg.rtd", ,"ContractData",C104, "LastTradeToday",, "T") -> 35.16 | I104: =RTD("cqg.rtd", ,"ContractData",C104, "NetLastTradeToday",, "T") -> 0.05 | J104: =IFERROR(RTD("cqg.rtd", ,"ContractData",C104, "PerCentNetLastTrade",, "T")/100,0) -> 0.001424095699 | K104: =RTD("cqg.rtd", ,"ContractData", C104, "T_CVol",, "T") -> 70211 | L104: 104 | M104: =RANK($J104,$J$1:J$137)+COUNTIF($J$1:J104,J104)-1 -> 48 | N104: S.US.RNA | O104: S.US.VIR | P104: =RTD("cqg.rtd", ,"ContractData",O104, "PerCentNetLastTrade",, "T")/100 -> -0.01270772239 | Q104: https://finance.yahoo.com/quote/VIR | T104: 0.01270772239 | V104: =IFERROR(RTD("cqg.rtd", ,"ContractData",O104, "LongDescription",, "T"),"") -> Vir Biotechnology, Inc. | Y104: -0.01270772239 | AB104: 0 | AE104: 0.01270772239 | AF104: -0.01270772239
A105: =RTD("cqg.rtd", ,"ContractData",C105, "LongDescription",, "T") -> Roivant Sciences Ltd. | B105: S.US.ROIV | C105: S.US.ROIV | D105: =RTD("cqg.rtd", ,"ContractData",C105, "LongDescription",, "T") -> Roivant Sciences Ltd. | E105: =RTD("cqg.rtd", ,"ContractData",C105, "Open",, "T") -> 10.83 | F105: =RTD("cqg.rtd", ,"ContractData",C105, "High",, "T") -> 11.08 | G105: =RTD("cqg.rtd", ,"ContractData",C105, "Low",, "T") -> 10.83 | H105: =RTD("cqg.rtd", ,"ContractData",C105, "LastTradeToday",, "T") -> 10.98 | I105: =RTD("cqg.rtd", ,"ContractData",C105, "NetLastTradeToday",, "T") -> 0.11 | J105: =IFERROR(RTD("cqg.rtd", ,"ContractData",C105, "PerCentNetLastTrade",, "T")/100,0) -> 0.01011959522 | K105: =RTD("cqg.rtd", ,"ContractData", C105, "T_CVol",, "T") -> 597307 | L105: 105 | M105: =RANK($J105,$J$1:J$137)+COUNTIF($J$1:J105,J105)-1 -> 20 | N105: S.US.ROIV | O105: S.US.ALNY | P105: =RTD("cqg.rtd", ,"ContractData",O105, "PerCentNetLastTrade",, "T")/100 -> -0.01293800539 | Q105: https://finance.yahoo.com/quote/ALNY | T105: 0.01293800539 | V105: =IFERROR(RTD("cqg.rtd", ,"ContractData",O105, "LongDescription",, "T"),"") -> Alnylam Pharmaceuticals, Inc. | Y105: -0.01293800539 | AB105: 0 | AE105: 0.01293800539 | AF105: -0.01293800539
A106: =RTD("cqg.rtd", ,"ContractData",C106, "LongDescription",, "T") -> Revolution Medicines, Inc. | B106: S.US.RVMD | C106: S.US.RVMD | D106: =RTD("cqg.rtd", ,"ContractData",C106, "LongDescription",, "T") -> Revolution Medicines, Inc. | E106: =RTD("cqg.rtd", ,"ContractData",C106, "Open",, "T") -> 43.38 | F106: =RTD("cqg.rtd", ,"ContractData",C106, "High",, "T") -> 44.01 | G106: =RTD("cqg.rtd", ,"ContractData",C106, "Low",, "T") -> 43.16 | H106: =RTD("cqg.rtd", ,"ContractData",C106, "LastTradeToday",, "T") -> 43.55 | I106: =RTD("cqg.rtd", ,"ContractData",C106, "NetLastTradeToday",, "T") -> -0.02 | J106: =IFERROR(RTD("cqg.rtd", ,"ContractData",C106, "PerCentNetLastTrade",, "T")/100,0) -> -0.0004590314437 | K106: =RTD("cqg.rtd", ,"ContractData", C106, "T_CVol",, "T") -> 112550 | L106: 106 | M106: =RANK($J106,$J$1:J$137)+COUNTIF($J$1:J106,J106)-1 -> 55 | N106: S.US.RVMD | O106: S.US.RLAY | P106: =RTD("cqg.rtd", ,"ContractData",O106, "PerCentNetLastTrade",, "T")/100 -> -0.0133037694 | Q106: https://finance.yahoo.com/quote/RLAY | T106: 0.0133037694 | V106: =IFERROR(RTD("cqg.rtd", ,"ContractData",O106, "LongDescription",, "T"),"") -> Relay Therapeutics, Inc. | Y106: -0.0133037694 | AB106: 0 | AE106: 0.0133037694 | AF106: -0.0133037694
A107: =RTD("cqg.rtd", ,"ContractData",C107, "LongDescription",, "T") -> Recursion Pharmaceuticals, Inc. Class A | B107: S.US.RXRX | C107: S.US.RXRX | D107: =RTD("cqg.rtd", ,"ContractData",C107, "LongDescription",, "T") -> Recursion Pharmaceuticals, Inc. Class A | E107: =RTD("cqg.rtd", ,"ContractData",C107, "Open",, "T") -> 7.35 | F107: =RTD("cqg.rtd", ,"ContractData",C107, "High",, "T") -> 7.88 | G107: =RTD("cqg.rtd", ,"ContractData",C107, "Low",, "T") -> 7.27 | H107: =RTD("cqg.rtd", ,"ContractData",C107, "LastTradeToday",, "T") -> 7.51 | I107: =RTD("cqg.rtd", ,"ContractData",C107, "NetLastTradeToday",, "T") -> 0.27 | J107: =IFERROR(RTD("cqg.rtd", ,"ContractData",C107, "PerCentNetLastTrade",, "T")/100,0) -> 0.03729281768 | K107: =RTD("cqg.rtd", ,"ContractData", C107, "T_CVol",, "T") -> 10384939 | L107: 107 | M107: =RANK($J107,$J$1:J$137)+COUNTIF($J$1:J107,J107)-1 -> 3 | N107: S.US.RXRX | O107: S.US.ANNX | P107: =RTD("cqg.rtd", ,"ContractData",O107, "PerCentNetLastTrade",, "T")/100 -> -0.01400560224 | Q107: https://finance.yahoo.com/quote/ANNX | T107: 0.01400560224 | V107: =IFERROR(RTD("cqg.rtd", ,"ContractData",O107, "LongDescription",, "T"),"") -> Annexon, Inc. | Y107: -0.01400560224 | AB107: 0 | AE107: 0.01400560224 | AF107: -0.01400560224
A108: =RTD("cqg.rtd", ,"ContractData",C108, "LongDescription",, "T") -> Rhythm Pharmaceuticals, Inc. | B108: S.US.RYTM | C108: S.US.RYTM | D108: =RTD("cqg.rtd", ,"ContractData",C108, "LongDescription",, "T") -> Rhythm Pharmaceuticals, Inc. | E108: =RTD("cqg.rtd", ,"ContractData",C108, "Open",, "T") -> 59.86 | F108: =RTD("cqg.rtd", ,"ContractData",C108, "High",, "T") -> 60.1 | G108: =RTD("cqg.rtd", ,"ContractData",C108, "Low",, "T") -> 59.65 | H108: =RTD("cqg.rtd", ,"ContractData",C108, "LastTradeToday",, "T") -> 59.92 | I108: =RTD("cqg.rtd", ,"ContractData",C108, "NetLastTradeToday",, "T") -> -0.09 | J108: =IFERROR(RTD("cqg.rtd", ,"ContractData",C108, "PerCentNetLastTrade",, "T")/100,0) -> -0.001499750042 | K108: =RTD("cqg.rtd", ,"ContractData", C108, "T_CVol",, "T") -> 48775 | L108: 108 | M108: =RANK($J108,$J$1:J$137)+COUNTIF($J$1:J108,J108)-1 -> 58 | N108: S.US.RYTM | O108: S.US.APGE | P108: =RTD("cqg.rtd", ,"ContractData",O108, "PerCentNetLastTrade",, "T")/100 -> -0.0141690682 | Q108: https://finance.yahoo.com/quote/APGE | T108: 0.0141690682 | V108: =IFERROR(RTD("cqg.rtd", ,"ContractData",O108, "LongDescription",, "T"),"") -> Apogee Therapeutics, Inc. | Y108: -0.0141690682 | AB108: 0 | AE108: 0.0141690682 | AF108: -0.0141690682
A109: =RTD("cqg.rtd", ,"ContractData",C109, "LongDescription",, "T") -> Sana Biotechnology, Inc. | B109: S.US.SANA | C109: S.US.SANA | D109: =RTD("cqg.rtd", ,"ContractData",C109, "LongDescription",, "T") -> Sana Biotechnology, Inc. | E109: =RTD("cqg.rtd", ,"ContractData",C109, "Open",, "T") -> 3.26 | F109: =RTD("cqg.rtd", ,"ContractData",C109, "High",, "T") -> 3.29 | G109: =RTD("cqg.rtd", ,"ContractData",C109, "Low",, "T") -> 3.14 | H109: =RTD("cqg.rtd", ,"ContractData",C109, "LastTradeToday",, "T") -> 3.18 | I109: =RTD("cqg.rtd", ,"ContractData",C109, "NetLastTradeToday",, "T") -> -0.08 | J109: =IFERROR(RTD("cqg.rtd", ,"ContractData",C109, "PerCentNetLastTrade",, "T")/100,0) -> -0.0245398773 | K109: =RTD("cqg.rtd", ,"ContractData", C109, "T_CVol",, "T") -> 355782 | L109: 109 | M109: =RANK($J109,$J$1:J$137)+COUNTIF($J$1:J109,J109)-1 -> 131 | N109: S.US.SANA | O109: S.US.FOLD | P109: =RTD("cqg.rtd", ,"ContractData",O109, "PerCentNetLastTrade",, "T")/100 -> -0.01424211597 | Q109: https://finance.yahoo.com/quote/FOLD | T109: 0.01424211597 | V109: =IFERROR(RTD("cqg.rtd", ,"ContractData",O109, "LongDescription",, "T"),"") -> Amicus Therapeutics Inc | Y109: -0.01424211597 | AB109: 0 | AE109: 0.01424211597 | AF109: -0.01424211597
A110: =RTD("cqg.rtd", ,"ContractData",C110, "LongDescription",, "T") -> Scilex Holding Company | B110: S.US.SCLX | C110: S.US.SCLX | D110: =RTD("cqg.rtd", ,"ContractData",C110, "LongDescription",, "T") -> Scilex Holding Company | E110: =RTD("cqg.rtd", ,"ContractData",C110, "Open",, "T") -> 0.39 | F110: =RTD("cqg.rtd", ,"ContractData",C110, "High",, "T") -> 0.39 | G110: =RTD("cqg.rtd", ,"ContractData",C110, "Low",, "T") -> 0.38 | H110: =RTD("cqg.rtd", ,"ContractData",C110, "LastTradeToday",, "T") -> 0.38 | I110: =RTD("cqg.rtd", ,"ContractData",C110, "NetLastTradeToday",, "T") -> 0.02 | J110: =IFERROR(RTD("cqg.rtd", ,"ContractData",C110, "PerCentNetLastTrade",, "T")/100,0) -> 0.05555555556 | K110: =RTD("cqg.rtd", ,"ContractData", C110, "T_CVol",, "T") -> 562849 | L110: 110 | M110: =RANK($J110,$J$1:J$137)+COUNTIF($J$1:J110,J110)-1 -> 2 | N110: S.US.SCLX | O110: S.US.CDNA | P110: =RTD("cqg.rtd", ,"ContractData",O110, "PerCentNetLastTrade",, "T")/100 -> -0.01453744493 | Q110: https://finance.yahoo.com/quote/CDNA | T110: 0.01453744493 | V110: =IFERROR(RTD("cqg.rtd", ,"ContractData",O110, "LongDescription",, "T"),"") -> CareDx, Inc. | Y110: -0.01453744493 | AB110: 0 | AE110: 0.01453744493 | AF110: -0.01453744493
A111: =RTD("cqg.rtd", ,"ContractData",C111, "LongDescription",, "T") -> Sangamo Therapeutics, Inc. | B111: S.US.SGMO | C111: S.US.SGMO | D111: =RTD("cqg.rtd", ,"ContractData",C111, "LongDescription",, "T") -> Sangamo Therapeutics, Inc. | E111: =RTD("cqg.rtd", ,"ContractData",C111, "Open",, "T") -> 1.27 | F111: =RTD("cqg.rtd", ,"ContractData",C111, "High",, "T") -> 1.29 | G111: =RTD("cqg.rtd", ,"ContractData",C111, "Low",, "T") -> 1.23 | H111: =RTD("cqg.rtd", ,"ContractData",C111, "LastTradeToday",, "T") -> 1.24 | I111: =RTD("cqg.rtd", ,"ContractData",C111, "NetLastTradeToday",, "T") -> -0.03 | J111: =IFERROR(RTD("cqg.rtd", ,"ContractData",C111, "PerCentNetLastTrade",, "T")/100,0) -> -0.02362204724 | K111: =RTD("cqg.rtd", ,"ContractData", C111, "T_CVol",, "T") -> 914618 | L111: 111 | M111: =RANK($J111,$J$1:J$137)+COUNTIF($J$1:J111,J111)-1 -> 128 | N111: S.US.SGMO | O111: S.US.COGT | P111: =RTD("cqg.rtd", ,"ContractData",O111, "PerCentNetLastTrade",, "T")/100 -> -0.01526717557 | Q111: https://finance.yahoo.com/quote/COGT | T111: 0.01526717557 | V111: =IFERROR(RTD("cqg.rtd", ,"ContractData",O111, "LongDescription",, "T"),"") -> Cogent Biosciences, Inc. | Y111: -0.01526717557 | AB111: 0 | AE111: 0.01526717557 | AF111: -0.01526717557
A112: =RTD("cqg.rtd", ,"ContractData",C112, "LongDescription",, "T") -> Soleno Therapeutics, Inc. | B112: S.US.SLNO | C112: S.US.SLNO | D112: =RTD("cqg.rtd", ,"ContractData",C112, "LongDescription",, "T") -> Soleno Therapeutics, Inc. | E112: =RTD("cqg.rtd", ,"ContractData",C112, "Open",, "T") -> 51.01 | F112: =RTD("cqg.rtd", ,"ContractData",C112, "High",, "T") -> 51.31 | G112: =RTD("cqg.rtd", ,"ContractData",C112, "Low",, "T") -> 50.04 | H112: =RTD("cqg.rtd", ,"ContractData",C112, "LastTradeToday",, "T") -> 50.16 | I112: =RTD("cqg.rtd", ,"ContractData",C112, "NetLastTradeToday",, "T") -> -0.82 | J112: =IFERROR(RTD("cqg.rtd", ,"ContractData",C112, "PerCentNetLastTrade",, "T")/100,0) -> -0.01608473911 | K112: =RTD("cqg.rtd", ,"ContractData", C112, "T_CVol",, "T") -> 55460 | L112: 112 | M112: =RANK($J112,$J$1:J$137)+COUNTIF($J$1:J112,J112)-1 -> 115 | N112: S.US.SLNO | O112: S.US.IMNM | P112: =RTD("cqg.rtd", ,"ContractData",O112, "PerCentNetLastTrade",, "T")/100 -> -0.0157480315 | Q112: https://finance.yahoo.com/quote/IMNM | T112: 0.0157480315 | V112: =IFERROR(RTD("cqg.rtd", ,"ContractData",O112, "LongDescription",, "T"),"") -> Immunome, Inc. | Y112: -0.0157480315 | AB112: 0 | AE112: 0.0157480315 | AF112: -0.0157480315
A113: =RTD("cqg.rtd", ,"ContractData",C113, "LongDescription",, "T") -> Summit Therapeutics Inc. | B113: S.US.SMMT | C113: S.US.SMMT | D113: =RTD("cqg.rtd", ,"ContractData",C113, "LongDescription",, "T") -> Summit Therapeutics Inc. | E113: =RTD("cqg.rtd", ,"ContractData",C113, "Open",, "T") -> 20.5 | F113: =RTD("cqg.rtd", ,"ContractData",C113, "High",, "T") -> 20.95 | G113: =RTD("cqg.rtd", ,"ContractData",C113, "Low",, "T") -> 20.08 | H113: =RTD("cqg.rtd", ,"ContractData",C113, "LastTradeToday",, "T") -> 20.45 | I113: =RTD("cqg.rtd", ,"ContractData",C113, "NetLastTradeToday",, "T") -> -0.22 | J113: =IFERROR(RTD("cqg.rtd", ,"ContractData",C113, "PerCentNetLastTrade",, "T")/100,0) -> -0.01064344461 | K113: =RTD("cqg.rtd", ,"ContractData", C113, "T_CVol",, "T") -> 219587 | L113: 113 | M113: =RANK($J113,$J$1:J$137)+COUNTIF($J$1:J113,J113)-1 -> 96 | N113: S.US.SMMT | O113: S.US.DAWN | P113: =RTD("cqg.rtd", ,"ContractData",O113, "PerCentNetLastTrade",, "T")/100 -> -0.01598721023 | Q113: https://finance.yahoo.com/quote/DAWN | T113: 0.01598721023 | V113: =IFERROR(RTD("cqg.rtd", ,"ContractData",O113, "LongDescription",, "T"),"") -> Day One Biopharmaceuticals, Inc. | Y113: -0.01598721023 | AB113: 0 | AE113: 0.01598721023 | AF113: -0.01598721023
A114: =RTD("cqg.rtd", ,"ContractData",C114, "LongDescription",, "T") -> Syndax Pharmaceuticals, Inc. | B114: S.US.SNDX | C114: S.US.SNDX | D114: =RTD("cqg.rtd", ,"ContractData",C114, "LongDescription",, "T") -> Syndax Pharmaceuticals, Inc. | E114: =RTD("cqg.rtd", ,"ContractData",C114, "Open",, "T") -> 15.71 | F114: =RTD("cqg.rtd", ,"ContractData",C114, "High",, "T") -> 16.16 | G114: =RTD("cqg.rtd", ,"ContractData",C114, "Low",, "T") -> 15.38 | H114: =RTD("cqg.rtd", ,"ContractData",C114, "LastTradeToday",, "T") -> 15.46 | I114: =RTD("cqg.rtd", ,"ContractData",C114, "NetLastTradeToday",, "T") -> -0.36 | J114: =IFERROR(RTD("cqg.rtd", ,"ContractData",C114, "PerCentNetLastTrade",, "T")/100,0) -> -0.02275600506 | K114: =RTD("cqg.rtd", ,"ContractData", C114, "T_CVol",, "T") -> 432006 | L114: 114 | M114: =RANK($J114,$J$1:J$137)+COUNTIF($J$1:J114,J114)-1 -> 125 | N114: S.US.SNDX | O114: S.US.OLMA | P114: =RTD("cqg.rtd", ,"ContractData",O114, "PerCentNetLastTrade",, "T")/100 -> -0.016 | Q114: https://finance.yahoo.com/quote/OLMA | T114: 0.016 | V114: =IFERROR(RTD("cqg.rtd", ,"ContractData",O114, "LongDescription",, "T"),"") -> Olema Pharmaceuticals, Inc. | Y114: -0.016 | AB114: 0 | AE114: 0.016 | AF114: -0.016
A115: =RTD("cqg.rtd", ,"ContractData",C115, "LongDescription",, "T") -> ARS Pharmaceuticals, Inc. | B115: S.US.SPRY | C115: S.US.SPRY | D115: =RTD("cqg.rtd", ,"ContractData",C115, "LongDescription",, "T") -> ARS Pharmaceuticals, Inc. | E115: =RTD("cqg.rtd", ,"ContractData",C115, "Open",, "T") -> 12.89 | F115: =RTD("cqg.rtd", ,"ContractData",C115, "High",, "T") -> 13.13 | G115: =RTD("cqg.rtd", ,"ContractData",C115, "Low",, "T") -> 12.64 | H115: =RTD("cqg.rtd", ,"ContractData",C115, "LastTradeToday",, "T") -> 12.9 | I115: =RTD("cqg.rtd", ,"ContractData",C115, "NetLastTradeToday",, "T") -> 0.1 | J115: =IFERROR(RTD("cqg.rtd", ,"ContractData",C115, "PerCentNetLastTrade",, "T")/100,0) -> 0.0078125 | K115: =RTD("cqg.rtd", ,"ContractData", C115, "T_CVol",, "T") -> 154624 | L115: 115 | M115: =RANK($J115,$J$1:J$137)+COUNTIF($J$1:J115,J115)-1 -> 29 | N115: S.US.SPRY | O115: S.US.SLNO | P115: =RTD("cqg.rtd", ,"ContractData",O115, "PerCentNetLastTrade",, "T")/100 -> -0.01608473911 | Q115: https://finance.yahoo.com/quote/SLNO | T115: 0.01608473911 | V115: =IFERROR(RTD("cqg.rtd", ,"ContractData",O115, "LongDescription",, "T"),"") -> Soleno Therapeutics, Inc. | Y115: -0.01608473911 | AB115: 0 | AE115: 0.01608473911 | AF115: -0.01608473911
A116: =RTD("cqg.rtd", ,"ContractData",C116, "LongDescription",, "T") -> Sarepta Therapeutics, Inc. | B116: S.US.SRPT | C116: S.US.SRPT | D116: =RTD("cqg.rtd", ,"ContractData",C116, "LongDescription",, "T") -> Sarepta Therapeutics, Inc. | E116: =RTD("cqg.rtd", ,"ContractData",C116, "Open",, "T") -> 112 | F116: =RTD("cqg.rtd", ,"ContractData",C116, "High",, "T") -> 112.37 | G116: =RTD("cqg.rtd", ,"ContractData",C116, "Low",, "T") -> 110.74 | H116: =RTD("cqg.rtd", ,"ContractData",C116, "LastTradeToday",, "T") -> 111.57 | I116: =RTD("cqg.rtd", ,"ContractData",C116, "NetLastTradeToday",, "T") -> -0.54 | J116: =IFERROR(RTD("cqg.rtd", ,"ContractData",C116, "PerCentNetLastTrade",, "T")/100,0) -> -0.004816697886 | K116: =RTD("cqg.rtd", ,"ContractData", C116, "T_CVol",, "T") -> 81882 | L116: 116 | M116: =RANK($J116,$J$1:J$137)+COUNTIF($J$1:J116,J116)-1 -> 70 | N116: S.US.SRPT | O116: S.US.YMAB | P116: =RTD("cqg.rtd", ,"ContractData",O116, "PerCentNetLastTrade",, "T")/100 -> -0.01620745543 | Q116: ="https://finance.yahoo.com/quote/"&RIGHT(O116,(LEN(O116)-5)) -> https://finance.yahoo.com/quote/YMAB | S116: =IF(P116>=0,P116,NA()) ->  | T116: =IF(P116>=0,NA(),-1*P116) -> 0.01620745543 | V116: =IFERROR(RTD("cqg.rtd", ,"ContractData",O116, "LongDescription",, "T"),"") -> Y-mAbs Therapeutics, Inc. | Y116: =IFERROR(S116,P116) -> -0.01620745543 | AA116: =IF(S116="NA()",0,1) ->  | AB116: =IFERROR(AA116,0) -> 0 | AD116: =IFERROR(S116,"") ->  | AE116: =IFERROR(T116,"") -> 0.01620745543 | AF116: =IF(AE116="","",Y116) -> -0.01620745543
A117: =RTD("cqg.rtd", ,"ContractData",C117, "LongDescription",, "T") -> Scholar Rock Holding Corporation | B117: S.US.SRRK | C117: S.US.SRRK | D117: =RTD("cqg.rtd", ,"ContractData",C117, "LongDescription",, "T") -> Scholar Rock Holding Corporation | E117: =RTD("cqg.rtd", ,"ContractData",C117, "Open",, "T") -> 40.7 | F117: =RTD("cqg.rtd", ,"ContractData",C117, "High",, "T") -> 41.28 | G117: =RTD("cqg.rtd", ,"ContractData",C117, "Low",, "T") -> 40.37 | H117: =RTD("cqg.rtd", ,"ContractData",C117, "LastTradeToday",, "T") -> 40.93 | I117: =RTD("cqg.rtd", ,"ContractData",C117, "NetLastTradeToday",, "T") -> 0.21 | J117: =IFERROR(RTD("cqg.rtd", ,"ContractData",C117, "PerCentNetLastTrade",, "T")/100,0) -> 0.005157170923 | K117: =RTD("cqg.rtd", ,"ContractData", C117, "T_CVol",, "T") -> 29154 | L117: 117 | M117: =RANK($J117,$J$1:J$137)+COUNTIF($J$1:J117,J117)-1 -> 36 | N117: S.US.SRRK | O117: S.US.MDXG | P117: =RTD("cqg.rtd", ,"ContractData",O117, "PerCentNetLastTrade",, "T")/100 -> -0.01647058824 | Q117: https://finance.yahoo.com/quote/MDXG | T117: 0.01647058824 | V117: =IFERROR(RTD("cqg.rtd", ,"ContractData",O117, "LongDescription",, "T"),"") -> MiMedx Group, Inc | Y117: -0.01647058824 | AB117: 0 | AE117: 0.01647058824 | AF117: -0.01647058824
A118: =RTD("cqg.rtd", ,"ContractData",C118, "LongDescription",, "T") -> Stoke Therapeutics, Inc. | B118: S.US.STOK | C118: S.US.STOK | D118: =RTD("cqg.rtd", ,"ContractData",C118, "LongDescription",, "T") -> Stoke Therapeutics, Inc. | E118: =RTD("cqg.rtd", ,"ContractData",C118, "Open",, "T") -> 12.74 | F118: =RTD("cqg.rtd", ,"ContractData",C118, "High",, "T") -> 12.87 | G118: =RTD("cqg.rtd", ,"ContractData",C118, "Low",, "T") -> 12.62 | H118: =RTD("cqg.rtd", ,"ContractData",C118, "LastTradeToday",, "T") -> 12.87 | I118: =RTD("cqg.rtd", ,"ContractData",C118, "NetLastTradeToday",, "T") -> 0.13 | J118: =IFERROR(RTD("cqg.rtd", ,"ContractData",C118, "PerCentNetLastTrade",, "T")/100,0) -> 0.01020408163 | K118: =RTD("cqg.rtd", ,"ContractData", C118, "T_CVol",, "T") -> 146457 | L118: 118 | M118: =RANK($J118,$J$1:J$137)+COUNTIF($J$1:J118,J118)-1 -> 19 | N118: S.US.STOK | O118: S.US.CLDX | P118: =RTD("cqg.rtd", ,"ContractData",O118, "PerCentNetLastTrade",, "T")/100 -> -0.01674538429 | Q118: https://finance.yahoo.com/quote/CLDX | T118: 0.01674538429 | V118: =IFERROR(RTD("cqg.rtd", ,"ContractData",O118, "LongDescription",, "T"),"") -> Celldex Therapeutics Inc | Y118: -0.01674538429 | AB118: 0 | AE118: 0.01674538429 | AF118: -0.01674538429
A119: =RTD("cqg.rtd", ,"ContractData",C119, "LongDescription",, "T") -> Savara Inc. | B119: S.US.SVRA | C119: S.US.SVRA | D119: =RTD("cqg.rtd", ,"ContractData",C119, "LongDescription",, "T") -> Savara Inc. | E119: =RTD("cqg.rtd", ,"ContractData",C119, "Open",, "T") -> 2.84 | F119: =RTD("cqg.rtd", ,"ContractData",C119, "High",, "T") -> 2.89 | G119: =RTD("cqg.rtd", ,"ContractData",C119, "Low",, "T") -> 2.8 | H119: =RTD("cqg.rtd", ,"ContractData",C119, "LastTradeToday",, "T") -> 2.85 | I119: =RTD("cqg.rtd", ,"ContractData",C119, "NetLastTradeToday",, "T") -> 0.01 | J119: =IFERROR(RTD("cqg.rtd", ,"ContractData",C119, "PerCentNetLastTrade",, "T")/100,0) -> 0.003521126761 | K119: =RTD("cqg.rtd", ,"ContractData", C119, "T_CVol",, "T") -> 117335 | L119: 119 | M119: =RANK($J119,$J$1:J$137)+COUNTIF($J$1:J119,J119)-1 -> 40 | N119: S.US.SVRA | O119: S.US.CELC | P119: =RTD("cqg.rtd", ,"ContractData",O119, "PerCentNetLastTrade",, "T")/100 -> -0.01747418586 | Q119: https://finance.yahoo.com/quote/CELC | T119: 0.01747418586 | V119: =IFERROR(RTD("cqg.rtd", ,"ContractData",O119, "LongDescription",, "T"),"") -> Celcuity Inc. | Y119: -0.01747418586 | AB119: 0 | AE119: 0.01747418586 | AF119: -0.01747418586
A120: =RTD("cqg.rtd", ,"ContractData",C120, "LongDescription",, "T") -> SpringWorks Therapeutics, Inc. | B120: S.US.SWTX | C120: S.US.SWTX | D120: =RTD("cqg.rtd", ,"ContractData",C120, "LongDescription",, "T") -> SpringWorks Therapeutics, Inc. | E120: =RTD("cqg.rtd", ,"ContractData",C120, "Open",, "T") -> 39.23 | F120: =RTD("cqg.rtd", ,"ContractData",C120, "High",, "T") -> 40.87 | G120: =RTD("cqg.rtd", ,"ContractData",C120, "Low",, "T") -> 39.1 | H120: =RTD("cqg.rtd", ,"ContractData",C120, "LastTradeToday",, "T") -> 40.16 | I120: =RTD("cqg.rtd", ,"ContractData",C120, "NetLastTradeToday",, "T") -> 0.88 | J120: =IFERROR(RTD("cqg.rtd", ,"ContractData",C120, "PerCentNetLastTrade",, "T")/100,0) -> 0.02240325866 | K120: =RTD("cqg.rtd", ,"ContractData", C120, "T_CVol",, "T") -> 240391 | L120: 120 | M120: =RANK($J120,$J$1:J$137)+COUNTIF($J$1:J120,J120)-1 -> 7 | N120: S.US.SWTX | O120: S.US.VERA | P120: =RTD("cqg.rtd", ,"ContractData",O120, "PerCentNetLastTrade",, "T")/100 -> -0.01748251748 | Q120: https://finance.yahoo.com/quote/VERA | T120: 0.01748251748 | V120: =IFERROR(RTD("cqg.rtd", ,"ContractData",O120, "LongDescription",, "T"),"") -> Vera Therapeutics, Inc. Class A | Y120: -0.01748251748 | AB120: 0 | AE120: 0.01748251748 | AF120: -0.01748251748
A121: =RTD("cqg.rtd", ,"ContractData",C121, "LongDescription",, "T") -> Spyre Therapeutics, Inc. | B121: S.US.SYRE | C121: S.US.SYRE | D121: =RTD("cqg.rtd", ,"ContractData",C121, "LongDescription",, "T") -> Spyre Therapeutics, Inc. | E121: =RTD("cqg.rtd", ,"ContractData",C121, "Open",, "T") -> 23.72 | F121: =RTD("cqg.rtd", ,"ContractData",C121, "High",, "T") -> 24.39 | G121: =RTD("cqg.rtd", ,"ContractData",C121, "Low",, "T") -> 23.59 | H121: =RTD("cqg.rtd", ,"ContractData",C121, "LastTradeToday",, "T") -> 23.8 | I121: =RTD("cqg.rtd", ,"ContractData",C121, "NetLastTradeToday",, "T") -> -0.06 | J121: =IFERROR(RTD("cqg.rtd", ,"ContractData",C121, "PerCentNetLastTrade",, "T")/100,0) -> -0.002514668902 | K121: =RTD("cqg.rtd", ,"ContractData", C121, "T_CVol",, "T") -> 26775 | L121: 121 | M121: =RANK($J121,$J$1:J$137)+COUNTIF($J$1:J121,J121)-1 -> 63 | N121: S.US.SYRE | O121: S.US.ABUS | P121: =RTD("cqg.rtd", ,"ContractData",O121, "PerCentNetLastTrade",, "T")/100 -> -0.01759530792 | Q121: https://finance.yahoo.com/quote/ABUS | T121: 0.01759530792 | V121: =IFERROR(RTD("cqg.rtd", ,"ContractData",O121, "LongDescription",, "T"),"") -> Arbutus Biopharma Corporation | Y121: -0.01759530792 | AB121: 0 | AE121: 0.01759530792 | AF121: -0.01759530792
A122: =RTD("cqg.rtd", ,"ContractData",C122, "LongDescription",, "T") -> TG Therapeutics, Inc. | B122: S.US.TGTX | C122: S.US.TGTX | D122: =RTD("cqg.rtd", ,"ContractData",C122, "LongDescription",, "T") -> TG Therapeutics, Inc. | E122: =RTD("cqg.rtd", ,"ContractData",C122, "Open",, "T") -> 33.66 | F122: =RTD("cqg.rtd", ,"ContractData",C122, "High",, "T") -> 34.2 | G122: =RTD("cqg.rtd", ,"ContractData",C122, "Low",, "T") -> 33.5 | H122: =RTD("cqg.rtd", ,"ContractData",C122, "LastTradeToday",, "T") -> 33.8 | I122: =RTD("cqg.rtd", ,"ContractData",C122, "NetLastTradeToday",, "T") -> 0.3 | J122: =IFERROR(RTD("cqg.rtd", ,"ContractData",C122, "PerCentNetLastTrade",, "T")/100,0) -> 0.008955223881 | K122: =RTD("cqg.rtd", ,"ContractData", C122, "T_CVol",, "T") -> 249303 | L122: 122 | M122: =RANK($J122,$J$1:J$137)+COUNTIF($J$1:J122,J122)-1 -> 25 | N122: S.US.TGTX | O122: S.US.ARCT | P122: =RTD("cqg.rtd", ,"ContractData",O122, "PerCentNetLastTrade",, "T")/100 -> -0.01850780798 | Q122: https://finance.yahoo.com/quote/ARCT | T122: 0.01850780798 | V122: =IFERROR(RTD("cqg.rtd", ,"ContractData",O122, "LongDescription",, "T"),"") -> Arcturus Therapeutics Holdings Inc. | Y122: -0.01850780798 | AB122: 0 | AE122: 0.01850780798 | AF122: -0.01850780798
A123: =RTD("cqg.rtd", ,"ContractData",C123, "LongDescription",, "T") -> Tourmaline Bio, Inc. | B123: S.US.TRML | C123: S.US.TRML | D123: =RTD("cqg.rtd", ,"ContractData",C123, "LongDescription",, "T") -> Tourmaline Bio, Inc. | E123: =RTD("cqg.rtd", ,"ContractData",C123, "Open",, "T") -> 14.97 | F123: =RTD("cqg.rtd", ,"ContractData",C123, "High",, "T") -> 15 | G123: =RTD("cqg.rtd", ,"ContractData",C123, "Low",, "T") -> 14.17 | H123: =RTD("cqg.rtd", ,"ContractData",C123, "LastTradeToday",, "T") -> 14.34 | I123: =RTD("cqg.rtd", ,"ContractData",C123, "NetLastTradeToday",, "T") -> -0.65 | J123: =IFERROR(RTD("cqg.rtd", ,"ContractData",C123, "PerCentNetLastTrade",, "T")/100,0) -> -0.04336224149 | K123: =RTD("cqg.rtd", ,"ContractData", C123, "T_CVol",, "T") -> 43325 | L123: 123 | M123: =RANK($J123,$J$1:J$137)+COUNTIF($J$1:J123,J123)-1 -> 136 | N123: S.US.TRML | O123: S.US.ANAB | P123: =RTD("cqg.rtd", ,"ContractData",O123, "PerCentNetLastTrade",, "T")/100 -> -0.02176616915 | Q123: https://finance.yahoo.com/quote/ANAB | T123: 0.02176616915 | V123: =IFERROR(RTD("cqg.rtd", ,"ContractData",O123, "LongDescription",, "T"),"") -> AnaptysBio, Inc. | Y123: -0.02176616915 | AB123: 0 | AE123: 0.02176616915 | AF123: -0.02176616915
A124: =RTD("cqg.rtd", ,"ContractData",C124, "LongDescription",, "T") -> Taysha Gene Therapies, Inc. | B124: S.US.TSHA | C124: S.US.TSHA | D124: =RTD("cqg.rtd", ,"ContractData",C124, "LongDescription",, "T") -> Taysha Gene Therapies, Inc. | E124: =RTD("cqg.rtd", ,"ContractData",C124, "Open",, "T") -> 1.7 | F124: =RTD("cqg.rtd", ,"ContractData",C124, "High",, "T") -> 1.79 | G124: =RTD("cqg.rtd", ,"ContractData",C124, "Low",, "T") -> 1.67 | H124: =RTD("cqg.rtd", ,"ContractData",C124, "LastTradeToday",, "T") -> 1.77 | I124: =RTD("cqg.rtd", ,"ContractData",C124, "NetLastTradeToday",, "T") -> 0.11 | J124: =IFERROR(RTD("cqg.rtd", ,"ContractData",C124, "PerCentNetLastTrade",, "T")/100,0) -> 0.06626506024 | K124: =RTD("cqg.rtd", ,"ContractData", C124, "T_CVol",, "T") -> 838027 | L124: 124 | M124: =RANK($J124,$J$1:J$137)+COUNTIF($J$1:J124,J124)-1 -> 1 | N124: S.US.TSHA | O124: S.US.TWST | P124: =RTD("cqg.rtd", ,"ContractData",O124, "PerCentNetLastTrade",, "T")/100 -> -0.02216014898 | Q124: https://finance.yahoo.com/quote/TWST | T124: 0.02216014898 | V124: =IFERROR(RTD("cqg.rtd", ,"ContractData",O124, "LongDescription",, "T"),"") -> Twist Bioscience Corporation | Y124: -0.02216014898 | AB124: 0 | AE124: 0.02216014898 | AF124: -0.02216014898
A125: =RTD("cqg.rtd", ,"ContractData",C125, "LongDescription",, "T") -> Travere Therapeutics, Inc. | B125: S.US.TVTX | C125: S.US.TVTX | D125: =RTD("cqg.rtd", ,"ContractData",C125, "LongDescription",, "T") -> Travere Therapeutics, Inc. | E125: =RTD("cqg.rtd", ,"ContractData",C125, "Open",, "T") -> 21.9 | F125: =RTD("cqg.rtd", ,"ContractData",C125, "High",, "T") -> 22.24 | G125: =RTD("cqg.rtd", ,"ContractData",C125, "Low",, "T") -> 21.59 | H125: =RTD("cqg.rtd", ,"ContractData",C125, "LastTradeToday",, "T") -> 22.03 | I125: =RTD("cqg.rtd", ,"ContractData",C125, "NetLastTradeToday",, "T") -> 0.17 | J125: =IFERROR(RTD("cqg.rtd", ,"ContractData",C125, "PerCentNetLastTrade",, "T")/100,0) -> 0.007776761208 | K125: =RTD("cqg.rtd", ,"ContractData", C125, "T_CVol",, "T") -> 156765 | L125: 125 | M125: =RANK($J125,$J$1:J$137)+COUNTIF($J$1:J125,J125)-1 -> 30 | N125: S.US.TVTX | O125: S.US.SNDX | P125: =RTD("cqg.rtd", ,"ContractData",O125, "PerCentNetLastTrade",, "T")/100 -> -0.02275600506 | Q125: https://finance.yahoo.com/quote/SNDX | T125: 0.02275600506 | V125: =IFERROR(RTD("cqg.rtd", ,"ContractData",O125, "LongDescription",, "T"),"") -> Syndax Pharmaceuticals, Inc. | Y125: -0.02275600506 | AB125: 0 | AE125: 0.02275600506 | AF125: -0.02275600506
A126: =RTD("cqg.rtd", ,"ContractData",C126, "LongDescription",, "T") -> Twist Bioscience Corporation | B126: S.US.TWST | C126: S.US.TWST | D126: =RTD("cqg.rtd", ,"ContractData",C126, "LongDescription",, "T") -> Twist Bioscience Corporation | E126: =RTD("cqg.rtd", ,"ContractData",C126, "Open",, "T") -> 53.71 | F126: =RTD("cqg.rtd", ,"ContractData",C126, "High",, "T") -> 54.26 | G126: =RTD("cqg.rtd", ,"ContractData",C126, "Low",, "T") -> 52.1 | H126: =RTD("cqg.rtd", ,"ContractData",C126, "LastTradeToday",, "T") -> 52.51 | I126: =RTD("cqg.rtd", ,"ContractData",C126, "NetLastTradeToday",, "T") -> -1.19 | J126: =IFERROR(RTD("cqg.rtd", ,"ContractData",C126, "PerCentNetLastTrade",, "T")/100,0) -> -0.02216014898 | K126: =RTD("cqg.rtd", ,"ContractData", C126, "T_CVol",, "T") -> 142614 | L126: 126 | M126: =RANK($J126,$J$1:J$137)+COUNTIF($J$1:J126,J126)-1 -> 124 | N126: S.US.TWST | O126: S.US.CAPR | P126: =RTD("cqg.rtd", ,"ContractData",O126, "PerCentNetLastTrade",, "T")/100 -> -0.0230286113 | Q126: https://finance.yahoo.com/quote/CAPR | T126: 0.0230286113 | V126: =IFERROR(RTD("cqg.rtd", ,"ContractData",O126, "LongDescription",, "T"),"") -> Capricor Therapeutics, Inc. | Y126: -0.0230286113 | AB126: 0 | AE126: 0.0230286113 | AF126: -0.0230286113
A127: =RTD("cqg.rtd", ,"ContractData",C127, "LongDescription",, "T") -> United Therapeutics Corp | B127: S.US.UTHR | C127: S.US.UTHR | D127: =RTD("cqg.rtd", ,"ContractData",C127, "LongDescription",, "T") -> United Therapeutics Corp | E127: =RTD("cqg.rtd", ,"ContractData",C127, "Open",, "T") -> 355.76 | F127: =RTD("cqg.rtd", ,"ContractData",C127, "High",, "T") -> 357 | G127: =RTD("cqg.rtd", ,"ContractData",C127, "Low",, "T") -> 350 | H127: =RTD("cqg.rtd", ,"ContractData",C127, "LastTradeToday",, "T") -> 350.71 | I127: =RTD("cqg.rtd", ,"ContractData",C127, "NetLastTradeToday",, "T") -> -3.04 | J127: =IFERROR(RTD("cqg.rtd", ,"ContractData",C127, "PerCentNetLastTrade",, "T")/100,0) -> -0.008593639576 | K127: =RTD("cqg.rtd", ,"ContractData", C127, "T_CVol",, "T") -> 35161 | L127: 127 | M127: =RANK($J127,$J$1:J$137)+COUNTIF($J$1:J127,J127)-1 -> 87 | N127: S.US.UTHR | O127: S.US.VCYT | P127: =RTD("cqg.rtd", ,"ContractData",O127, "PerCentNetLastTrade",, "T")/100 -> -0.0232183908 | Q127: https://finance.yahoo.com/quote/VCYT | T127: 0.0232183908 | V127: =IFERROR(RTD("cqg.rtd", ,"ContractData",O127, "LongDescription",, "T"),"") -> Veracyte, Inc. | Y127: -0.0232183908 | AB127: 0 | AE127: 0.0232183908 | AF127: -0.0232183908
A128: =RTD("cqg.rtd", ,"ContractData",C128, "LongDescription",, "T") -> Vericel Corporation | B128: S.US.VCEL | C128: S.US.VCEL | D128: =RTD("cqg.rtd", ,"ContractData",C128, "LongDescription",, "T") -> Vericel Corporation | E128: =RTD("cqg.rtd", ,"ContractData",C128, "Open",, "T") -> 59.67 | F128: =RTD("cqg.rtd", ,"ContractData",C128, "High",, "T") -> 59.77 | G128: =RTD("cqg.rtd", ,"ContractData",C128, "Low",, "T") -> 58.82 | H128: =RTD("cqg.rtd", ,"ContractData",C128, "LastTradeToday",, "T") -> 59.2 | I128: =RTD("cqg.rtd", ,"ContractData",C128, "NetLastTradeToday",, "T") -> -0.5 | J128: =IFERROR(RTD("cqg.rtd", ,"ContractData",C128, "PerCentNetLastTrade",, "T")/100,0) -> -0.00837520938 | K128: =RTD("cqg.rtd", ,"ContractData", C128, "T_CVol",, "T") -> 37602 | L128: 128 | M128: =RANK($J128,$J$1:J$137)+COUNTIF($J$1:J128,J128)-1 -> 85 | N128: S.US.VCEL | O128: S.US.SGMO | P128: =RTD("cqg.rtd", ,"ContractData",O128, "PerCentNetLastTrade",, "T")/100 -> -0.02362204724 | Q128: https://finance.yahoo.com/quote/SGMO | T128: 0.02362204724 | V128: =IFERROR(RTD("cqg.rtd", ,"ContractData",O128, "LongDescription",, "T"),"") -> Sangamo Therapeutics, Inc. | Y128: -0.02362204724 | AB128: 0 | AE128: 0.02362204724 | AF128: -0.02362204724
A129: =RTD("cqg.rtd", ,"ContractData",C129, "LongDescription",, "T") -> Veracyte, Inc. | B129: S.US.VCYT | C129: S.US.VCYT | D129: =RTD("cqg.rtd", ,"ContractData",C129, "LongDescription",, "T") -> Veracyte, Inc. | E129: =RTD("cqg.rtd", ,"ContractData",C129, "Open",, "T") -> 43.35 | F129: =RTD("cqg.rtd", ,"ContractData",C129, "High",, "T") -> 43.5 | G129: =RTD("cqg.rtd", ,"ContractData",C129, "Low",, "T") -> 41.68 | H129: =RTD("cqg.rtd", ,"ContractData",C129, "LastTradeToday",, "T") -> 42.49 | I129: =RTD("cqg.rtd", ,"ContractData",C129, "NetLastTradeToday",, "T") -> -1.01 | J129: =IFERROR(RTD("cqg.rtd", ,"ContractData",C129, "PerCentNetLastTrade",, "T")/100,0) -> -0.0232183908 | K129: =RTD("cqg.rtd", ,"ContractData", C129, "T_CVol",, "T") -> 150742 | L129: 129 | M129: =RANK($J129,$J$1:J$137)+COUNTIF($J$1:J129,J129)-1 -> 127 | N129: =C129 -> S.US.VCYT | O129: S.US.GRAL | P129: =RTD("cqg.rtd", ,"ContractData",O129, "PerCentNetLastTrade",, "T")/100 -> -0.02364352834 | Q129: https://finance.yahoo.com/quote/GRAL | T129: 0.02364352834 | V129: =IFERROR(RTD("cqg.rtd", ,"ContractData",O129, "LongDescription",, "T"),"") -> GRAIL, Inc. | Y129: -0.02364352834 | AB129: 0 | AE129: 0.02364352834 | AF129: -0.02364352834
A130: =RTD("cqg.rtd", ,"ContractData",C130, "LongDescription",, "T") -> Vera Therapeutics, Inc. Class A | B130: S.US.VERA | C130: S.US.VERA | D130: =RTD("cqg.rtd", ,"ContractData",C130, "LongDescription",, "T") -> Vera Therapeutics, Inc. Class A | E130: =RTD("cqg.rtd", ,"ContractData",C130, "Open",, "T") -> 37.19 | F130: =RTD("cqg.rtd", ,"ContractData",C130, "High",, "T") -> 37.42 | G130: =RTD("cqg.rtd", ,"ContractData",C130, "Low",, "T") -> 36.38 | H130: =RTD("cqg.rtd", ,"ContractData",C130, "LastTradeToday",, "T") -> 36.53 | I130: =RTD("cqg.rtd", ,"ContractData",C130, "NetLastTradeToday",, "T") -> -0.65 | J130: =IFERROR(RTD("cqg.rtd", ,"ContractData",C130, "PerCentNetLastTrade",, "T")/100,0) -> -0.01748251748 | K130: =RTD("cqg.rtd", ,"ContractData", C130, "T_CVol",, "T") -> 32050 | L130: 130 | M130: =RANK($J130,$J$1:J$137)+COUNTIF($J$1:J130,J130)-1 -> 120 | N130: S.US.VERA | O130: =VLOOKUP($L130,$M$1:$N$137,2,FALSE) -> S.US.EBS | P130: =RTD("cqg.rtd", ,"ContractData",O130, "PerCentNetLastTrade",, "T")/100 -> -0.02390057361 | Q130: https://finance.yahoo.com/quote/EBS | T130: 0.02390057361 | V130: =IFERROR(RTD("cqg.rtd", ,"ContractData",O130, "LongDescription",, "T"),"") -> Emergent Biosolutions | Y130: -0.02390057361 | AB130: 0 | AE130: 0.02390057361 | AF130: -0.02390057361
A131: =RTD("cqg.rtd", ,"ContractData",C131, "LongDescription",, "T") -> Verve Therapeutics, Inc. | B131: S.US.VERV | C131: S.US.VERV | D131: =RTD("cqg.rtd", ,"ContractData",C131, "LongDescription",, "T") -> Verve Therapeutics, Inc. | E131: =RTD("cqg.rtd", ,"ContractData",C131, "Open",, "T") -> 8.32 | F131: =RTD("cqg.rtd", ,"ContractData",C131, "High",, "T") -> 8.52 | G131: =RTD("cqg.rtd", ,"ContractData",C131, "Low",, "T") -> 8.32 | H131: =RTD("cqg.rtd", ,"ContractData",C131, "LastTradeToday",, "T") -> 8.45 | I131: =RTD("cqg.rtd", ,"ContractData",C131, "NetLastTradeToday",, "T") -> 0.09 | J131: =IFERROR(RTD("cqg.rtd", ,"ContractData",C131, "PerCentNetLastTrade",, "T")/100,0) -> 0.01076555024 | K131: =RTD("cqg.rtd", ,"ContractData", C131, "T_CVol",, "T") -> 104236 | L131: =L130+1 -> 131 | M131: =RANK($J131,$J$1:J$137)+COUNTIF($J$1:J131,J131)-1 -> 18 | N131: S.US.VERV | O131: S.US.SANA | P131: =RTD("cqg.rtd", ,"ContractData",O131, "PerCentNetLastTrade",, "T")/100 -> -0.0245398773 | Q131: https://finance.yahoo.com/quote/SANA | T131: 0.0245398773 | V131: =IFERROR(RTD("cqg.rtd", ,"ContractData",O131, "LongDescription",, "T"),"") -> Sana Biotechnology, Inc. | Y131: -0.0245398773 | AB131: 0 | AE131: 0.0245398773 | AF131: -0.0245398773
A132: =RTD("cqg.rtd", ,"ContractData",C132, "LongDescription",, "T") -> Vir Biotechnology, Inc. | B132: S.US.VIR | C132: S.US.VIR | D132: =RTD("cqg.rtd", ,"ContractData",C132, "LongDescription",, "T") -> Vir Biotechnology, Inc. | E132: =RTD("cqg.rtd", ,"ContractData",C132, "Open",, "T") -> 10.22 | F132: =RTD("cqg.rtd", ,"ContractData",C132, "High",, "T") -> 10.65 | G132: =RTD("cqg.rtd", ,"ContractData",C132, "Low",, "T") -> 10.04 | H132: =RTD("cqg.rtd", ,"ContractData",C132, "LastTradeToday",, "T") -> 10.1 | I132: =RTD("cqg.rtd", ,"ContractData",C132, "NetLastTradeToday",, "T") -> -0.13 | J132: =IFERROR(RTD("cqg.rtd", ,"ContractData",C132, "PerCentNetLastTrade",, "T")/100,0) -> -0.01270772239 | K132: =RTD("cqg.rtd", ,"ContractData", C132, "T_CVol",, "T") -> 245887 | L132: 132 | M132: =RANK($J132,$J$1:J$137)+COUNTIF($J$1:J132,J132)-1 -> 104 | N132: S.US.VIR | O132: S.US.DYN | P132: =RTD("cqg.rtd", ,"ContractData",O132, "PerCentNetLastTrade",, "T")/100 -> -0.03102625298 | Q132: https://finance.yahoo.com/quote/DYN | T132: 0.03102625298 | V132: =IFERROR(RTD("cqg.rtd", ,"ContractData",O132, "LongDescription",, "T"),"") -> Dyne Therapeutics, Inc. | Y132: -0.03102625298 | AB132: 0 | AE132: 0.03102625298 | AF132: -0.03102625298
A133: =RTD("cqg.rtd", ,"ContractData",C133, "LongDescription",, "T") -> Viking Therapeutics, Inc. | B133: S.US.VKTX | C133: S.US.VKTX | D133: =RTD("cqg.rtd", ,"ContractData",C133, "LongDescription",, "T") -> Viking Therapeutics, Inc. | E133: =RTD("cqg.rtd", ,"ContractData",C133, "Open",, "T") -> 31.4 | F133: =RTD("cqg.rtd", ,"ContractData",C133, "High",, "T") -> 32.68 | G133: =RTD("cqg.rtd", ,"ContractData",C133, "Low",, "T") -> 30.8 | H133: =RTD("cqg.rtd", ,"ContractData",C133, "LastTradeToday",, "T") -> 32.49 | I133: =RTD("cqg.rtd", ,"ContractData",C133, "NetLastTradeToday",, "T") -> 1.03 | J133: =IFERROR(RTD("cqg.rtd", ,"ContractData",C133, "PerCentNetLastTrade",, "T")/100,0) -> 0.03273998729 | K133: =RTD("cqg.rtd", ,"ContractData", C133, "T_CVol",, "T") -> 1296715 | L133: 133 | M133: =RANK($J133,$J$1:J$137)+COUNTIF($J$1:J133,J133)-1 -> 4 | N133: S.US.VKTX | O133: S.US.CYTK | P133: =RTD("cqg.rtd", ,"ContractData",O133, "PerCentNetLastTrade",, "T")/100 -> -0.0329218107 | Q133: https://finance.yahoo.com/quote/CYTK | T133: 0.0329218107 | V133: =IFERROR(RTD("cqg.rtd", ,"ContractData",O133, "LongDescription",, "T"),"") -> Cytokinetics Inc | Y133: -0.0329218107 | AB133: 0 | AE133: 0.0329218107 | AF133: -0.0329218107
A134: =RTD("cqg.rtd", ,"ContractData",C134, "LongDescription",, "T") -> Viridian Therapeutics, Inc. | B134: S.US.VRDN | C134: S.US.VRDN | D134: =RTD("cqg.rtd", ,"ContractData",C134, "LongDescription",, "T") -> Viridian Therapeutics, Inc. | E134: =RTD("cqg.rtd", ,"ContractData",C134, "Open",, "T") -> 18.49 | F134: =RTD("cqg.rtd", ,"ContractData",C134, "High",, "T") -> 18.65 | G134: =RTD("cqg.rtd", ,"ContractData",C134, "Low",, "T") -> 18.08 | H134: =RTD("cqg.rtd", ,"ContractData",C134, "LastTradeToday",, "T") -> 18.35 | I134: =RTD("cqg.rtd", ,"ContractData",C134, "NetLastTradeToday",, "T") -> -0.16 | J134: =IFERROR(RTD("cqg.rtd", ,"ContractData",C134, "PerCentNetLastTrade",, "T")/100,0) -> -0.008643976229 | K134: =RTD("cqg.rtd", ,"ContractData", C134, "T_CVol",, "T") -> 86466 | L134: 134 | M134: =RANK($J134,$J$1:J$137)+COUNTIF($J$1:J134,J134)-1 -> 89 | N134: S.US.VRDN | O134: S.US.LENZ | P134: =RTD("cqg.rtd", ,"ContractData",O134, "PerCentNetLastTrade",, "T")/100 -> -0.03297115024 | Q134: https://finance.yahoo.com/quote/LENZ | T134: 0.03297115024 | V134: =IFERROR(RTD("cqg.rtd", ,"ContractData",O134, "LongDescription",, "T"),"") -> LENZ Therapeutics, Inc. | Y134: -0.03297115024 | AB134: 0 | AE134: 0.03297115024 | AF134: -0.03297115024
A135: =RTD("cqg.rtd", ,"ContractData",C135, "LongDescription",, "T") -> Vertex Pharmaceuticals Incorporated | B135: S.US.VRTX | C135: S.US.VRTX | D135: =RTD("cqg.rtd", ,"ContractData",C135, "LongDescription",, "T") -> Vertex Pharmaceuticals Incorporated | E135: =RTD("cqg.rtd", ,"ContractData",C135, "Open",, "T") -> 478.98 | F135: =RTD("cqg.rtd", ,"ContractData",C135, "High",, "T") -> 480.47 | G135: =RTD("cqg.rtd", ,"ContractData",C135, "Low",, "T") -> 473.3 | H135: =RTD("cqg.rtd", ,"ContractData",C135, "LastTradeToday",, "T") -> 476.9 | I135: =RTD("cqg.rtd", ,"ContractData",C135, "NetLastTradeToday",, "T") -> -4.26 | J135: =IFERROR(RTD("cqg.rtd", ,"ContractData",C135, "PerCentNetLastTrade",, "T")/100,0) -> -0.008853603791 | K135: =RTD("cqg.rtd", ,"ContractData", C135, "T_CVol",, "T") -> 219141 | L135: 135 | M135: =RANK($J135,$J$1:J$137)+COUNTIF($J$1:J135,J135)-1 -> 90 | N135: S.US.VRTX | O135: S.US.IRWD | P135: =RTD("cqg.rtd", ,"ContractData",O135, "PerCentNetLastTrade",, "T")/100 -> -0.03608247423 | Q135: https://finance.yahoo.com/quote/IRWD | T135: 0.03608247423 | V135: =IFERROR(RTD("cqg.rtd", ,"ContractData",O135, "LongDescription",, "T"),"") -> Ironwood Pharmaceuticals, Inc. | Y135: -0.03608247423 | AB135: 0 | AE135: 0.03608247423 | AF135: -0.03608247423
A136: =RTD("cqg.rtd", ,"ContractData",C136, "LongDescription",, "T") -> Xencor, Inc. | B136: S.US.XNCR | C136: S.US.XNCR | D136: =RTD("cqg.rtd", ,"ContractData",C136, "LongDescription",, "T") -> Xencor, Inc. | E136: =RTD("cqg.rtd", ,"ContractData",C136, "Open",, "T") -> 17.25 | F136: =RTD("cqg.rtd", ,"ContractData",C136, "High",, "T") -> 17.46 | G136: =RTD("cqg.rtd", ,"ContractData",C136, "Low",, "T") -> 17.08 | H136: =RTD("cqg.rtd", ,"ContractData",C136, "LastTradeToday",, "T") -> 17.11 | I136: =RTD("cqg.rtd", ,"ContractData",C136, "NetLastTradeToday",, "T") -> -0.14 | J136: =IFERROR(RTD("cqg.rtd", ,"ContractData",C136, "PerCentNetLastTrade",, "T")/100,0) -> -0.008115942029 | K136: =RTD("cqg.rtd", ,"ContractData", C136, "T_CVol",, "T") -> 14070 | L136: 136 | M136: =RANK($J136,$J$1:J$137)+COUNTIF($J$1:J136,J136)-1 -> 83 | N136: S.US.XNCR | O136: S.US.TRML | P136: =RTD("cqg.rtd", ,"ContractData",O136, "PerCentNetLastTrade",, "T")/100 -> -0.04336224149 | Q136: https://finance.yahoo.com/quote/TRML | T136: 0.04336224149 | V136: =IFERROR(RTD("cqg.rtd", ,"ContractData",O136, "LongDescription",, "T"),"") -> Tourmaline Bio, Inc. | Y136: -0.04336224149 | AB136: 0 | AE136: 0.04336224149 | AF136: -0.04336224149
A137: =RTD("cqg.rtd", ,"ContractData",C137, "LongDescription",, "T") -> Y-mAbs Therapeutics, Inc. | B137: S.US.YMAB | C137: S.US.YMAB | D137: =RTD("cqg.rtd", ,"ContractData",C137, "LongDescription",, "T") -> Y-mAbs Therapeutics, Inc. | E137: =RTD("cqg.rtd", ,"ContractData",C137, "Open",, "T") -> 6.16 | F137: =RTD("cqg.rtd", ,"ContractData",C137, "High",, "T") -> 6.22 | G137: =RTD("cqg.rtd", ,"ContractData",C137, "Low",, "T") -> 6.02 | H137: =RTD("cqg.rtd", ,"ContractData",C137, "LastTradeToday",, "T") -> 6.07 | I137: =RTD("cqg.rtd", ,"ContractData",C137, "NetLastTradeToday",, "T") -> -0.1 | J137: =IFERROR(RTD("cqg.rtd", ,"ContractData",C137, "PerCentNetLastTrade",, "T")/100,0) -> -0.01620745543 | K137: =RTD("cqg.rtd", ,"ContractData", C137, "T_CVol",, "T") -> 48051 | L137: 137 | M137: =RANK($J137,$J$1:J$137)+COUNTIF($J$1:J137,J137)-1 -> 116 | N137: S.US.YMAB | O137: S.US.NBIX | P137: =RTD("cqg.rtd", ,"ContractData",O137, "PerCentNetLastTrade",, "T")/100 -> -0.1444422298 | Q137: https://finance.yahoo.com/quote/NBIX | T137: 0.1444422298 | V137: =IFERROR(RTD("cqg.rtd", ,"ContractData",O137, "LongDescription",, "T"),"") -> Neurocrine Biosciences Inc | Y137: -0.1444422298 | AB137: 0 | AE137: 0.1444422298 | AF137: -0.1444422298
AE138: 0 | AF138: 0
AB170: =SUM(AB1:AB138)/137 -> 0.3868613139
